Inv Transaction,Supplier Name,Headserv Name,Stratdir Name,Account Desription,Redact Name,Paid Date, Sum of Inv Amount ,Proclass,Merchant cat
460383,BOWERFIELD COURT,Adult Social Care,Adults,Nursing Home Long Stay Fees,,13/01/2020,"6,457.29",321000,Social Community Care Supplies & Services - Adult
460384,BOWERFIELD COURT,Adult Social Care,Adults,Nursing Home Long Stay Fees,,13/01/2020,"3,281.57",321000,Social Community Care Supplies & Services - Adult
460385,Barchester Healthcare t/a Glenroyd Care Home,Adult Social Care,Adults,Nursing Home Long Stay Fees,,17/03/2020,"2,722.34",321018,Social Community Care Supplies & Services
460387,BOWERFIELD COURT,Adult Social Care,Adults,Nursing Home Long Stay Fees,,13/01/2020,"3,175.71",321000,Social Community Care Supplies & Services - Adult
460387,CAVENDISH PARK CARE HOME,Adult Social Care,Adults,Nursing Home Long Stay Fees,,06/02/2020,"2,907.14",321000,Social Community Care Supplies & Services - Adult
3250741,PUWERTEC LIMITED,Operations and Neighbourhoods,Operations and Neighbourhoods,General Equipment Repair & Maintenance,,28/01/2020,900,100000,Building Construction Materials
470838,Redacted,Operations and Neighbourhoods,Operations and Neighbourhoods,Sub-contractor Services,Redacted Supplier,03/02/2020,"13,175.00",100000,Building Construction Materials
460388,BOWERFIELD COURT,Adult Social Care,Adults,Nursing Home Long Stay Fees,,13/01/2020,"3,281.57",321000,Social Community Care Supplies & Services - Adult
460388,GREENACRES CARE HOME,Adult Social Care,Adults,Nursing Home Long Stay Fees,,20/01/2020,"12,857.14",321018,Social Community Care Supplies & Services
32000046,THE SUNFLOWER CHILDRENS CENTRE,Education,Children's Services,,,02/01/2020,"60,384.31",321100,Social Community Care Supplies & Services - Children
32000046,GEORGIE PORGIES SESSIONAL CARE CENTRE,Education,Children's Services,,,02/01/2020,"7,843.72",-999999,Unclassifiable
32000046,Redacted,Education,Children's Services,,,02/01/2020,937.78,-999999,Unclassifiable
32000046,MARVELS KIDS CLUB LTD,Education,Children's Services,,,02/01/2020,"7,492.24",321100,Social Community Care Supplies & Services - Children
32000046,MICKLEHURST JUNIOR SCHL,Multiple Heads of Service,Multiple Strategic Directorates,Section 52 School Cash Advances,,02/01/2020,"23,722.88",-999999,Unclassifiable
5364190,Stars and Dreams Education Ltd,Education,Children's Services,#N/A,,02/01/2020,945,170000,Education
5363816,Medgen Limited,Childrens Services,Children's Services,Homecare Fees,,02/01/2020,"1,285.20",260000,Human Resources
5363813,Medgen Limited,Childrens Services,Children's Services,Homecare Fees,,02/01/2020,"1,083.60",260000,Human Resources
5363828,Parallel Security Limited,Childrens Services,Children's Services,Professional Medical Services,,02/01/2020,"2,880.00",190000,Facilities & Management Services
5364255,International Centre for Life Limited (Property),Hosted Services,Hosted Services,Conference/Seminar Expenses For Staff,,02/01/2020,"2,187.50",-999999,Unclassifiable
5364259,APS Group,Operations and Neighbourhoods,Operations and Neighbourhoods,Professional Medical Services,,02/01/2020,861.84,-999999,Unclassifiable
5366196,ATKINS LIMITED,Operations and Neighbourhoods,Operations and Neighbourhoods,Engineers Works,,02/01/2020,"6,740.53",180000,Environmental Services
5366275,Bloom Procurement Services Limited,(blank),(blank),Professional Consultancy Services,,02/01/2020,"19,000.00",150000,Consultancy
5364267,Leeds Trinity University,Childrens Services,Children's Services,Other Energy Costs,,02/01/2020,"1,935.00",UNCLASS,Unclassifiable
5364015,YOUNG PEOPLE FIRST LIMITED,Childrens Services,Children's Services,Living With Formal Support,,02/01/2020,"3,584.00",321100,Social Community Care Supplies & Services - Children
5364018,YOUNG PEOPLE FIRST LIMITED,Childrens Services,Children's Services,Living With Formal Support,,02/01/2020,"6,277.00",321100,Social Community Care Supplies & Services - Children
5364222,Foster Careline Ltd,Childrens Services,Children's Services,Foster Carer Agency Fees,,02/01/2020,"3,683.23",321000,Social Community Care Supplies & Services - Adult
5364224,Foster Careline Ltd,Childrens Services,Children's Services,Foster Carer Agency Fees,,02/01/2020,"3,540.00",321000,Social Community Care Supplies & Services - Adult
5364226,Foster Careline Ltd,Childrens Services,Children's Services,Foster Carer Agency Fees,,02/01/2020,"3,683.23",321000,Social Community Care Supplies & Services - Adult
5364271,CHILTERN HILLS LIMITED,Childrens Services,Children's Services,#N/A,,02/01/2020,542,250000,Housing Management
5364276,Illuminos LLP,Operations and Neighbourhoods,Operations and Neighbourhoods,Professional Entertainment Services,,02/01/2020,"5,833.33",240000,Horticultural
5364283,THE FOSTER CARE CO-OPERATIVE LTD,Childrens Services,Children's Services,Foster Carer Agency Fees,,02/01/2020,"1,628.40",321000,Social Community Care Supplies & Services - Adult
5364283,THE FOSTER CARE CO-OPERATIVE LTD,Childrens Services,Children's Services,Independent Sector Residential Care Fees,,02/01/2020,750,321000,Social Community Care Supplies & Services - Adult
5364187,FOSTERING SOLUTIONS LTD,Childrens Services,Children's Services,Foster Carer Agency Fees,,02/01/2020,"3,609.33",321000,Social Community Care Supplies & Services - Adult
5364182,FOSTERING SOLUTIONS LTD,Childrens Services,Children's Services,Foster Carer Agency Fees,,02/01/2020,"3,077.99",321000,Social Community Care Supplies & Services - Adult
5364067,FOSTERING SOLUTIONS LTD,Childrens Services,Children's Services,Foster Carer Agency Fees,,02/01/2020,"1,304.27",321000,Social Community Care Supplies & Services - Adult
5364185,FOSTERING SOLUTIONS LTD,Childrens Services,Children's Services,Foster Carer Agency Fees,,02/01/2020,"3,565.31",321000,Social Community Care Supplies & Services - Adult
5364193,FOSTERING SOLUTIONS LTD,Childrens Services,Children's Services,Foster Carer Agency Fees,,02/01/2020,"2,924.09",321000,Social Community Care Supplies & Services - Adult
5364189,FOSTERING SOLUTIONS LTD,Childrens Services,Children's Services,Foster Carer Agency Fees,,02/01/2020,"2,987.11",321000,Social Community Care Supplies & Services - Adult
5364191,FOSTERING SOLUTIONS LTD,Childrens Services,Children's Services,Foster Carer Agency Fees,,02/01/2020,"3,344.64",321000,Social Community Care Supplies & Services - Adult
5364179,FOSTERING SOLUTIONS LTD,Childrens Services,Children's Services,Foster Carer Agency Fees,,02/01/2020,"3,302.52",321000,Social Community Care Supplies & Services - Adult
5364183,FOSTERING SOLUTIONS LTD,Childrens Services,Children's Services,Foster Carer Agency Fees,,02/01/2020,"2,924.09",321000,Social Community Care Supplies & Services - Adult
5364196,FOSTERING SOLUTIONS LTD,Childrens Services,Children's Services,Foster Carer Agency Fees,,02/01/2020,"3,675.67",321000,Social Community Care Supplies & Services - Adult
5364181,FOSTERING SOLUTIONS LTD,Childrens Services,Children's Services,Foster Carer Agency Fees,,02/01/2020,"2,924.09",321000,Social Community Care Supplies & Services - Adult
5364758,TRANSPORT FOR GREATER MANCHESTER,Place,Growth,Professional Consultancy Services,,02/01/2020,"3,550.00",360000,Public Transport
5366758,Redacted,Education,Children's Services,Transport Of Post 16 Pupils,,02/01/2020,"1,404.00",360000,Public Transport
5366757,Redacted,Education,Children's Services,Transport Of Pupils,,02/01/2020,"1,620.00",360000,Public Transport
5366759,SOLARWINDS SOFTWARE EUROPE LIMITED,Digital Tameside,Finance & IT,Computer Software Maintenance Costs,,02/01/2020,522,270000,Information Communication Technology
5364180,OLDHAM COUNCIL,Policy and Communications,Governance,Subscriptions,,02/01/2020,"7,401.00",400000,Non 3rd Party spend  
5366736,STEP AHEAD RESOURCE SERVICES,Adult Social Care,Adults,Provision for Supporting People,,02/01/2020,950,321000,Social Community Care Supplies & Services - Adult
5366737,STEP AHEAD RESOURCE SERVICES,Adult Social Care,Adults,Provision for Supporting People,,02/01/2020,950,321000,Social Community Care Supplies & Services - Adult
5366741,STEP AHEAD RESOURCE SERVICES,Adult Social Care,Adults,Provision for Supporting People,,02/01/2020,"1,150.00",321000,Social Community Care Supplies & Services - Adult
5366739,STEP AHEAD RESOURCE SERVICES,Adult Social Care,Adults,Provision for Supporting People,,02/01/2020,"1,150.00",321000,Social Community Care Supplies & Services - Adult
5366740,STEP AHEAD RESOURCE SERVICES,Adult Social Care,Adults,Provision for Supporting People,,02/01/2020,"1,150.00",321000,Social Community Care Supplies & Services - Adult
5366738,STEP AHEAD RESOURCE SERVICES,Adult Social Care,Adults,Provision for Supporting People,,02/01/2020,"1,150.00",321000,Social Community Care Supplies & Services - Adult
5366744,STEP AHEAD RESOURCE SERVICES,Adult Social Care,Adults,Provision for Supporting People,,02/01/2020,950,321000,Social Community Care Supplies & Services - Adult
5366743,STEP AHEAD RESOURCE SERVICES,Adult Social Care,Adults,Provision for Supporting People,,02/01/2020,950,321000,Social Community Care Supplies & Services - Adult
5366761,HUGH MASON PROPERTIES LIMITED,Adult Social Care,Adults,Non-Authority Accommodation Rental,,02/01/2020,"2,436.55",190000,Facilities & Management Services
5366997,Redacted,Childrens Services,Children's Services,Adoption Allowances,,02/01/2020,877.8,-999999,Unclassifiable
5364301,FOUNDATION (CENTRAL SERVICES),Operations and Neighbourhoods,Operations and Neighbourhoods,Supporting People Gross Contract,,02/01/2020,"33,472.00",321000,Social Community Care Supplies & Services - Adult
5364285,CHARANGA LTD,Education,Children's Services,Subscriptions,,02/01/2020,"1,430.00",290000,Arts & Leisure Services
5364266,CITY LIFT SERVICES (NW) LTD,Adult Social Care,Adults,General Equipment Repair & Maintenance,,02/01/2020,"1,820.00",390000,"Works - Construction, Repair & Maintenance"
5364296,LEGGETT PSYCHOLOGY LTD,Education,Children's Services,Professional Services,,02/01/2020,"3,300.00",170000,Education
5364167,CARE 4 CHILDREN RESIDENTIAL SERVICES LTD,Childrens Services,Children's Services,Foster Carer Agency Fees,,02/01/2020,"3,104.91",321100,Social Community Care Supplies & Services - Children
5364162,CARE 4 CHILDREN RESIDENTIAL SERVICES LTD,Childrens Services,Children's Services,Foster Carer Agency Fees,,02/01/2020,"2,881.68",321100,Social Community Care Supplies & Services - Children
5364168,CARE 4 CHILDREN RESIDENTIAL SERVICES LTD,Childrens Services,Children's Services,Foster Carer Agency Fees,,02/01/2020,"3,321.34",321100,Social Community Care Supplies & Services - Children
5363660,CARE 4 CHILDREN RESIDENTIAL SERVICES LTD,Childrens Services,Children's Services,Childrens Homes Outside Local Authority Fees,,02/01/2020,"3,595.07",321100,Social Community Care Supplies & Services - Children
5364165,CARE 4 CHILDREN RESIDENTIAL SERVICES LTD,Childrens Services,Children's Services,Childrens Homes Outside Local Authority Fees,,02/01/2020,"3,595.07",321100,Social Community Care Supplies & Services - Children
5364163,CARE 4 CHILDREN RESIDENTIAL SERVICES LTD,Childrens Services,Children's Services,Foster Carer Agency Fees,,02/01/2020,"2,797.75",321100,Social Community Care Supplies & Services - Children
5364164,Redacted,Childrens Services,Children's Services,Foster Carer Agency Fees,Redacted Supplier,02/01/2020,"4,184.55",321100,Social Community Care Supplies & Services - Children
5364166,CARE 4 CHILDREN RESIDENTIAL SERVICES LTD,Childrens Services,Children's Services,Foster Carer Agency Fees,,02/01/2020,"7,971.34",321100,Social Community Care Supplies & Services - Children
5364240,DALEPEAK LTD,Childrens Services,Children's Services,Childrens Homes Outside Local Authority Fees,,02/01/2020,"13,041.70",329999,Social Community Care Supplies & Services
5364243,DALEPEAK LTD,Childrens Services,Children's Services,Childrens Homes Outside Local Authority Fees,,02/01/2020,"13,041.70",329999,Social Community Care Supplies & Services
5364169,JONES LIGHTING LTD,Operations and Neighbourhoods,Operations and Neighbourhoods,General Materials,,02/01/2020,636.85,359999,Street & Traffic Management
5366883,LIGHTBULB PSYCHOLOGY LTD,Education,Children's Services,Professional Services,,02/01/2020,"1,100.00",150000,Consultancy
5364282,NATIONAL FOSTERING AGENCY LTD,Childrens Services,Children's Services,Foster Carer Agency Fees,,02/01/2020,"2,992.50",321100,Social Community Care Supplies & Services - Children
5364279,NATIONAL FOSTERING AGENCY LTD,Childrens Services,Children's Services,Foster Carer Agency Fees,,02/01/2020,"3,016.20",321100,Social Community Care Supplies & Services - Children
5364278,NATIONAL FOSTERING AGENCY LTD,Childrens Services,Children's Services,Foster Carer Agency Fees,,02/01/2020,"3,114.60",321100,Social Community Care Supplies & Services - Children
5364281,NATIONAL FOSTERING AGENCY LTD,Childrens Services,Children's Services,Foster Carer Agency Fees,,02/01/2020,"3,016.20",321100,Social Community Care Supplies & Services - Children
5364292,Redacted,Education,Children's Services,Professional Services,,02/01/2020,"1,100.00",170000,Education
5365329,MEDACS HEALTHCARE,Adult Social Care,Adults,Homecare Fees,,02/01/2020,"24,891.42",150000,Consultancy
5361506,THE UNIVERSITY OF MANCHESTER,Hosted Services,Hosted Services,Professional Services,,02/01/2020,"8,333.33",UNCLASS,Unclassifiable
5364830,THE UNIVERSITY OF MANCHESTER,People and Workforce Development,Governance,Training Course Costs,,02/01/2020,"3,800.00",UNCLASS,Unclassifiable
5361507,THE UNIVERSITY OF MANCHESTER,Hosted Services,Hosted Services,Professional Services,,02/01/2020,"8,333.33",UNCLASS,Unclassifiable
5364236,PROGRESSIVE CARE LTD,Childrens Services,Children's Services,Childrens Homes Outside Local Authority Fees,,02/01/2020,"5,732.14",321000,Social Community Care Supplies & Services - Adult
5364206,SARABEC LIMITED,Adult Social Care,Adults,It Equipment,,02/01/2020,"3,120.19",321100,Social Community Care Supplies & Services - Children
5366719,M G DOMESTIC,Childrens Services,Children's Services,Fixtures & Fittings Purchase,,02/01/2020,753,160000,Domestic Goods
5364205,ON365,Digital Tameside,Finance & IT,Computer Hardware Rental,,02/01/2020,"1,880.00",270000,Information Communication Technology
5366837,MANLEC ELECTRICAL(MANCHESTER) LTD,Housing,Director of Place,Adaptations - Small Jobs,,02/01/2020,550,390000,"Works - Construction, Repair & Maintenance"
5366584,A & E FURNITURE LTD T.A THE PAVILION,Childrens Services,Children's Services,Fixtures & Fittings Purchase,,02/01/2020,588,210000,Furniture & Soft Furnishings
5364198,PERPETUAL FOSTERING,Childrens Services,Children's Services,Foster Carer Agency Fees,,02/01/2020,"4,340.00",321100,Social Community Care Supplies & Services - Children
5364197,Redacted,Childrens Services,Children's Services,Other Energy Costs,Redacted Supplier,02/01/2020,"1,690.00",250000,Housing Management
5364275,Water Plus,Place,Growth,Metered Water Costs,,02/01/2020,"1,756.10",370000,Utilities
5364277,Water Plus,Place,Growth,Metered Water Costs,,02/01/2020,"2,809.67",370000,Utilities
5364540,ZZ DUP - Keys Group - Prospects for Young People LTD,Childrens Services,Children's Services,Childrens Homes Outside Local Authority Fees,,03/01/2020,"19,928.57",321100,Social Community Care Supplies & Services - Children
5364613,Stars and Dreams Education Ltd,Education,Children's Services,#N/A,,03/01/2020,945,170000,Education
5364803,Complete Care & Enablement Services LTD,Adult Social Care,Adults,Residential Home Long Stay Fees,,03/01/2020,"4,515.80",321000,Social Community Care Supplies & Services - Adult
5364806,Medgen Limited,Childrens Services,Children's Services,Homecare Fees,,03/01/2020,"1,302.00",260000,Human Resources
5364807,Medgen Limited,Childrens Services,Children's Services,Homecare Fees,,03/01/2020,"1,184.40",260000,Human Resources
5364817,Redacted,Childrens Services,Children's Services,Living With Formal Support,Redacted Supplier,03/01/2020,"5,535.71",321000,Social Community Care Supplies & Services - Adult
5364816,Redacted,Childrens Services,Children's Services,Living With Formal Support,Redacted Supplier,03/01/2020,"5,978.55",321000,Social Community Care Supplies & Services - Adult
5364810,Redacted,Education,Children's Services,#N/A,Redacted Supplier,03/01/2020,"1,339.04",170000,Education
5364544,Redacted,Operations and Neighbourhoods,Operations and Neighbourhoods,Other Accomodation Related Costs,Redacted Supplier,03/01/2020,"8,647.50",190000,Facilities & Management Services
5364615,Redacted,Corporate Costs,Corporate Costs,Agency Staff,Redacted Supplier,03/01/2020,"3,214.50",360000,Public Transport
5364702,Redacted,Operations and Neighbourhoods,Operations and Neighbourhoods,Security Services,Redacted Supplier,03/01/2020,540,190000,Facilities & Management Services
5363679,Redacted,Operations and Neighbourhoods,Operations and Neighbourhoods,Professional Medical Services,Redacted Supplier,03/01/2020,711.36,-999999,Unclassifiable
5364428,Redacted,Childrens Services,Children's Services,Living With Formal Support,Redacted Supplier,03/01/2020,"2,192.14",321000,Social Community Care Supplies & Services - Adult
5364513,Redacted,Childrens Services,Children's Services,Professional Services,,03/01/2020,"2,536.36",260000,Human Resources
5366917,ISW CSC Limited,Childrens Services,Children's Services,Living With Formal Support,,03/01/2020,890,260000,Human Resources
5364527,Redacted,Adult Social Care,Adults,Homecare Fees,Redacted Supplier,03/01/2020,"5,218.12",310000,Healthcare
5364706,Redacted,Adult Social Care,Adults,Homecare Fees,Redacted Supplier,03/01/2020,"5,279.60",310000,Healthcare
5364485,Redacted,Childrens Services,Children's Services,Living With Formal Support,Redacted Supplier,03/01/2020,850,321100,Social Community Care Supplies & Services - Children
5364714,CFS CARE LIMITED,Childrens Services,Children's Services,Living With Formal Support,,03/01/2020,"4,500.00",321100,Social Community Care Supplies & Services - Children
5364700,Redacted,Childrens Services,Children's Services,Living With Formal Support,Redacted Supplier,03/01/2020,"4,504.50",321100,Social Community Care Supplies & Services - Children
5364705,CFS CARE LIMITED,Childrens Services,Children's Services,Living With Formal Support,,03/01/2020,"4,504.50",321100,Social Community Care Supplies & Services - Children
5364719,CFS CARE LIMITED,Childrens Services,Children's Services,Foster Carer Agency Fees,,03/01/2020,"3,157.14",321100,Social Community Care Supplies & Services - Children
5364708,CFS CARE LIMITED,Childrens Services,Children's Services,Living With Formal Support,,03/01/2020,"4,719.00",321100,Social Community Care Supplies & Services - Children
5364699,CFS CARE LIMITED,Childrens Services,Children's Services,Living With Formal Support,,03/01/2020,"4,719.00",321100,Social Community Care Supplies & Services - Children
5364742,PENNINE CARE NHS TRUST,Education,Children's Services,Professional Services,,03/01/2020,740.2,321000,Social Community Care Supplies & Services - Adult
5364743,PENNINE CARE NHS TRUST,Population Health,Population Health,Professional Services,,03/01/2020,"85,245.02",321000,Social Community Care Supplies & Services - Adult
5364744,PENNINE CARE NHS TRUST,Population Health,Population Health,Professional Services,,03/01/2020,"16,941.73",321000,Social Community Care Supplies & Services - Adult
5364739,PENNINE CARE NHS TRUST,Population Health,Population Health,Professional Services,,03/01/2020,"8,207.44",321000,Social Community Care Supplies & Services - Adult
5364740,Beacon Counselling,People and Workforce Development,Governance,Professional Medical Services,,03/01/2020,"3,640.00",310000,Healthcare
5364729,G2V Recruitment Group Limited t/a Vivid Resourcing,Place,Growth,Agency Staff,,03/01/2020,"2,500.00",280000,Legal Services
5364725,G2V Recruitment Group Limited t/a Vivid Resourcing,Place,Growth,Agency Staff,,03/01/2020,"1,875.00",280000,Legal Services
5366750,Redacted,Childrens Services,Children's Services,Professional Services,,03/01/2020,"1,740.00",-999999,Unclassifiable
5364730,Cromwood Housing Ltd,Operations and Neighbourhoods,Operations and Neighbourhoods,General Materials,,03/01/2020,"1,590.00",250000,Housing Management
5364524,Accountants In Demand t/a The Finegreen Group,Place,Growth,Agency Staff,,03/01/2020,"2,400.00",260000,Human Resources
5364732,Vestacare (UK) Limited,Adult Social Care,Adults,Independent Sector Residential Care Fees,,03/01/2020,"1,464.30",321000,Social Community Care Supplies & Services - Adult
5364829,Redacted,Education,Children's Services,#N/A,,03/01/2020,840,170000,Education
5366486,Dipak Distri (Light of Vision),Adult Social Care,Adults,Voluntary Organisations Fees,,03/01/2020,"2,500.00",400000,Non 3rd Party spend  
5364741,Pure Care Homes Ltd,Childrens Services,Children's Services,Childrens Homes Outside Local Authority Fees,,03/01/2020,"4,714.30",321000,Social Community Care Supplies & Services - Adult
5364775,ADOPTION MATTERS NORTHWEST,Childrens Services,Children's Services,Adoption Agency Fees,,03/01/2020,"19,600.00",321100,Social Community Care Supplies & Services - Children
5364785,NETCARE EUROPE LTD,Digital Tameside,Finance & IT,It Control Room Equipment,,03/01/2020,"5,295.00",-999999,Unclassifiable
5364479,WF Education Group Limited t/a Gresswell,Operations and Neighbourhoods,Operations and Neighbourhoods,Other Accomodation Related Costs,,03/01/2020,540,170000,Education
5364753,SAFEHOUSES NORTH LIMITED,Childrens Services,Children's Services,Foster Carer Agency Fees,,03/01/2020,"3,759.99",321100,Social Community Care Supplies & Services - Children
5364752,SAFEHOUSES NORTH LIMITED,Childrens Services,Children's Services,Foster Carer Agency Fees,,03/01/2020,"3,571.82",321100,Social Community Care Supplies & Services - Children
5364756,ZZ DUP - KEYS CHILDCARE LTD,Childrens Services,Children's Services,Childrens Homes Outside Local Authority Fees,,03/01/2020,"15,721.43",321100,Social Community Care Supplies & Services - Children
5367012,MOSSLEY PRIVATE HIRE,Education,Children's Services,Transport Of Pupils,,03/01/2020,"1,875.00",360000,Public Transport
5367018,MOSSLEY PRIVATE HIRE,Education,Children's Services,Transport Of Pupils,,03/01/2020,"2,250.00",360000,Public Transport
5367013,MOSSLEY PRIVATE HIRE,Education,Children's Services,Transport Of Pupils,,03/01/2020,"2,250.00",360000,Public Transport
5367016,MOSSLEY PRIVATE HIRE,Operations and Neighbourhoods,Operations and Neighbourhoods,Hired Transport,,03/01/2020,"2,362.50",360000,Public Transport
5367010,MOSSLEY PRIVATE HIRE,Education,Children's Services,Transport Of Pupils,,03/01/2020,"1,875.00",360000,Public Transport
5367011,MOSSLEY PRIVATE HIRE,Education,Children's Services,Transport Of Pupils,,03/01/2020,"1,875.00",360000,Public Transport
5367015,MOSSLEY PRIVATE HIRE,Education,Children's Services,Transport Of Pupils,,03/01/2020,"1,050.00",360000,Public Transport
5367019,MOSSLEY PRIVATE HIRE,Education,Children's Services,Transport Of Ola Pupils,,03/01/2020,"1,935.00",360000,Public Transport
5367014,MOSSLEY PRIVATE HIRE,Education,Children's Services,Transport Of Pupils,,03/01/2020,"1,762.50",360000,Public Transport
5364497,HALLIWELL HOMES,Childrens Services,Children's Services,Childrens Homes Outside Local Authority Fees,,03/01/2020,"21,235.00",321100,Social Community Care Supplies & Services - Children
5364495,HALLIWELL HOMES,Childrens Services,Children's Services,Childrens Homes Outside Local Authority Fees,,03/01/2020,"21,235.00",321100,Social Community Care Supplies & Services - Children
5364559,CARE QUALITY COMMISSION,Adult Social Care,Adults,Subscriptions,,03/01/2020,"19,593.00",200000,Financial Services
5364840,Randstad Public Services Limited,Education,Children's Services,Agency Staff,,03/01/2020,"2,251.83",170000,Education
5364763,TELEFONICA O2 (UK) LTD,Digital Tameside,Finance & IT,Mobile Telephones,,03/01/2020,509,270000,Information Communication Technology
5364761,TELEFONICA O2 (UK) LTD,Digital Tameside,Finance & IT,Mobile Telephones,,03/01/2020,869,270000,Information Communication Technology
5364762,TELEFONICA O2 (UK) LTD,Digital Tameside,Finance & IT,Mobile Telephones,,03/01/2020,"1,990.00",270000,Information Communication Technology
5362515,KALAMAZOO SECURE SOLUTIONS LTD,Finance,Finance & IT,Printing And Stationery,,03/01/2020,660,190000,Facilities & Management Services
5364783,LINK ASSET SERVICES,Finance,Finance & IT,Professional Services,,03/01/2020,"14,550.00",200000,Financial Services
5364844,SOFTCAT LIMITED,GMPF (FX),GMPF (FX),Computer Hardware Maintenance Costs,,03/01/2020,"1,031.58",270000,Information Communication Technology
5364520,POSTAGE BY PHONE PITNEY BOWES LTD,Exchequer,Governance,Postages,,03/01/2020,"40,000.00",300000,Mail Services
5364880,PROFILE SECURITY SERVICES LIMITED,Place,Growth,Security Services,,03/01/2020,"2,219.04",190000,Facilities & Management Services
5366886,NORTHERN PROPERTIES LTD,Adult Social Care,Adults,Non-Authority Accommodation Rental,,03/01/2020,"1,934.79",190000,Facilities & Management Services
5366658,Park Lane Minibuses LTD,Education,Children's Services,Transport Of Pupils,,03/01/2020,"1,930.20",360000,Public Transport
5366657,Park Lane Minibuses LTD,Operations and Neighbourhoods,Operations and Neighbourhoods,Hired Transport,,03/01/2020,"2,954.16",360000,Public Transport
5366659,Park Lane Minibuses LTD,Education,Children's Services,Transport Of Ola Pupils,,03/01/2020,"2,076.75",360000,Public Transport
5366634,Park Lane Minibuses LTD,Education,Children's Services,Transport Of Pupils,,03/01/2020,"2,136.00",360000,Public Transport
5366637,Park Lane Minibuses LTD,Education,Children's Services,Transport Of Post 16 Pupils,,03/01/2020,803,360000,Public Transport
5366640,Park Lane Minibuses LTD,Education,Children's Services,Transport Of Post 16 Pupils,,03/01/2020,"1,557.00",360000,Public Transport
5364773,DAISY COMMUNICATIONS LTD,Digital Tameside,Finance & IT,Telephone Landline Costs,,03/01/2020,"4,155.33",908001,Public Bodies
5364746,THE GUINNESS PARTNERSHIP LTD,Adult Social Care,Adults,Non-Authority Accommodation Rental,,03/01/2020,"1,204.65",250000,Housing Management
5364749,THE GUINNESS PARTNERSHIP LTD,Adult Social Care,Adults,Non-Authority Accommodation Rental,,03/01/2020,"4,093.76",250000,Housing Management
5364888,BY THE BRIDGE NORTH WEST LTD,Childrens Services,Children's Services,Foster Carer Agency Fees,,03/01/2020,"4,670.68",908001,Public Bodies
5364504,TONGUE TIED (MANCHESTER) LTD,Childrens Services,Children's Services,Professional Services,,03/01/2020,"2,102.00",150000,Consultancy
5366682,Eden Brown LTD,Childrens Services,Children's Services,Agency Staff,,03/01/2020,"2,598.30",-999999,Unclassifiable
5364408,THREE CIRCLES FOSTERING LTD,Childrens Services,Children's Services,Foster Carer Agency Fees,,03/01/2020,"2,692.07",321100,Social Community Care Supplies & Services - Children
5364394,THREE CIRCLES FOSTERING LTD,Childrens Services,Children's Services,Foster Carer Agency Fees,,03/01/2020,"3,578.57",321100,Social Community Care Supplies & Services - Children
5364503,THREE CIRCLES FOSTERING LTD,Childrens Services,Children's Services,Foster Carer Agency Fees,,03/01/2020,"3,420.00",321100,Social Community Care Supplies & Services - Children
5364412,THREE CIRCLES FOSTERING LTD,Childrens Services,Children's Services,Foster Carer Agency Fees,,03/01/2020,"3,420.00",321100,Social Community Care Supplies & Services - Children
5364405,THREE CIRCLES FOSTERING LTD,Childrens Services,Children's Services,Foster Carer Agency Fees,,03/01/2020,"3,278.57",321100,Social Community Care Supplies & Services - Children
5364411,THREE CIRCLES FOSTERING LTD,Childrens Services,Children's Services,Foster Carer Agency Fees,,03/01/2020,"1,710.39",321100,Social Community Care Supplies & Services - Children
5364400,THREE CIRCLES FOSTERING LTD,Childrens Services,Children's Services,Foster Carer Agency Fees,,03/01/2020,"1,744.29",321100,Social Community Care Supplies & Services - Children
5364407,THREE CIRCLES FOSTERING LTD,Childrens Services,Children's Services,Foster Carer Agency Fees,,03/01/2020,"2,807.14",321100,Social Community Care Supplies & Services - Children
5364403,THREE CIRCLES FOSTERING LTD,Childrens Services,Children's Services,Foster Carer Agency Fees,,03/01/2020,"5,130.00",321100,Social Community Care Supplies & Services - Children
5364398,THREE CIRCLES FOSTERING LTD,Childrens Services,Children's Services,Foster Carer Agency Fees,,03/01/2020,"3,420.00",321100,Social Community Care Supplies & Services - Children
5364410,THREE CIRCLES FOSTERING LTD,Childrens Services,Children's Services,Foster Carer Agency Fees,,03/01/2020,"2,978.57",321100,Social Community Care Supplies & Services - Children
5364397,THREE CIRCLES FOSTERING LTD,Childrens Services,Children's Services,Foster Carer Agency Fees,,03/01/2020,"3,420.00",321100,Social Community Care Supplies & Services - Children
5364516,CITY LIFT SERVICES (NW) LTD,Adult Social Care,Adults,General Equipment Repair & Maintenance,,03/01/2020,"14,110.00",390000,"Works - Construction, Repair & Maintenance"
5364894,SANDERSON WEATHERALL,Operations and Neighbourhoods,Operations and Neighbourhoods,Fees,,03/01/2020,"1,995.00",-999999,Unclassifiable
5366926,GETRONICS SERVICES UK LIMITED,Digital Tameside,Finance & IT,It Control Room Equipment,,03/01/2020,"2,300.00",270000,Information Communication Technology
5364447,TURNING POINT,Adult Social Care,Adults,Homecare Fees,,03/01/2020,"1,820.90",321000,Social Community Care Supplies & Services - Adult
5364515,COMPLETE BACKGROUND SCREENING LTD,People and Workforce Development,Governance,Professional Services,,03/01/2020,"1,870.50",-999999,Unclassifiable
5364760,HEATHCOTES M LTD,Adult Social Care,Adults,Supporting People Gross Contract,,03/01/2020,"9,370.95",321000,Social Community Care Supplies & Services - Adult
5364507,PLATINUM STAIRLIFTS LIMITED,Housing,Director of Place,Improvement Grants - Final Mandatory,,03/01/2020,"2,015.00",321000,Social Community Care Supplies & Services - Adult
5364509,PLATINUM STAIRLIFTS LIMITED,Place,Growth,Improvement Grants - Final Mandatory,,03/01/2020,"3,867.56",321000,Social Community Care Supplies & Services - Adult
5364767,CAROLYN EYRE T/A EYRE SAFEGUARDING SERVICES LTD,Childrens Services,Children's Services,Professional Services,,03/01/2020,724.9,260000,Human Resources
5366164,ROWAN ASHWORTH LIMITED,Engineers Client,Director of Place,Engineers Works,,03/01/2020,"5,950.00",-999999,Unclassifiable
5364901,CCW CARE LTD,Adult Social Care,Adults,Professional Services,,03/01/2020,550,260000,Human Resources
5364636,ORACLE CARE LTD,Childrens Services,Children's Services,Childrens Homes Outside Local Authority Fees,,03/01/2020,"3,045.00",321100,Social Community Care Supplies & Services - Children
5364452,CIPFA - PENNA (PENNA PLC),Place,Growth,Agency Staff,,03/01/2020,"11,900.00",260000,Human Resources
5366688,INSPIREDSPACES TAMESIDE LTD,(blank),(blank),Asbestos Removal,,03/01/2020,"6,125.50",390000,"Works - Construction, Repair & Maintenance"
5366694,INSPIREDSPACES TAMESIDE LTD,(blank),(blank),Asbestos Removal,,03/01/2020,"9,006.23",390000,"Works - Construction, Repair & Maintenance"
5366500,INSPIREDSPACES TAMESIDE LTD,Asset & Investment Partnership Management,Growth,Free School Meal Costs,,03/01/2020,"3,640.90",390000,"Works - Construction, Repair & Maintenance"
5366690,INSPIREDSPACES TAMESIDE LTD,(blank),(blank),Asbestos Removal,,03/01/2020,"9,287.81",390000,"Works - Construction, Repair & Maintenance"
5366506,INSPIREDSPACES TAMESIDE LTD,Asset & Investment Partnership Management,Growth,Utilities,,03/01/2020,"5,973.00",390000,"Works - Construction, Repair & Maintenance"
5366502,INSPIREDSPACES TAMESIDE LTD,Asset & Investment Partnership Management,Growth,PFI FM Fees and Insurance Costs,,03/01/2020,"27,404.11",390000,"Works - Construction, Repair & Maintenance"
5366503,INSPIREDSPACES TAMESIDE LTD,Asset & Investment Partnership Management,Growth,PFI FM Fees and Insurance Costs,,03/01/2020,"23,880.07",390000,"Works - Construction, Repair & Maintenance"
5366504,INSPIREDSPACES TAMESIDE LTD,Asset & Investment Partnership Management,Growth,Non-Authority Accommodation Rental,,03/01/2020,"27,404.11",390000,"Works - Construction, Repair & Maintenance"
5366501,INSPIREDSPACES TAMESIDE LTD,Asset & Investment Partnership Management,Growth,Utilities,,03/01/2020,"5,973.00",390000,"Works - Construction, Repair & Maintenance"
5366499,INSPIREDSPACES TAMESIDE LTD,Asset & Investment Partnership Management,Growth,PFI FM Fees and Insurance Costs,,03/01/2020,"23,880.07",390000,"Works - Construction, Repair & Maintenance"
5364655,ROAD SAFETY SERVICES LTD,Operations and Neighbourhoods,Operations and Neighbourhoods,Professional Entertainment Services,,03/01/2020,930,290000,Arts & Leisure Services
5364904,CARETECH COMMUNITY SERVICES LIMITED,Adult Social Care,Adults,Residential Home Long Stay Fees,,03/01/2020,"6,605.20",321000,Social Community Care Supplies & Services - Adult
5364909,CARETECH COMMUNITY SERVICES LIMITED,Adult Social Care,Adults,Residential Home Long Stay Fees,,03/01/2020,"2,830.80",321000,Social Community Care Supplies & Services - Adult
5364906,CARETECH COMMUNITY SERVICES LIMITED,Adult Social Care,Adults,Residential Home Long Stay Fees,,03/01/2020,"6,605.20",321000,Social Community Care Supplies & Services - Adult
5364899,CARETECH COMMUNITY SERVICES LIMITED,Adult Social Care,Adults,Residential Home Long Stay Fees,,03/01/2020,"3,774.40",321000,Social Community Care Supplies & Services - Adult
5364910,Redacted,Adult Social Care,Adults,Residential Home Long Stay Fees,Redacted Supplier,03/01/2020,"2,830.80",321000,Social Community Care Supplies & Services - Adult
5364907,CARETECH COMMUNITY SERVICES LIMITED,Adult Social Care,Adults,Residential Home Long Stay Fees,,03/01/2020,"2,099.52",321000,Social Community Care Supplies & Services - Adult
5364903,CARETECH COMMUNITY SERVICES LIMITED,Adult Social Care,Adults,Residential Home Long Stay Fees,,03/01/2020,"3,302.60",321000,Social Community Care Supplies & Services - Adult
5364905,CARETECH COMMUNITY SERVICES LIMITED,Adult Social Care,Adults,Residential Home Long Stay Fees,,03/01/2020,"5,142.64",321000,Social Community Care Supplies & Services - Adult
5364919,THE ADOLESCENT & CHILDRENS TRUST,Childrens Services,Children's Services,Foster Carer Agency Fees,,03/01/2020,"3,322.20",321100,Social Community Care Supplies & Services - Children
5364920,THE ADOLESCENT & CHILDRENS TRUST,Childrens Services,Children's Services,Foster Carer Agency Fees,,03/01/2020,"3,220.50",321100,Social Community Care Supplies & Services - Children
5364924,THE ADOLESCENT & CHILDRENS TRUST,Childrens Services,Children's Services,Foster Carer Agency Fees,,03/01/2020,"3,240.00",321100,Social Community Care Supplies & Services - Children
5364863,THE ADOLESCENT & CHILDRENS TRUST,Childrens Services,Children's Services,Foster Carer Agency Fees,,03/01/2020,"3,175.20",321100,Social Community Care Supplies & Services - Children
5364496,BARNARDO SERVICES LIMITED,Childrens Services,Children's Services,Professional Services,,03/01/2020,"18,555.83",321100,Social Community Care Supplies & Services - Children
5364448,Redacted,Exchequer,Governance,Printing And Stationery,Redacted Supplier,03/01/2020,"1,204.87",300000,Mail Services
5364448,DHL Parcel UK Ltd (UK Mail),Exchequer,Governance,,,03/01/2020,"1,204.87",300000,Mail Services
5364860,Northern Community Pathways Limited,Childrens Services,Children's Services,Living With Formal Support,,03/01/2020,"2,940.00",321100,Social Community Care Supplies & Services - Children
5364861,Northern Community Pathways Limited,Childrens Services,Children's Services,Living With Formal Support,,03/01/2020,"2,540.00",321100,Social Community Care Supplies & Services - Children
5364857,Redacted,Childrens Services,Children's Services,Living With Formal Support,Business Payment,03/01/2020,"16,200.00",321100,Social Community Care Supplies & Services - Children
5364859,Northern Community Pathways Limited,Childrens Services,Children's Services,Living With Formal Support,,03/01/2020,"3,714.40",321100,Social Community Care Supplies & Services - Children
5364862,Northern Community Pathways Limited,Childrens Services,Children's Services,Living With Formal Support,,03/01/2020,"2,600.00",321100,Social Community Care Supplies & Services - Children
5366577,Hyde Accessible Transport Limited,Operations and Neighbourhoods,Operations and Neighbourhoods,Hired Transport,,03/01/2020,"1,500.00",360000,Public Transport
5366582,Hyde Accessible Transport Limited,Education,Children's Services,Transport Of Post 16 Pupils,,03/01/2020,"1,350.00",360000,Public Transport
5366554,Hyde Accessible Transport Limited,Education,Children's Services,Transport Of Ola Pupils,,03/01/2020,"1,387.50",360000,Public Transport
5366570,Redacted,Education,Children's Services,Transport Of Pupils,Redacted Supplier,03/01/2020,"1,500.00",360000,Public Transport
5366583,Hyde Accessible Transport Limited,Education,Children's Services,Transport Of Pupils,,03/01/2020,"1,875.00",360000,Public Transport
5366572,Hyde Accessible Transport Limited,Education,Children's Services,Transport Of Pupils,,03/01/2020,"1,875.00",360000,Public Transport
5366578,Hyde Accessible Transport Limited,Operations and Neighbourhoods,Operations and Neighbourhoods,Hired Transport,,03/01/2020,"1,942.50",360000,Public Transport
5366547,Hyde Accessible Transport Limited,Education,Children's Services,Transport Of Ola Pupils,,03/01/2020,"1,942.50",360000,Public Transport
5366556,Hyde Accessible Transport Limited,Education,Children's Services,Transport Of Ola Pupils,,03/01/2020,"2,115.00",360000,Public Transport
5366532,Hyde Accessible Transport Limited,Education,Children's Services,Transport Of Pupils,,03/01/2020,787.5,360000,Public Transport
5366550,Hyde Accessible Transport Limited,Education,Children's Services,Transport Of Post 16 Pupils,,03/01/2020,"1,462.50",360000,Public Transport
5366534,Hyde Accessible Transport Limited,Education,Children's Services,Transport Of Post 16 Pupils,,03/01/2020,"1,462.50",360000,Public Transport
5366563,Redacted,Education,Children's Services,Transport Of Pupils,Redacted Supplier,03/01/2020,"2,250.00",360000,Public Transport
5366559,Hyde Accessible Transport Limited,Education,Children's Services,Transport Of Pupils,,03/01/2020,"1,125.00",360000,Public Transport
5366549,Hyde Accessible Transport Limited,Education,Children's Services,Transport Of Post 16 Pupils,,03/01/2020,"1,625.00",360000,Public Transport
5366569,Hyde Accessible Transport Limited,Education,Children's Services,Transport Of Pupils,,03/01/2020,"1,687.50",360000,Public Transport
5366529,Hyde Accessible Transport Limited,Education,Children's Services,Transport Of Pupils,,03/01/2020,"1,687.50",360000,Public Transport
5366552,Hyde Accessible Transport Limited,Education,Children's Services,Transport Of Post 16 Pupils,,03/01/2020,975,360000,Public Transport
5366523,Hyde Accessible Transport Limited,Education,Children's Services,Transport Of Pupils,,03/01/2020,"1,012.50",360000,Public Transport
5366565,Hyde Accessible Transport Limited,Education,Children's Services,Transport Of Ola Pupils,,03/01/2020,"2,025.00",360000,Public Transport
5366557,Hyde Accessible Transport Limited,Education,Children's Services,Transport Of Pupils,,03/01/2020,"1,875.00",360000,Public Transport
5366566,Hyde Accessible Transport Limited,Education,Children's Services,Transport Of Pupils,,03/01/2020,"1,875.00",360000,Public Transport
5366528,Hyde Accessible Transport Limited,Education,Children's Services,Transport Of Pupils,,03/01/2020,"1,875.00",360000,Public Transport
5366518,Hyde Accessible Transport Limited,Education,Children's Services,Transport Of Pupils,,03/01/2020,"1,050.00",360000,Public Transport
5366571,Hyde Accessible Transport Limited,Education,Children's Services,Transport Of Pupils,,03/01/2020,"1,875.00",360000,Public Transport
5366568,Hyde Accessible Transport Limited,Education,Children's Services,Transport Of Pupils,,03/01/2020,"1,687.50",360000,Public Transport
5366564,Hyde Accessible Transport Limited,Education,Children's Services,Transport Of Pupils,,03/01/2020,"1,687.50",360000,Public Transport
5366525,Hyde Accessible Transport Limited,Education,Children's Services,Transport Of Pupils,,03/01/2020,"1,687.50",360000,Public Transport
5366561,Redacted,Education,Children's Services,Transport Of Pupils,Redacted Supplier,03/01/2020,"1,687.50",360000,Public Transport
5366543,Hyde Accessible Transport Limited,Education,Children's Services,Transport Of Pupils,,03/01/2020,"1,312.50",360000,Public Transport
5366575,Hyde Accessible Transport Limited,Education,Children's Services,Transport Of Pupils,,03/01/2020,"1,125.00",360000,Public Transport
5366581,Hyde Accessible Transport Limited,Education,Children's Services,Transport Of Ola Pupils,,03/01/2020,"1,350.00",360000,Public Transport
5366519,Hyde Accessible Transport Limited,Education,Children's Services,Transport Of Pupils,,03/01/2020,"1,350.00",360000,Public Transport
5366580,Hyde Accessible Transport Limited,Education,Children's Services,Transport Of Pupils,,03/01/2020,"1,350.00",360000,Public Transport
5366558,Hyde Accessible Transport Limited,Education,Children's Services,Transport Of Pupils,,03/01/2020,"1,350.00",360000,Public Transport
5366545,Hyde Accessible Transport Limited,Education,Children's Services,Transport Of Post 16 Pupils,,03/01/2020,975,360000,Public Transport
5364491,Oasis Adolescent Services,Childrens Services,Children's Services,Childrens Homes Outside Local Authority Fees,,03/01/2020,"22,142.99",-999999,Unclassifiable
5364499,Greatwood House t/a Meridian Healthcare LTD,Adult Social Care,Adults,Nursing Home Long Stay Fees,,03/01/2020,"22,358.79",321000,Social Community Care Supplies & Services - Adult
5364696,Footsteps Psychology,Education,Children's Services,Professional Services,,03/01/2020,"1,100.00",-999999,Unclassifiable
5366641,STOCKPORT MBC,Place,Growth,Agency Staff,,03/01/2020,"6,655.04",321100,Social Community Care Supplies & Services - Children
5364685,ARCO LIMITED,Operations and Neighbourhoods,Operations and Neighbourhoods,Protective Clothing,,03/01/2020,"11,620.35",140000,Clothing
5364482,STOCKPORT CP  SOCIETY,Adult Social Care,Adults,Day Centre Fees,,03/01/2020,"1,108.80",321000,Social Community Care Supplies & Services - Adult
5364478,STOCKPORT CP  SOCIETY,Adult Social Care,Adults,Homecare Fees,,03/01/2020,"1,500.00",321000,Social Community Care Supplies & Services - Adult
5364683,XMA LIMITED,Digital Tameside,Finance & IT,It Equipment,,03/01/2020,"26,250.00",270000,Information Communication Technology
5364681,MOSSCARE HOUSING LTD,Adult Social Care,Adults,Non-Authority Accommodation Rental,,03/01/2020,"29,609.24",321000,Social Community Care Supplies & Services - Adult
5364834,THE UNIVERSITY OF MANCHESTER,People and Workforce Development,Governance,Training Course Costs,,03/01/2020,"3,800.00",UNCLASS,Unclassifiable
5364832,THE UNIVERSITY OF MANCHESTER,People and Workforce Development,Governance,Training Course Costs,,03/01/2020,"1,900.00",UNCLASS,Unclassifiable
5364473,INSIGHT MEDIA INTERNET LTD,Operations and Neighbourhoods,Operations and Neighbourhoods,Computer Software,,03/01/2020,"2,829.60",270000,Information Communication Technology
5366752,RICHARD L THOMAS ASSOCIATES LTD,Place,Growth,Engineers Works,,03/01/2020,"11,000.00",UNCLASS,Unclassifiable
5364450,THE TOGETHER TRUST,Education,Children's Services,Non-Maintained School Fees,,03/01/2020,"20,373.33",321100,Social Community Care Supplies & Services - Children
5364470,THE TOGETHER TRUST,Education,Children's Services,Voluntary Organisations Fees,,03/01/2020,"3,350.00",321100,Social Community Care Supplies & Services - Children
5365631,ULVERSCROFT LARGE PRINT  BOOKS LTD,Operations and Neighbourhoods,Operations and Neighbourhoods,Purchase Books,,03/01/2020,"1,318.04",170000,Education
5364457,CAPITA BUSINESS SERVICES LIMITED,Childrens Services,Children's Services,Training Course Costs,,03/01/2020,"6,436.94",270000,Information Communication Technology
5364340,CAPSTONE FOSTER CARE,Childrens Services,Children's Services,Foster Carer Agency Fees,,03/01/2020,"3,924.02",321000,Social Community Care Supplies & Services - Adult
5364319,CAPSTONE FOSTER CARE,Childrens Services,Children's Services,Foster Carer Agency Fees,,03/01/2020,"3,534.00",321000,Social Community Care Supplies & Services - Adult
5364628,CAPSTONE FOSTER CARE,Childrens Services,Children's Services,Foster Carer Agency Fees,,03/01/2020,"3,405.66",321000,Social Community Care Supplies & Services - Adult
5364316,CAPSTONE FOSTER CARE,Childrens Services,Children's Services,Foster Carer Agency Fees,,03/01/2020,"3,534.00",321000,Social Community Care Supplies & Services - Adult
5364320,CAPSTONE FOSTER CARE,Childrens Services,Children's Services,Foster Carer Agency Fees,,03/01/2020,"3,288.74",321000,Social Community Care Supplies & Services - Adult
5364331,CAPSTONE FOSTER CARE,Childrens Services,Children's Services,Foster Carer Agency Fees,,03/01/2020,"3,283.83",321000,Social Community Care Supplies & Services - Adult
5364629,CAPSTONE FOSTER CARE,Childrens Services,Children's Services,Foster Carer Agency Fees,,03/01/2020,"3,809.86",321000,Social Community Care Supplies & Services - Adult
5364630,CAPSTONE FOSTER CARE,Childrens Services,Children's Services,Foster Carer Agency Fees,,03/01/2020,"3,405.66",321000,Social Community Care Supplies & Services - Adult
5364323,CAPSTONE FOSTER CARE,Childrens Services,Children's Services,Foster Carer Agency Fees,,03/01/2020,"3,924.02",321000,Social Community Care Supplies & Services - Adult
5364334,CAPSTONE FOSTER CARE,Childrens Services,Children's Services,Foster Carer Agency Fees,,03/01/2020,"3,809.86",321000,Social Community Care Supplies & Services - Adult
5364329,CAPSTONE FOSTER CARE,Childrens Services,Children's Services,Foster Carer Agency Fees,,03/01/2020,"3,809.86",321000,Social Community Care Supplies & Services - Adult
5364333,CAPSTONE FOSTER CARE,Childrens Services,Children's Services,Foster Carer Agency Fees,,03/01/2020,"3,809.86",321000,Social Community Care Supplies & Services - Adult
5364313,CAPSTONE FOSTER CARE,Childrens Services,Children's Services,Foster Carer Agency Fees,,03/01/2020,"3,498.66",321000,Social Community Care Supplies & Services - Adult
5364341,CAPSTONE FOSTER CARE,Childrens Services,Children's Services,Foster Carer Agency Fees,,03/01/2020,"3,924.02",321000,Social Community Care Supplies & Services - Adult
5364339,CAPSTONE FOSTER CARE,Childrens Services,Children's Services,Foster Carer Agency Fees,,03/01/2020,"3,963.66",321000,Social Community Care Supplies & Services - Adult
5364318,CAPSTONE FOSTER CARE,Childrens Services,Children's Services,Foster Carer Agency Fees,,03/01/2020,"3,963.66",321000,Social Community Care Supplies & Services - Adult
5364315,CAPSTONE FOSTER CARE,Childrens Services,Children's Services,Foster Carer Agency Fees,,03/01/2020,"3,534.00",321000,Social Community Care Supplies & Services - Adult
5364322,CAPSTONE FOSTER CARE,Childrens Services,Children's Services,Foster Carer Agency Fees,,03/01/2020,"3,963.66",321000,Social Community Care Supplies & Services - Adult
5364337,CAPSTONE FOSTER CARE,Childrens Services,Children's Services,Foster Carer Agency Fees,,03/01/2020,"3,283.83",321000,Social Community Care Supplies & Services - Adult
5364328,CAPSTONE FOSTER CARE,Childrens Services,Children's Services,Foster Carer Agency Fees,,03/01/2020,"3,283.83",321000,Social Community Care Supplies & Services - Adult
5364332,CAPSTONE FOSTER CARE,Childrens Services,Children's Services,Foster Carer Agency Fees,,03/01/2020,"3,283.83",321000,Social Community Care Supplies & Services - Adult
5364925,GIBSONS GARDEN MACHINERY LIMITED,Operations and Neighbourhoods,Operations and Neighbourhoods,Core Hire,,03/01/2020,"6,000.00",240000,Horticultural
5364852,GIBSONS GARDEN MACHINERY LIMITED,Operations and Neighbourhoods,Operations and Neighbourhoods,General Equipment Purchase,,03/01/2020,"5,300.00",240000,Horticultural
5364623,SWIIS FOSTER CARE LTD,Childrens Services,Children's Services,Foster Carer Agency Fees,,03/01/2020,899.99,321100,Social Community Care Supplies & Services - Children
5364619,SWIIS FOSTER CARE LTD,Childrens Services,Children's Services,Foster Carer Agency Fees,,03/01/2020,796.11,321100,Social Community Care Supplies & Services - Children
5364620,SWIIS FOSTER CARE LTD,Childrens Services,Children's Services,Foster Carer Agency Fees,,03/01/2020,796.11,321100,Social Community Care Supplies & Services - Children
5364621,SWIIS FOSTER CARE LTD,Childrens Services,Children's Services,Foster Carer Agency Fees,,03/01/2020,760.48,321100,Social Community Care Supplies & Services - Children
5364622,SWIIS FOSTER CARE LTD,Childrens Services,Children's Services,Foster Carer Agency Fees,,03/01/2020,693.49,321100,Social Community Care Supplies & Services - Children
5364618,SWIIS FOSTER CARE LTD,Childrens Services,Children's Services,Foster Carer Agency Fees,,03/01/2020,703.92,321100,Social Community Care Supplies & Services - Children
5364617,SWIIS FOSTER CARE LTD,Childrens Services,Children's Services,Foster Carer Agency Fees,,03/01/2020,658.84,321100,Social Community Care Supplies & Services - Children
460389,CHARNLEY HOUSE LIMITED,Adult Social Care,Adults,Nursing Home Long Stay Fees,,03/01/2020,"17,245.98",321000,Social Community Care Supplies & Services - Adult
5366863,ROYALE MINICOACHES,Education,Children's Services,Transport Of Pupils,,03/01/2020,"1,560.00",UNCLASS,Unclassifiable
5366905,JIGSAW HOMES GROUP,Operations and Neighbourhoods,Operations and Neighbourhoods,Other Accomodation Related Costs,,03/01/2020,830.06,321000,Social Community Care Supplies & Services - Adult
5364664,P MCGUINNESS & CO LTD,Place,Growth,Engineers Works,,03/01/2020,620,390000,"Works - Construction, Repair & Maintenance"
5364929,PROMOTO LOGO,Operations and Neighbourhoods,Operations and Neighbourhoods,General Materials,,03/01/2020,"1,142.10",190000,Facilities & Management Services
5364627,BEDSPACE RESOURCE LTD,Childrens Services,Children's Services,Living With Formal Support,,03/01/2020,600,250000,Housing Management
5366314,MHR International UK Limited,People and Workforce Development,Governance,Professional Consultancy Services,,03/01/2020,"3,800.00",270000,Information Communication Technology
5364532,TAMESIDE CITIZENS ADVICE BUREAU LTD,Operations and Neighbourhoods,Operations and Neighbourhoods,Grants to Citizens' Advice Bureau,,03/01/2020,"9,666.67",908001,Public Bodies
5364531,FOSTER CARES LTD,Childrens Services,Children's Services,Foster Carer Agency Fees,,03/01/2020,760,321100,Social Community Care Supplies & Services - Children
5364530,FOSTER CARES LTD,Childrens Services,Children's Services,Foster Carer Agency Fees,,03/01/2020,760,321100,Social Community Care Supplies & Services - Children
5364529,FOSTER CARES LTD,Childrens Services,Children's Services,Foster Carer Agency Fees,,03/01/2020,850,321100,Social Community Care Supplies & Services - Children
5364385,K P DODD CONSTRUCTION LTD,Housing,Director of Place,Improvement Grants - Final Mandatory,,03/01/2020,"7,981.50",399999,"Works - Construction, Repair & Maintenance"
5364370,K P DODD CONSTRUCTION LTD,Housing,Director of Place,Improvement Grants - Final Mandatory,,03/01/2020,"1,670.00",399999,"Works - Construction, Repair & Maintenance"
5364372,K P DODD CONSTRUCTION LTD,Housing,Director of Place,Improvement Grants - Final Mandatory,,03/01/2020,"4,161.00",399999,"Works - Construction, Repair & Maintenance"
5364374,K P DODD CONSTRUCTION LTD,Housing,Director of Place,Improvement Grants - Final Mandatory,,03/01/2020,"6,876.10",399999,"Works - Construction, Repair & Maintenance"
5367065,Dynamic Childcare Limited,Childrens Services,Children's Services,Childrens Homes Outside Local Authority Fees,,06/01/2020,"18,000.00",321100,Social Community Care Supplies & Services - Children
5367064,Dynamic Childcare Limited,Childrens Services,Children's Services,Childrens Homes Outside Local Authority Fees,,06/01/2020,"18,000.00",321100,Social Community Care Supplies & Services - Children
5364804,We Support LTD,Adult Social Care,Adults,Homecare Fees,,06/01/2020,"5,000.00",321000,Social Community Care Supplies & Services - Adult
5366585,Government Events,Childrens Services,Children's Services,Training Materials,,06/01/2020,661.3,290000,Arts & Leisure Services
5358014,Redacted,Childrens Services,Children's Services,Legal Fees,,06/01/2020,"1,300.00",280000,Legal Services
5364007,Bella Leigh Nails and Beauty,Place,Growth,Contributions,,06/01/2020,"1,500.00",400000,Non 3rd Party spend  
5367369,LANDSIDE PROPERTY MANAGEMENT LTD,Place,Growth,Other Accomodation Related Costs,,06/01/2020,711.9,250000,Housing Management
5367160,BUSINESS RISK MANAGEMENT LIMITED,Finance,Finance & IT,Training Course Costs,,06/01/2020,695,240000,Horticultural
5359943,ZZ DUP - KEYS CHILDCARE LTD,Education,Children's Services,#N/A,,06/01/2020,"3,781.00",321100,Social Community Care Supplies & Services - Children
5366989,Redacted,Adult Social Care,Adults,Day Care Fees,,06/01/2020,683.98,-999999,Unclassifiable
5360301,AGE UK TAMESIDE,Adult Social Care,Adults,Voluntary Organisations Fees,,06/01/2020,"7,068.60",180000,Environmental Services
5366913,MAMMOTH SIGNS LTD,Operations and Neighbourhoods,Operations and Neighbourhoods,General Materials,,06/01/2020,790,390000,"Works - Construction, Repair & Maintenance"
5367029,ABLE CARE AND SUPPORT SERVICES LTD,Adult Social Care,Adults,Homecare Fees,,06/01/2020,"19,998.33",321000,Social Community Care Supplies & Services - Adult
5367030,ABLE CARE AND SUPPORT SERVICES LTD,Adult Social Care,Adults,Homecare Fees,,06/01/2020,"40,400.16",321000,Social Community Care Supplies & Services - Adult
5366789,INSPIREDSPACES TAMESIDE LTD,Place,Growth,Cleaning Contractor Costs,,06/01/2020,"21,963.93",390000,"Works - Construction, Repair & Maintenance"
5366786,INSPIREDSPACES TAMESIDE LTD,Place,Growth,Building Maintenance,,06/01/2020,"2,849.09",390000,"Works - Construction, Repair & Maintenance"
5366784,INSPIREDSPACES TAMESIDE LTD,Place,Growth,Cleaning Contractor Costs,,06/01/2020,"312,218.15",390000,"Works - Construction, Repair & Maintenance"
5366784,INSPIREDSPACES TAMESIDE LTD,Place,Growth,Fees,,06/01/2020,"2,497.75",390000,"Works - Construction, Repair & Maintenance"
5366788,INSPIREDSPACES TAMESIDE LTD,Place,Growth,Fees,,06/01/2020,"3,060.00",390000,"Works - Construction, Repair & Maintenance"
5367007,CHRISTINE COLEMAN EDUCATION,Education,Children's Services,Professional Services,,06/01/2020,"2,000.00",170000,Education
5367269,Redacted,Adult Social Care,Adults,Day Care Fees,,06/01/2020,"1,207.04",-999999,Unclassifiable
5366451,Smartway Health and Social Care Limited,Adult Social Care,Adults,Homecare Fees,,06/01/2020,"2,719.26",321000,Social Community Care Supplies & Services - Adult
5366511,Hyde Accessible Transport Limited,Education,Children's Services,Transport Of Pupils,,06/01/2020,"1,350.00",360000,Public Transport
5366574,Hyde Accessible Transport Limited,Education,Children's Services,Transport Of Pupils,,06/01/2020,"1,350.00",360000,Public Transport
5366541,Redacted,Education,Children's Services,Transport Of Ola Pupils,Redacted Supplier,06/01/2020,"2,115.00",360000,Public Transport
5366514,Hyde Accessible Transport Limited,Education,Children's Services,Transport Of Ola Pupils,,06/01/2020,"1,762.50",360000,Public Transport
5367335,TAMESIDE SPORTS TRUST,Education,Children's Services,#N/A,,06/01/2020,"127,533.89",290000,Arts & Leisure Services
5367333,TAMESIDE SPORTS TRUST,Education,Children's Services,#N/A,,06/01/2020,"146,680.65",290000,Arts & Leisure Services
5365076,Redacted,Multiple Heads of Service,Multiple Strategic Directorates,CIS Labour Debits,,06/01/2020,600,390000,"Works - Construction, Repair & Maintenance"
5365076,Redacted,Operations and Neighbourhoods,Operations and Neighbourhoods,Engineers Works,,06/01/2020,600,390000,"Works - Construction, Repair & Maintenance"
5366993,Redacted,Adult Social Care,Adults,Day Care Fees,,06/01/2020,743.4,321000,Social Community Care Supplies & Services - Adult
5367408,Hillgate Health Group Limited,Childrens Services,Children's Services,Living With Formal Support,,07/01/2020,"1,179.36",-999999,Unclassifiable
5367394,Hillgate Health Group Limited,Childrens Services,Children's Services,Living With Formal Support,,07/01/2020,"1,179.36",-999999,Unclassifiable
5367396,Hillgate Health Group Limited,Childrens Services,Children's Services,Living With Formal Support,,07/01/2020,"1,179.36",-999999,Unclassifiable
5367403,Hillgate Health Group Limited,Childrens Services,Children's Services,Living With Formal Support,,07/01/2020,"1,179.36",-999999,Unclassifiable
5367405,Hillgate Health Group Limited,Childrens Services,Children's Services,Living With Formal Support,,07/01/2020,"1,179.36",-999999,Unclassifiable
5367393,Hillgate Health Group Limited,Childrens Services,Children's Services,Living With Formal Support,,07/01/2020,"1,179.36",-999999,Unclassifiable
5367399,Hillgate Health Group Limited,Childrens Services,Children's Services,Living With Formal Support,,07/01/2020,"1,179.36",-999999,Unclassifiable
5367398,Hillgate Health Group Limited,Childrens Services,Children's Services,Living With Formal Support,,07/01/2020,"1,179.36",-999999,Unclassifiable
5367402,Hillgate Health Group Limited,Childrens Services,Children's Services,Living With Formal Support,,07/01/2020,"1,179.36",-999999,Unclassifiable
5366916,ISW CSC Limited,Childrens Services,Children's Services,Living With Formal Support,,07/01/2020,800,260000,Human Resources
5367407,ISW CSC Limited,Childrens Services,Children's Services,Living With Formal Support,,07/01/2020,"1,055.00",260000,Human Resources
5366929,ISW CSC Limited,Childrens Services,Children's Services,Living With Formal Support,,07/01/2020,"1,055.00",260000,Human Resources
5366918,ISW CSC Limited,Childrens Services,Children's Services,Living With Formal Support,,07/01/2020,980,260000,Human Resources
5367406,ISW CSC Limited,Childrens Services,Children's Services,Living With Formal Support,,07/01/2020,980,260000,Human Resources
5367400,MOSSLEY PRIVATE HIRE,Education,Children's Services,Transport Of Pupils,,07/01/2020,"1,400.00",360000,Public Transport
5363448,AMARA CARE LTD,Adult Social Care,Adults,Homecare Fees,,07/01/2020,"6,315.01",321000,Social Community Care Supplies & Services - Adult
5363447,AMARA CARE LTD,Adult Social Care,Adults,Homecare Fees,,07/01/2020,"6,315.01",321000,Social Community Care Supplies & Services - Adult
5363445,AMARA CARE LTD,Adult Social Care,Adults,Homecare Fees,,07/01/2020,"6,111.30",321000,Social Community Care Supplies & Services - Adult
5365161,FUSION CARE,Childrens Services,Children's Services,Living With Formal Support,,07/01/2020,"3,580.00",321100,Social Community Care Supplies & Services - Children
5367323,Redacted,Adult Social Care,Adults,Day Care Fees,,07/01/2020,769.1,-999999,Unclassifiable
5365909,INSPIREDSPACES TAMESIDE (PROJECTCO2) LTD,(blank),(blank),New Accommodation Works,,07/01/2020,"213,565.67",170000,Education
5366884,LIGHTBULB PSYCHOLOGY LTD,Education,Children's Services,Professional Services,,07/01/2020,550,150000,Consultancy
5367412,STRUCTEC (NW) LTD,Housing,Director of Place,Improvement Grants - Final Mandatory,,07/01/2020,"14,802.29",321000,Social Community Care Supplies & Services - Adult
5366436,STRUCTEC (NW) LTD,Housing,Director of Place,Improvement Grants - Final Mandatory,,07/01/2020,"4,008.50",321000,Social Community Care Supplies & Services - Adult
5366434,STRUCTEC (NW) LTD,Housing,Director of Place,Improvement Grants - Final Mandatory,,07/01/2020,"3,512.00",321000,Social Community Care Supplies & Services - Adult
5365996,MEDACS HEALTHCARE,Adult Social Care,Adults,Homecare Fees,,07/01/2020,"19,653.39",150000,Consultancy
5366885,MANCHESTER CITY COUNCIL,Operations and Neighbourhoods,Operations and Neighbourhoods,General Materials,,07/01/2020,"2,850.00",-999999,Unclassifiable
5367553,ZZ DUP - Civica UK Limited,Operations and Neighbourhoods,Operations and Neighbourhoods,Computer Software,,07/01/2020,"15,905.00",270000,Information Communication Technology
5366609,ROYAL MAIL GROUP PLC,Governance,Governance,Postages,,07/01/2020,"6,360.34",300000,Mail Services
5359385,ATLAS TRADING GROUP LTD,Operations and Neighbourhoods,Operations and Neighbourhoods,Building Maintenance,,07/01/2020,563.76,100000,Building Construction Materials
5364934,M.C. & M.A. STEWART HAULAGE LTD,Operations and Neighbourhoods,Operations and Neighbourhoods,General Materials,,07/01/2020,996.25,240000,Horticultural
5366686,STONE COMPUTERS LTD,Digital Tameside,Finance & IT,It Equipment,,07/01/2020,"1,360.00",271200,Information Communication Technology
5358504,NPOWER LIMITED,Operations and Neighbourhoods,Operations and Neighbourhoods,Electricity,,07/01/2020,"5,266.71",370000,Utilities
5359175,NPOWER LIMITED,Operations and Neighbourhoods,Operations and Neighbourhoods,Electricity,,07/01/2020,"101,940.81",370000,Utilities
5366956,TAMESIDE ARTS LTD,Adult Social Care,Adults,Professional Services,,07/01/2020,"3,086.40",290000,Arts & Leisure Services
5367685,BARCLAYCARD COMMERCIAL,Childrens Services,Children's Services,Procurement Hub Holding Account,,08/01/2020,"21,341.27",200000,Financial Services
5367685,BARCLAYCARD COMMERCIAL,Individual Schools Budget,Children's Services,Procurement Hub Holding Account,,08/01/2020,"1,227.81",200000,Financial Services
5367685,BARCLAYCARD COMMERCIAL,Operations and Neighbourhoods,Operations and Neighbourhoods,Procurement Hub Holding Account,,08/01/2020,831.29,200000,Financial Services
5367685,BARCLAYCARD COMMERCIAL,Hosted Services,Hosted Services,Procurement Hub Holding Account,,08/01/2020,889.69,200000,Financial Services
5367685,BARCLAYCARD COMMERCIAL,Digital Tameside,Finance & IT,Procurement Hub Holding Account,,08/01/2020,"1,141.93",200000,Financial Services
5367685,BARCLAYCARD COMMERCIAL,Policy and Communications,Governance,Procurement Hub Holding Account,,08/01/2020,944.34,200000,Financial Services
5367377,HMCTS (FOR PAYMENT BY ACCOUNT),Childrens Services,Children's Services,Court Fees,,08/01/2020,"19,120.00",-999999,Unclassifiable
5367374,AD HOC CHAPS PAYMENT,Multiple Heads of Service,Multiple Strategic Directorates,Debits Superann Local Govt,,08/01/2020,"482,209.01",400002,Chaps Payments
5367374,Redacted,(blank),(blank),Debits Superann Local Govt,Business Payment,08/01/2020,"1,109.89",400002,Chaps Payments
5367678,AD HOC CHAPS PAYMENT,Multiple Heads of Service,Multiple Strategic Directorates,Debits Superann Teachers,,08/01/2020,"1,213,727.70",400002,Chaps Payments
5367375,AD HOC CHAPS PAYMENT,Multiple Heads of Service,Multiple Strategic Directorates,Salaries & Wages Advances(Hold),,08/01/2020,"1,100.00",400002,Chaps Payments
5367679,AD HOC CHAPS PAYMENT,Corporate Costs,Corporate Costs,Contributions,,08/01/2020,500.88,400002,Chaps Payments
5367371,AD HOC CHAPS PAYMENT,Multiple Heads of Service,Multiple Strategic Directorates,Salaries & Wages Advances(Hold),,08/01/2020,503,400002,Chaps Payments
5364944,COOLSPIRIT LTD,Digital Tameside,Finance & IT,Computer Hardware Maintenance Costs,,08/01/2020,"1,764.00",270000,Information Communication Technology
5367409,ISW CSC Limited,Childrens Services,Children's Services,Living With Formal Support,,08/01/2020,890,260000,Human Resources
5364973,Redacted,Childrens Services,Children's Services,Living With Formal Support,Redacted Supplier,08/01/2020,"1,575.00",321100,Social Community Care Supplies & Services - Children
5364971,YOUNG PEOPLE FIRST LIMITED,Childrens Services,Children's Services,Living With Formal Support,,08/01/2020,"3,584.00",321100,Social Community Care Supplies & Services - Children
5364950,YOUNG PEOPLE FIRST LIMITED,Childrens Services,Children's Services,Living With Formal Support,,08/01/2020,"6,818.00",321100,Social Community Care Supplies & Services - Children
5364969,YOUNG PEOPLE FIRST LIMITED,Childrens Services,Children's Services,Living With Formal Support,,08/01/2020,"1,225.00",321100,Social Community Care Supplies & Services - Children
5364964,Acumen Waste Services Limited,Place,Growth,Fees,,08/01/2020,"1,433.00",180000,Environmental Services
5364975,LCMR Associates,Adult Social Care,Adults,Fees,,08/01/2020,641.66,280000,Legal Services
5364977,Wellbeing Teams Group Ltd,Adult Social Care,Adults,Training Course Costs,,08/01/2020,"1,500.00",150000,Consultancy
5364980,Zeno Ltd,Adult Social Care,Adults,Nursing Home Long Stay Fees,,08/01/2020,"9,793.02",310000,Healthcare
5365035,Accountants In Demand t/a The Finegreen Group,Place,Growth,Agency Staff,,08/01/2020,"3,000.00",260000,Human Resources
5367004,NSL LIMITED,Operations and Neighbourhoods,Operations and Neighbourhoods,General Materials,,08/01/2020,"46,305.93",350000,Street & Traffic Management
5364839,BUREAU VERITAS UK LTD,Operations and Neighbourhoods,Operations and Neighbourhoods,Professional Services,,08/01/2020,"3,499.80",180000,Environmental Services
5366448,WORKS 4U SUPPORT SERVICES LIMITED,Education,Children's Services,#N/A,,08/01/2020,"3,600.00",260000,Human Resources
5365980,HOME-START OLDHAM STOCKPORT & TAMESIDE LTD,Population Health,Population Health,Professional Services,,08/01/2020,"6,250.00",321000,Social Community Care Supplies & Services - Adult
5365979,HOME-START OLDHAM STOCKPORT & TAMESIDE LTD,Population Health,Population Health,Professional Services,,08/01/2020,"20,833.34",321000,Social Community Care Supplies & Services - Adult
5365043,AUTISM INITIATIVES (UK),Adult Social Care,Adults,Supporting People Gross Contract,,08/01/2020,"2,899.68",321100,Social Community Care Supplies & Services - Children
5365044,AUTISM INITIATIVES (UK),Adult Social Care,Adults,Supporting People Gross Contract,,08/01/2020,908.27,321100,Social Community Care Supplies & Services - Children
5365042,AUTISM INITIATIVES (UK),Adult Social Care,Adults,Supporting People Gross Contract,,08/01/2020,"2,899.68",321100,Social Community Care Supplies & Services - Children
5365001,SEASHELL TRUST,Education,Children's Services,Non-Maintained School Fees,,08/01/2020,"18,466.02",321000,Social Community Care Supplies & Services - Adult
5365003,SEASHELL TRUST,Education,Children's Services,Non-Maintained School Fees,,08/01/2020,"16,260.75",321000,Social Community Care Supplies & Services - Adult
5365002,SEASHELL TRUST,Education,Children's Services,Non-Maintained School Fees,,08/01/2020,"27,987.81",321000,Social Community Care Supplies & Services - Adult
5365065,Randstad Public Services Limited,Education,Children's Services,Agency Staff,,08/01/2020,572.5,170000,Education
5367542,FUSION CARE,Adult Social Care,Adults,Supporting People Gross Contract,,08/01/2020,"2,780.00",321100,Social Community Care Supplies & Services - Children
5364981,VISION FOR EDUCATION LIMITED,Education,Children's Services,Professional Services,,08/01/2020,"1,025.99",170000,Education
5364978,VISION FOR EDUCATION LIMITED,Education,Children's Services,Professional Services,,08/01/2020,570,170000,Education
5364992,VISION FOR EDUCATION LIMITED,Education,Children's Services,Professional Services,,08/01/2020,570,170000,Education
5364999,VISION FOR EDUCATION LIMITED,Education,Children's Services,Professional Services,,08/01/2020,570,170000,Education
5364991,VISION FOR EDUCATION LIMITED,Education,Children's Services,Professional Services,,08/01/2020,589.99,170000,Education
5364976,VISION FOR EDUCATION LIMITED,Education,Children's Services,Professional Services,,08/01/2020,"1,299.99",170000,Education
5364994,VISION FOR EDUCATION LIMITED,Education,Children's Services,Professional Services,,08/01/2020,"1,261.99",170000,Education
5364979,VISION FOR EDUCATION LIMITED,Education,Children's Services,Professional Services,,08/01/2020,570,170000,Education
5364998,VISION FOR EDUCATION LIMITED,Education,Children's Services,Professional Services,,08/01/2020,570,170000,Education
5364997,Redacted,Education,Children's Services,Professional Services,Business Payment,08/01/2020,570,170000,Education
5365000,VISION FOR EDUCATION LIMITED,Education,Children's Services,Professional Services,,08/01/2020,570,170000,Education
5367657,REGENDA LIMITED,Adult Social Care,Adults,Non-Authority Accommodation Rental,,08/01/2020,"2,185.76",250000,Housing Management
5367658,REGENDA LIMITED,Adult Social Care,Adults,Non-Authority Accommodation Rental,,08/01/2020,"15,755.15",250000,Housing Management
5367027,PERSON CENTRED CARE SERVICES LIMITED,Adult Social Care,Adults,Homecare Fees,,08/01/2020,"1,229.60",310000,Healthcare
5366173,Inspired Spaces (ProjectCo1) LTD,(blank),(blank),New Accommodation Works,,08/01/2020,"154,719.24",390000,"Works - Construction, Repair & Maintenance"
5366174,Inspired Spaces (ProjectCo1) LTD,(blank),(blank),New Accommodation Works,,08/01/2020,"8,585.90",390000,"Works - Construction, Repair & Maintenance"
5365045,PROFILE SECURITY SERVICES LIMITED,Operations and Neighbourhoods,Operations and Neighbourhoods,Security Services,,08/01/2020,"3,427.92",190000,Facilities & Management Services
5365061,CARRICK SIGNS LTD,Policy and Communications,Governance,Printing And Stationery,,08/01/2020,714.5,100000,Building Construction Materials
5365212,INTACT PROJECTS LTD,Childrens Services,Children's Services,Living With Formal Support,,08/01/2020,"1,590.00",-999999,Unclassifiable
5365549,INTACT PROJECTS LTD,Childrens Services,Children's Services,Living With Formal Support,,08/01/2020,"1,590.00",-999999,Unclassifiable
5365064,COMPLETE BACKGROUND SCREENING LTD,People and Workforce Development,Governance,Professional Services,,08/01/2020,"1,832.00",-999999,Unclassifiable
5365034,TRIANGLE CARE GROUP,Childrens Services,Children's Services,Living With Formal Support,,08/01/2020,"5,000.00",321000,Social Community Care Supplies & Services - Adult
5365030,HEXAGON CARE SERVICES LTD,Childrens Services,Children's Services,Childrens Homes Outside Local Authority Fees,,08/01/2020,"14,193.57",321000,Social Community Care Supplies & Services - Adult
5365028,HEXAGON CARE SERVICES LTD,Childrens Services,Children's Services,Childrens Homes Outside Local Authority Fees,,08/01/2020,"13,684.29",321000,Social Community Care Supplies & Services - Adult
5365029,HEXAGON CARE SERVICES LTD,Childrens Services,Children's Services,Childrens Homes Outside Local Authority Fees,,08/01/2020,"19,463.57",321000,Social Community Care Supplies & Services - Adult
5364897,CARETECH COMMUNITY SERVICES LIMITED,Adult Social Care,Adults,Homecare Fees,,08/01/2020,"5,189.80",321000,Social Community Care Supplies & Services - Adult
5365054,GREATER MANCHESTER TRAVELCARDS LIMITED,Operations and Neighbourhoods,Operations and Neighbourhoods,General Materials,,08/01/2020,526.3,260000,Human Resources
5365046,Northern Community Pathways Limited,Childrens Services,Children's Services,Living With Formal Support,,08/01/2020,"2,540.00",321100,Social Community Care Supplies & Services - Children
5363849,Redacted,Operations and Neighbourhoods,Operations and Neighbourhoods,Professional Entertainment Services,,08/01/2020,545,-999999,Unclassifiable
5364836,ARCO LIMITED,Operations and Neighbourhoods,Operations and Neighbourhoods,Protective Clothing,,08/01/2020,"3,990.13",140000,Clothing
5359392,ARCO LIMITED,Operations and Neighbourhoods,Operations and Neighbourhoods,Protective Clothing,,08/01/2020,"2,980.60",140000,Clothing
5365022,CARITAS CARE LTD,Childrens Services,Children's Services,Foster Carer Agency Fees,,08/01/2020,"2,142.86",321000,Social Community Care Supplies & Services - Adult
5365019,CARITAS CARE LTD,Childrens Services,Children's Services,Foster Carer Agency Fees,,08/01/2020,"2,142.86",321000,Social Community Care Supplies & Services - Adult
5366693,TAMESIDE SPORTS TRUST,Education,Children's Services,#N/A,,08/01/2020,"148,137.74",290000,Arts & Leisure Services
5366692,TAMESIDE SPORTS TRUST,Education,Children's Services,#N/A,,08/01/2020,"126,076.60",290000,Arts & Leisure Services
5365055,GETTY IMAGES (UK) LIMITED,Policy and Communications,Governance,Subscriptions,,08/01/2020,"1,428.00",-999999,Unclassifiable
5366040,CREATIVE SUPPORT LTD,Adult Social Care,Adults,Residential Home Long Stay Fees,,08/01/2020,"1,817.20",321000,Social Community Care Supplies & Services - Adult
5364933,CPC,(blank),(blank),Computer Hardware,,08/01/2020,"2,000.00",270000,Information Communication Technology
5367692,LEEDS CITY COUNCIL,Hosted Services,Hosted Services,Conference/Seminar Expenses For Staff,,08/01/2020,663.75,-999999,Unclassifiable
5365010,CROFT INVESTMENTS LTD,Adult Social Care,Adults,Non-Authority Accommodation Rental,,08/01/2020,"2,001.65",321000,Social Community Care Supplies & Services - Adult
29000087,HAUGHTON-THORNLEY MEDICAL CENTRE,Population Health,Population Health,Local Enhanced Services,,09/01/2020,885.9,310000,Healthcare
29000087,ST ANDREWS HOUSE MEDICAL CENTRE,Population Health,Population Health,Local Enhanced Services,,09/01/2020,"3,720.20",150000,Consultancy
29000087,DENTON MEDICAL PRACTICE,Population Health,Population Health,Local Enhanced Services,,09/01/2020,"1,666.60",310000,Healthcare
29000087,GTD PRIMARY CARE LTD,Population Health,Population Health,Local Enhanced Services,,09/01/2020,"1,165.80",310000,Healthcare
29000087,Millgate Healthcare Partnership,Population Health,Population Health,Local Enhanced Services,,09/01/2020,"1,708.70",150000,Consultancy
29000087,TESCO INSTORE PHARMACY,Population Health,Population Health,Local Enhanced Services,,09/01/2020,587.85,150000,Consultancy
29000087,THE BROOKE SURGERY,Population Health,Population Health,Local Enhanced Services,,09/01/2020,659.6,150000,Consultancy
29000086,BOOTS UK LTD,Population Health,Population Health,Local Enhanced Services,,09/01/2020,"1,982.11",319999,Healthcare
29000086,DAVAAR MEDICAL CENTRE,Population Health,Population Health,Local Enhanced Services,,09/01/2020,"1,093.20",150000,Consultancy
29000086,DONNEYBROOK MEDICAL CENTRE,Population Health,Population Health,Local Enhanced Services,,09/01/2020,598.6,310000,Healthcare
29000086,GROSVENOR MEDICAL CENTRE,Population Health,Population Health,Local Enhanced Services,,09/01/2020,874.3,310000,Healthcare
29000086,HAUGHTON-THORNLEY MEDICAL CENTRE,Population Health,Population Health,Local Enhanced Services,,09/01/2020,"2,660.50",310000,Healthcare
29000086,LOCKSIDE MEDICAL CENTRE,Population Health,Population Health,Local Enhanced Services,,09/01/2020,927,310000,Healthcare
29000086,WELL PHARMACY,Population Health,Population Health,Local Enhanced Services,,09/01/2020,664.24,310000,Healthcare
29000086,DENTON MEDICAL PRACTICE,Population Health,Population Health,Local Enhanced Services,,09/01/2020,"1,234.80",310000,Healthcare
29000086,MARKET STREET MEDICAL PRACTICE,Population Health,Population Health,Local Enhanced Services,,09/01/2020,"1,423.00",310000,Healthcare
29000086,GTD PRIMARY CARE LTD,Population Health,Population Health,Local Enhanced Services,,09/01/2020,"1,646.40",310000,Healthcare
29000086,GTD HEALTHCARE TRADING AS THE SMITHY SURGERY,Population Health,Population Health,Local Enhanced Services,,09/01/2020,517.9,150000,Consultancy
5365209,The Compost Bag Company Ltd,Operations and Neighbourhoods,Operations and Neighbourhoods,Purchase Plastic Sacks,,09/01/2020,"6,030.00",182014,Environmental Services
5365210,Southern Office Furniture Ltd,Operations and Neighbourhoods,Operations and Neighbourhoods,Other Accomodation Related Costs,,09/01/2020,"1,120.00",210000,Furniture & Soft Furnishings
5365211,Redacted,Education,Children's Services,Professional Services,,09/01/2020,"1,000.00",150000,Consultancy
5367714,LCMR Associates,Governance,Governance,Legal Fees,,09/01/2020,"15,533.65",280000,Legal Services
5365484,Furniture Resource Centre Ltd,Operations and Neighbourhoods,Operations and Neighbourhoods,Fixtures & Fittings Purchase,,09/01/2020,"1,836.50",UNCLASS,Unclassifiable
5365399,Furniture Resource Centre Ltd,Operations and Neighbourhoods,Operations and Neighbourhoods,Fixtures & Fittings Purchase,,09/01/2020,958.84,UNCLASS,Unclassifiable
5365426,Furniture Resource Centre Ltd,Operations and Neighbourhoods,Operations and Neighbourhoods,Fixtures & Fittings Purchase,,09/01/2020,"1,409.80",UNCLASS,Unclassifiable
5365489,Furniture Resource Centre Ltd,Operations and Neighbourhoods,Operations and Neighbourhoods,Fixtures & Fittings Purchase,,09/01/2020,543.09,UNCLASS,Unclassifiable
5365481,Furniture Resource Centre Ltd,Operations and Neighbourhoods,Operations and Neighbourhoods,Fixtures & Fittings Purchase,,09/01/2020,554.1,UNCLASS,Unclassifiable
5365393,Furniture Resource Centre Ltd,Operations and Neighbourhoods,Operations and Neighbourhoods,Fixtures & Fittings Purchase,,09/01/2020,821.39,UNCLASS,Unclassifiable
5365463,Furniture Resource Centre Ltd,Operations and Neighbourhoods,Operations and Neighbourhoods,Fixtures & Fittings Purchase,,09/01/2020,765.27,UNCLASS,Unclassifiable
5365392,Furniture Resource Centre Ltd,Operations and Neighbourhoods,Operations and Neighbourhoods,Fixtures & Fittings Purchase,,09/01/2020,"1,336.34",UNCLASS,Unclassifiable
5365381,Furniture Resource Centre Ltd,Operations and Neighbourhoods,Operations and Neighbourhoods,Fixtures & Fittings Purchase,,09/01/2020,"1,072.17",UNCLASS,Unclassifiable
5365400,Furniture Resource Centre Ltd,Operations and Neighbourhoods,Operations and Neighbourhoods,Fixtures & Fittings Purchase,,09/01/2020,"1,071.73",UNCLASS,Unclassifiable
5365397,Furniture Resource Centre Ltd,Operations and Neighbourhoods,Operations and Neighbourhoods,Fixtures & Fittings Purchase,,09/01/2020,778.79,UNCLASS,Unclassifiable
5365389,Furniture Resource Centre Ltd,Operations and Neighbourhoods,Operations and Neighbourhoods,Fixtures & Fittings Purchase,,09/01/2020,552.46,UNCLASS,Unclassifiable
5365459,Furniture Resource Centre Ltd,Operations and Neighbourhoods,Operations and Neighbourhoods,Fixtures & Fittings Purchase,,09/01/2020,592.78,UNCLASS,Unclassifiable
5365402,Furniture Resource Centre Ltd,Operations and Neighbourhoods,Operations and Neighbourhoods,Fixtures & Fittings Purchase,,09/01/2020,959.23,UNCLASS,Unclassifiable
5365375,Furniture Resource Centre Ltd,Operations and Neighbourhoods,Operations and Neighbourhoods,Fixtures & Fittings Purchase,,09/01/2020,"1,062.72",UNCLASS,Unclassifiable
5365465,Furniture Resource Centre Ltd,Operations and Neighbourhoods,Operations and Neighbourhoods,Fixtures & Fittings Purchase,,09/01/2020,573.84,UNCLASS,Unclassifiable
5365362,Furniture Resource Centre Ltd,Operations and Neighbourhoods,Operations and Neighbourhoods,Fixtures & Fittings Purchase,,09/01/2020,"1,165.73",UNCLASS,Unclassifiable
5365383,Furniture Resource Centre Ltd,Operations and Neighbourhoods,Operations and Neighbourhoods,Fixtures & Fittings Purchase,,09/01/2020,501.91,UNCLASS,Unclassifiable
5365479,Furniture Resource Centre Ltd,Operations and Neighbourhoods,Operations and Neighbourhoods,Fixtures & Fittings Purchase,,09/01/2020,"1,140.16",UNCLASS,Unclassifiable
5365271,Westgate Lifestyle Project ltd,Childrens Services,Children's Services,Childrens Homes Outside Local Authority Fees,,09/01/2020,"11,999.96",401301,Social Community Care Supplies & Services - Children
5358995,Redacted,People and Workforce Development,Governance,Training Course Costs,,09/01/2020,"1,100.00",261520,Human Resources
5365213,MSP Global Ltd,Hosted Services,Hosted Services,Professional Entertainment Services,,09/01/2020,"3,181.50",330000,Sports & Playground Equipment & Maintenance
5364837,KONICA MINOLTA BUSINESS SOLUTIONS (UK) LTD,Digital Tameside,Finance & IT,It Equipment,,09/01/2020,"1,573.44",270000,Information Communication Technology
5365216,HAS TECHNOLOGY LTD,Adult Social Care,Adults,Computer Software Maintenance Costs,,09/01/2020,"5,058.72",-999999,Unclassifiable
5365327,CYCLESCHEME LTD,Multiple Heads of Service,Multiple Strategic Directorates,Debits,,09/01/2020,779.17,-999999,Unclassifiable
5367716,FUSION CARE,Adult Social Care,Adults,Residential Home Long Stay Fees,,09/01/2020,"9,851.62",321100,Social Community Care Supplies & Services - Children
5365189,VISION FOR EDUCATION LIMITED,Education,Children's Services,Professional Services,,09/01/2020,759.99,170000,Education
5365227,ASPIRE CHILD CARE,Childrens Services,Children's Services,Childrens Homes Outside Local Authority Fees,,09/01/2020,"9,600.00",321100,Social Community Care Supplies & Services - Children
5367712,PRD PROPERTY SERVICES LTD,Governance,Governance,Legal Fees,,09/01/2020,"5,760.00",190000,Facilities & Management Services
5366232,COMFORT CALL LIMITED,Adult Social Care,Adults,Homecare Fees,,09/01/2020,"11,252.03",310000,Healthcare
5366443,CLOVERLEAF ADVOCACY 2000 LTD,Adult Social Care,Adults,Professional Services,,09/01/2020,"12,408.34",321000,Social Community Care Supplies & Services - Adult
5365225,R-COM CONSULTING LIMITED,Digital Tameside,Finance & IT,Computer Hardware Maintenance Costs,,09/01/2020,"3,936.00",908001,Public Bodies
5365311,Reach Publishing Services Limited,Policy and Communications,Governance,"Marketing, Publicity and Recruitment",,09/01/2020,"1,200.00",908001,Public Bodies
5365192,CITY LIFT SERVICES (NW) LTD,Adult Social Care,Adults,General Equipment Repair & Maintenance,,09/01/2020,860,390000,"Works - Construction, Repair & Maintenance"
5365194,CITY LIFT SERVICES (NW) LTD,Adult Social Care,Adults,General Equipment Repair & Maintenance,,09/01/2020,"1,020.00",390000,"Works - Construction, Repair & Maintenance"
5365193,CITY LIFT SERVICES (NW) LTD,Adult Social Care,Adults,General Equipment Repair & Maintenance,,09/01/2020,"1,440.00",390000,"Works - Construction, Repair & Maintenance"
5367397,PRISM MEDICAL UK,Housing,Director of Place,Improvement Grants - Final Mandatory,,09/01/2020,"2,990.00",311600,Healthcare
5362371,FORENSIC TESTING SERVICE LTD,Childrens Services,Children's Services,Professional Services,,09/01/2020,"1,949.40",180000,Environmental Services
5365218,DORMA+ KABA GROUP,Operations and Neighbourhoods,Operations and Neighbourhoods,Miscellaneous Expenses,,09/01/2020,705.77,390000,"Works - Construction, Repair & Maintenance"
5365163,BRANAS ISAF LTD,Childrens Services,Children's Services,Childrens Homes Outside Local Authority Fees,,09/01/2020,"19,632.86",321100,Social Community Care Supplies & Services - Children
5365165,BRANAS ISAF LTD,Childrens Services,Children's Services,Childrens Homes Outside Local Authority Fees,,09/01/2020,"21,000.00",321100,Social Community Care Supplies & Services - Children
5366432,MEDACS HEALTHCARE,Adult Social Care,Adults,Homecare Fees,,09/01/2020,"20,185.79",150000,Consultancy
5366237,CARELINE HOMECARE LTD,Adult Social Care,Adults,Homecare Fees,,09/01/2020,"8,773.60",321000,Social Community Care Supplies & Services - Adult
5366238,CARELINE HOMECARE LTD,Adult Social Care,Adults,Homecare Fees,,09/01/2020,823.45,321000,Social Community Care Supplies & Services - Adult
5365231,Pavement Testing Services LTD,Engineers Client,Director of Place,Survey/Surveyors Fees,,09/01/2020,"2,698.00",150000,Consultancy
5365222,Northern Community Pathways Limited,Childrens Services,Children's Services,Cash Grants,,09/01/2020,520,321100,Social Community Care Supplies & Services - Children
5365222,Redacted,Childrens Services,Children's Services,Living With Formal Support,Redacted Supplier,09/01/2020,"2,780.00",321100,Social Community Care Supplies & Services - Children
5367587,Redacted,Education,Children's Services,Transport Of Ola Pupils,Redacted Supplier,09/01/2020,"1,350.00",360000,Public Transport
5367596,Hyde Accessible Transport Limited,Operations and Neighbourhoods,Operations and Neighbourhoods,Hired Transport,,09/01/2020,"1,800.00",360000,Public Transport
5367592,Hyde Accessible Transport Limited,Operations and Neighbourhoods,Operations and Neighbourhoods,Hired Transport,,09/01/2020,"1,495.00",360000,Public Transport
5367586,Hyde Accessible Transport Limited,Operations and Neighbourhoods,Operations and Neighbourhoods,Hired Transport,,09/01/2020,720,360000,Public Transport
5367591,Hyde Accessible Transport Limited,Education,Children's Services,Transport Of Pupils,,09/01/2020,600,360000,Public Transport
5367593,Hyde Accessible Transport Limited,Operations and Neighbourhoods,Operations and Neighbourhoods,Hired Transport,,09/01/2020,930,360000,Public Transport
5367590,Hyde Accessible Transport Limited,Education,Children's Services,Transport Of Pupils,,09/01/2020,"1,350.00",360000,Public Transport
5367588,Hyde Accessible Transport Limited,Operations and Neighbourhoods,Operations and Neighbourhoods,Hired Transport,,09/01/2020,"1,155.00",360000,Public Transport
5367595,Hyde Accessible Transport Limited,Operations and Neighbourhoods,Operations and Neighbourhoods,Hired Transport,,09/01/2020,"1,052.50",360000,Public Transport
5367628,Hyde Accessible Transport Limited,Operations and Neighbourhoods,Operations and Neighbourhoods,Hired Transport,,09/01/2020,"1,615.00",360000,Public Transport
5365147,Compass Fostering North LTD,Childrens Services,Children's Services,Foster Carer Agency Fees,,09/01/2020,"3,542.68",321100,Social Community Care Supplies & Services - Children
5365135,Compass Fostering North LTD,Childrens Services,Children's Services,Foster Carer Agency Fees,,09/01/2020,"3,347.29",321100,Social Community Care Supplies & Services - Children
5365150,Compass Fostering North LTD,Childrens Services,Children's Services,Foster Carer Agency Fees,,09/01/2020,"3,264.30",321100,Social Community Care Supplies & Services - Children
5365122,Compass Fostering North LTD,Childrens Services,Children's Services,Foster Carer Agency Fees,,09/01/2020,"3,365.55",321100,Social Community Care Supplies & Services - Children
5365114,Compass Fostering North LTD,Childrens Services,Children's Services,Foster Carer Agency Fees,,09/01/2020,"3,347.29",321100,Social Community Care Supplies & Services - Children
5365108,Compass Fostering North LTD,Childrens Services,Children's Services,Foster Carer Agency Fees,,09/01/2020,"3,264.30",321100,Social Community Care Supplies & Services - Children
5365144,Compass Fostering North LTD,Childrens Services,Children's Services,Foster Carer Agency Fees,,09/01/2020,"3,542.68",321100,Social Community Care Supplies & Services - Children
5365137,Compass Fostering North LTD,Childrens Services,Children's Services,Foster Carer Agency Fees,,09/01/2020,"1,755.00",321100,Social Community Care Supplies & Services - Children
5365124,Compass Fostering North LTD,Childrens Services,Children's Services,Foster Carer Agency Fees,,09/01/2020,697.23,321100,Social Community Care Supplies & Services - Children
5365146,Compass Fostering North LTD,Childrens Services,Children's Services,Foster Carer Agency Fees,,09/01/2020,"3,103.86",321100,Social Community Care Supplies & Services - Children
5365132,Compass Fostering North LTD,Childrens Services,Children's Services,Foster Carer Agency Fees,,09/01/2020,"3,171.11",321100,Social Community Care Supplies & Services - Children
5365143,Compass Fostering North LTD,Childrens Services,Children's Services,Foster Carer Agency Fees,,09/01/2020,"3,195.08",321100,Social Community Care Supplies & Services - Children
5365145,Compass Fostering North LTD,Childrens Services,Children's Services,Foster Carer Agency Fees,,09/01/2020,"3,185.68",321100,Social Community Care Supplies & Services - Children
5365342,CIPFA BUSINESS LIMITED,Finance,Finance & IT,Computer Software,,09/01/2020,"1,037.78",200000,Financial Services
5367623,Redacted,Education,Children's Services,Hired Transport,,09/01/2020,"1,875.00",UNCLASS,Unclassifiable
5367625,Redacted,Education,Children's Services,Hired Transport,,09/01/2020,"1,875.00",UNCLASS,Unclassifiable
5367622,Redacted,Education,Children's Services,Hired Transport,,09/01/2020,"1,875.00",UNCLASS,Unclassifiable
5367624,Redacted,Education,Children's Services,Hired Transport,,09/01/2020,"1,875.00",UNCLASS,Unclassifiable
5367627,Redacted,Education,Children's Services,Transport Of Post 16 Pupils,,09/01/2020,"1,462.50",UNCLASS,Unclassifiable
5367316,THE UNIVERSITY OF MANCHESTER,Adult Social Care,Adults,Training Course Costs,,09/01/2020,"1,500.00",UNCLASS,Unclassifiable
5365094,PARALLEL PARENTS,Childrens Services,Children's Services,Foster Carer Agency Fees,,09/01/2020,"1,641.60",321100,Social Community Care Supplies & Services - Children
5365085,PARALLEL PARENTS,Childrens Services,Children's Services,Foster Carer Agency Fees,,09/01/2020,752.4,321100,Social Community Care Supplies & Services - Children
5365093,PARALLEL PARENTS,Childrens Services,Children's Services,Foster Carer Agency Fees,,09/01/2020,"5,142.90",321100,Social Community Care Supplies & Services - Children
5365090,PARALLEL PARENTS,Childrens Services,Children's Services,Foster Carer Agency Fees,,09/01/2020,"3,228.90",321100,Social Community Care Supplies & Services - Children
5365087,PARALLEL PARENTS,Childrens Services,Children's Services,Foster Carer Agency Fees,,09/01/2020,"3,240.00",321100,Social Community Care Supplies & Services - Children
5365083,PARALLEL PARENTS,Childrens Services,Children's Services,Foster Carer Agency Fees,,09/01/2020,"3,228.90",321100,Social Community Care Supplies & Services - Children
5365073,PARALLEL PARENTS,Childrens Services,Children's Services,Foster Carer Agency Fees,,09/01/2020,"3,505.50",321100,Social Community Care Supplies & Services - Children
5365088,PARALLEL PARENTS,Childrens Services,Children's Services,Foster Carer Agency Fees,,09/01/2020,"3,078.00",321100,Social Community Care Supplies & Services - Children
5365079,PARALLEL PARENTS,Childrens Services,Children's Services,Foster Carer Agency Fees,,09/01/2020,"3,203.40",321100,Social Community Care Supplies & Services - Children
5365092,PARALLEL PARENTS,Childrens Services,Children's Services,Foster Carer Agency Fees,,09/01/2020,"2,772.00",321100,Social Community Care Supplies & Services - Children
5365081,PARALLEL PARENTS,Childrens Services,Children's Services,Foster Carer Agency Fees,,09/01/2020,"3,108.00",321100,Social Community Care Supplies & Services - Children
5365086,PARALLEL PARENTS,Childrens Services,Children's Services,Foster Carer Agency Fees,,09/01/2020,"4,005.00",321100,Social Community Care Supplies & Services - Children
5365084,PARALLEL PARENTS,Childrens Services,Children's Services,Foster Carer Agency Fees,,09/01/2020,801,321100,Social Community Care Supplies & Services - Children
5365089,PARALLEL PARENTS,Childrens Services,Children's Services,Foster Carer Agency Fees,,09/01/2020,"3,108.90",321100,Social Community Care Supplies & Services - Children
5365096,PARALLEL PARENTS,Childrens Services,Children's Services,Foster Carer Agency Fees,,09/01/2020,"3,505.50",321100,Social Community Care Supplies & Services - Children
5365074,PARALLEL PARENTS,Childrens Services,Children's Services,Foster Carer Agency Fees,,09/01/2020,"3,108.00",321100,Social Community Care Supplies & Services - Children
5365091,PARALLEL PARENTS,Childrens Services,Children's Services,Foster Carer Agency Fees,,09/01/2020,"2,886.00",321100,Social Community Care Supplies & Services - Children
5366616,ROYAL MAIL GROUP PLC,Governance,Governance,Postages,,09/01/2020,"6,204.76",300000,Mail Services
5365339,LORIMER FOSTERING SERVICES,Childrens Services,Children's Services,Foster Carer Agency Fees,,09/01/2020,"3,344.68",321100,Social Community Care Supplies & Services - Children
5366325,CREATIVE SUPPORT LTD,Adult Social Care,Adults,Homecare Fees,,09/01/2020,"5,218.22",321000,Social Community Care Supplies & Services - Adult
5366324,CREATIVE SUPPORT LTD,Adult Social Care,Adults,Homecare Fees,,09/01/2020,"5,048.21",321000,Social Community Care Supplies & Services - Adult
5366321,CREATIVE SUPPORT LTD,Adult Social Care,Adults,Homecare Fees,,09/01/2020,"5,127.41",321000,Social Community Care Supplies & Services - Adult
5365098,CARE TODAY,Childrens Services,Children's Services,Childrens Homes Outside Local Authority Fees,,09/01/2020,"10,131.48",321100,Social Community Care Supplies & Services - Children
5365101,CARE TODAY,Childrens Services,Children's Services,Childrens Homes Outside Local Authority Fees,,09/01/2020,"13,692.90",321100,Social Community Care Supplies & Services - Children
5365099,CARE TODAY,Childrens Services,Children's Services,Childrens Homes Outside Local Authority Fees,,09/01/2020,"11,978.70",321100,Social Community Care Supplies & Services - Children
5365097,CARE TODAY,Childrens Services,Children's Services,Childrens Homes Outside Local Authority Fees,,09/01/2020,"11,335.80",321100,Social Community Care Supplies & Services - Children
5365100,CARE TODAY,Childrens Services,Children's Services,Childrens Homes Outside Local Authority Fees,,09/01/2020,"11,978.70",321100,Social Community Care Supplies & Services - Children
5365224,PHONAK UK LIMITED,Education,Children's Services,Educational Equipment,,09/01/2020,"1,453.50",321100,Social Community Care Supplies & Services - Children
5367783,SANCTUARY HOUSING ASSOCIATION,Place,Growth,Non-Authority Accommodation Rental,,09/01/2020,"2,902.05",UNCLASS,Unclassifiable
5365195,WESLEY PROPERTIES (NORTHERN) LTD,Adult Social Care,Adults,Non-Authority Accommodation Rental,,09/01/2020,"1,354.41",190000,Facilities & Management Services
5365191,MHR International UK Limited,People and Workforce Development,Governance,Computer Software,,09/01/2020,"1,800.00",270000,Information Communication Technology
5365080,QUALITY PROTECTS CHILDREN LTD,Childrens Services,Children's Services,Childrens Homes Outside Local Authority Fees,,09/01/2020,"30,000.00",-999999,Unclassifiable
5365178,NEXUS SOLICITORS,Adult Social Care,Adults,Legal Fees,,09/01/2020,"9,377.50",-999999,Unclassifiable
5367751,Redacted,Childrens Services,Children's Services,Professional Services,,09/01/2020,886.7,-999999,Unclassifiable
5365170,Water Plus,Place,Growth,Metered Water Costs,,09/01/2020,777.37,370000,Utilities
5365168,Water Plus,Place,Growth,Metered Water Costs,,09/01/2020,612.01,370000,Utilities
5367236,Redacted,Operations and Neighbourhoods,Operations and Neighbourhoods,Hired Transport,,10/01/2020,"2,021.00",360000,Public Transport
5367235,Redacted,Operations and Neighbourhoods,Operations and Neighbourhoods,Hired Transport,,10/01/2020,945,360000,Public Transport
5365257,Inspire Social Care Services LTD,Adult Social Care,Adults,Homecare Fees,,10/01/2020,"5,560.71",321100,Social Community Care Supplies & Services - Children
5367067,Dynamic Childcare Limited,Childrens Services,Children's Services,Childrens Homes Outside Local Authority Fees,,10/01/2020,"3,214.25",321100,Social Community Care Supplies & Services - Children
3250743,ARNOLD PLANT HIRE LTD,Operations and Neighbourhoods,Operations and Neighbourhoods,Additional Hire,,10/01/2020,"1,068.00",UNCLASS,Unclassifiable
3250743,Redacted,Operations and Neighbourhoods,Operations and Neighbourhoods,Additional Hire,Redacted Supplier,10/01/2020,684.5,380000,Vehicle Management
3250743,BURNT TREE GROUP LIMITED,Operations and Neighbourhoods,Operations and Neighbourhoods,,,10/01/2020,"5,291.19",380000,Vehicle Management
3250743,BURNT TREE GROUP LIMITED,Operations and Neighbourhoods,Operations and Neighbourhoods,Replacement Hire,,10/01/2020,649.78,380000,Vehicle Management
3250743,DENNIS EAGLE LTD,Transport,Director of Place,Debits Goods Received,,10/01/2020,"1,879.23",380000,Vehicle Management
3250743,DENNIS EAGLE LTD,Operations and Neighbourhoods,Operations and Neighbourhoods,General Materials,,10/01/2020,"2,877.45",380000,Vehicle Management
3250743,DENNIS EAGLE LTD,Operations and Neighbourhoods,Operations and Neighbourhoods,Sub-contractor Services,,10/01/2020,"12,493.97",380000,Vehicle Management
3250743,DIRECT FILTER/ PARTS SUPPLY,Operations and Neighbourhoods,Operations and Neighbourhoods,General Materials,,10/01/2020,503.79,380000,Vehicle Management
3250743,FREIGHT TRANSPORT ASSOCIATION,Operations and Neighbourhoods,Operations and Neighbourhoods,Subscriptions,,10/01/2020,"1,100.00",380000,Vehicle Management
3250743,G B OILS TA CARLTON FUELS,Transport,Director of Place,Diesel Fuel,,10/01/2020,"34,614.52",380000,Vehicle Management
3250743,G B OILS TA CARLTON FUELS,Transport,Director of Place,Petrol Fuel,,10/01/2020,"2,508.00",380000,Vehicle Management
3250743,JOHNSTON SWEEPERS LTD,Operations and Neighbourhoods,Operations and Neighbourhoods,General Materials,,10/01/2020,598.03,180000,Environmental Services
3250743,SVR,Operations and Neighbourhoods,Operations and Neighbourhoods,Additional Hire,,10/01/2020,"1,092.00",400001,Charities and Voluntary Organisations
3250743,TERBERG MATEC UK LTD,Transport,Director of Place,Debits Goods Received,,10/01/2020,"1,311.09",180000,Environmental Services
3250743,TERBERG MATEC UK LTD,Operations and Neighbourhoods,Operations and Neighbourhoods,General Materials,,10/01/2020,"1,687.91",180000,Environmental Services
3250743,LEX AUTOLEASE,Operations and Neighbourhoods,Operations and Neighbourhoods,Core Hire,,10/01/2020,989.72,-999999,Unclassifiable
3250743,PEAK PARTS,Operations and Neighbourhoods,Operations and Neighbourhoods,Consumable Materials,,10/01/2020,521.86,380000,Vehicle Management
3250743,AEBI SCHMIDT UK LTD,Transport,Director of Place,Debits Goods Received,,10/01/2020,"1,865.82",380000,Vehicle Management
3250743,AEBI SCHMIDT UK LTD,Operations and Neighbourhoods,Operations and Neighbourhoods,General Materials,,10/01/2020,"1,708.67",380000,Vehicle Management
3250743,A & J MOTORSPARES,Operations and Neighbourhoods,Operations and Neighbourhoods,General Materials,,10/01/2020,854.41,380000,Vehicle Management
3250743,WARRINGTON TRUCK PARTS LTD,Operations and Neighbourhoods,Operations and Neighbourhoods,General Materials,,10/01/2020,"1,575.00",-999999,Unclassifiable
3250743,ECON ENGINEERING LTD,Operations and Neighbourhoods,Operations and Neighbourhoods,Sub-contractor Services,,10/01/2020,522.33,380000,Vehicle Management
3250743,POWERPOST LIMITED,Operations and Neighbourhoods,Operations and Neighbourhoods,Building Repairs,,10/01/2020,"10,800.00",-999999,Unclassifiable
3250743,PO HYDRAULICS T/A PIRTEK OLDHAM,Operations and Neighbourhoods,Operations and Neighbourhoods,Sub-contractor Services,,10/01/2020,"1,270.44",380000,Vehicle Management
3250743,LEEDS COMMERCIAL LTD T/A LC VEHICLE HIRE,Operations and Neighbourhoods,Operations and Neighbourhoods,Additional Hire,,10/01/2020,"2,300.00",380000,Vehicle Management
3250743,RRG GROUP  LTD,Transport,Director of Place,Vehicles,,10/01/2020,"52,190.47",380000,Vehicle Management
3250743,TRUCTYRE ATS,Operations and Neighbourhoods,Operations and Neighbourhoods,Tyre Costs,,10/01/2020,"2,629.22",380000,Vehicle Management
3250743,COMBAT DOORS LTD,Operations and Neighbourhoods,Operations and Neighbourhoods,Building Repairs,,10/01/2020,596,390000,"Works - Construction, Repair & Maintenance"
3250743,DAWSON RENTALS SWEEPERS,Operations and Neighbourhoods,Operations and Neighbourhoods,Replacement Hire,,10/01/2020,"4,100.60",230000,Highway Equipment & Materials
3250743,Redacted,Operations and Neighbourhoods,Operations and Neighbourhoods,General Materials,,10/01/2020,"1,320.00",-999999,Unclassifiable
3250743,RIVERSIDE TRUCK RENTAL LIMITED,Operations and Neighbourhoods,Operations and Neighbourhoods,Replacement Hire,,10/01/2020,"3,938.00",380000,Vehicle Management
3250743,MOTUS COMMERCIALS (OLDHAM),Operations and Neighbourhoods,Operations and Neighbourhoods,General Materials,,10/01/2020,"1,284.12",380000,Vehicle Management
3250743,HTF TYRE SERVICES LTD,Operations and Neighbourhoods,Operations and Neighbourhoods,Tyre Costs,,10/01/2020,"1,002.42",380000,Vehicle Management
3250743,JNL ENGINEERING LIMITED,Operations and Neighbourhoods,Operations and Neighbourhoods,General Materials,,10/01/2020,"1,934.00",360000,Public Transport
3250743,ON BOARD POWER LTD,Operations and Neighbourhoods,Operations and Neighbourhoods,General Materials,,10/01/2020,906.76,380000,Vehicle Management
29000088,Redacted,Population Health,Population Health,Local Enhanced Services,Business Payment,10/01/2020,"1,256.94",319999,Healthcare
29000088,DAVAAR MEDICAL CENTRE,Population Health,Population Health,Local Enhanced Services,,10/01/2020,"1,258.40",150000,Consultancy
29000088,HAUGHTON-THORNLEY MEDICAL CENTRE,Population Health,Population Health,Local Enhanced Services,,10/01/2020,674.6,310000,Healthcare
29000088,ST ANDREWS HOUSE MEDICAL CENTRE,Population Health,Population Health,Local Enhanced Services,,10/01/2020,"1,112.80",150000,Consultancy
29000088,STAVELEIGH MEDICAL CENTRE,Population Health,Population Health,Local Enhanced Services,,10/01/2020,640,310000,Healthcare
29000088,WELL PHARMACY,Population Health,Population Health,Local Enhanced Services,,10/01/2020,885.65,310000,Healthcare
29000088,DENTON MEDICAL PRACTICE,Population Health,Population Health,Local Enhanced Services,,10/01/2020,"1,633.60",310000,Healthcare
29000088,GTD PRIMARY CARE LTD,Population Health,Population Health,Local Enhanced Services,,10/01/2020,"1,381.90",310000,Healthcare
29000088,Millgate Healthcare Partnership,Population Health,Population Health,Local Enhanced Services,,10/01/2020,926.3,150000,Consultancy
29000088,THE BROOKE SURGERY,Population Health,Population Health,Local Enhanced Services,,10/01/2020,793.4,150000,Consultancy
5365654,GIA-MAC Architects Limited,(blank),(blank),External  Consultants,,10/01/2020,520,390000,"Works - Construction, Repair & Maintenance"
5367950,Saddleworth Environmental Education,Education,Children's Services,#N/A,,10/01/2020,"6,300.00",170000,Education
5365657,FSN Facilities Management Ltd,Operations and Neighbourhoods,Operations and Neighbourhoods,General Materials,,10/01/2020,"3,718.00",190000,Facilities & Management Services
5365656,FSN Facilities Management Ltd,Operations and Neighbourhoods,Operations and Neighbourhoods,General Materials,,10/01/2020,"24,057.00",190000,Facilities & Management Services
5365498,Home Instead Senior Care,Adult Social Care,Adults,Homecare Fees,,10/01/2020,"1,500.00",321000,Social Community Care Supplies & Services - Adult
5364426,Independent Together Limited,Childrens Services,Children's Services,Living With Formal Support,,10/01/2020,"2,260.00",321000,Social Community Care Supplies & Services - Adult
5364425,Independent Together Limited,Childrens Services,Children's Services,Living With Formal Support,,10/01/2020,"2,627.86",321000,Social Community Care Supplies & Services - Adult
5365268,A1 Foster Care,Childrens Services,Children's Services,Foster Carer Agency Fees,,10/01/2020,"3,428.57",321100,Social Community Care Supplies & Services - Children
5365267,A1 Foster Care,Childrens Services,Children's Services,Foster Carer Agency Fees,,10/01/2020,"3,428.57",321100,Social Community Care Supplies & Services - Children
5362482,Rossendale Scaffolding & Equipment Hire Ltd t/a Heywood Scaffolding Services,(blank),(blank),External  Consultants,,10/01/2020,650,100000,Building Construction Materials
5367250,jhweb Design,Operations and Neighbourhoods,Operations and Neighbourhoods,General Materials,,10/01/2020,545,270000,Information Communication Technology
5367621,Bloom Procurement Services Limited,Tameside Investment Partnership,Director of Place,Consultancies,,10/01/2020,"2,664.13",150000,Consultancy
5365661,Pegasus Catering Ltd,Hosted Services,Hosted Services,Conference/Seminar Expenses For Staff,,10/01/2020,735,110000,Catering
5365314,YOUNG PEOPLE FIRST LIMITED,Childrens Services,Children's Services,Living With Formal Support,,10/01/2020,850,321100,Social Community Care Supplies & Services - Children
5365264,YOUNG PEOPLE FIRST LIMITED,Childrens Services,Children's Services,Living With Formal Support,,10/01/2020,"4,483.57",321100,Social Community Care Supplies & Services - Children
5365667,ROC Northwest Limited,Education,Children's Services,#N/A,,10/01/2020,"13,300.00",321100,Social Community Care Supplies & Services - Children
5365469,Redacted,Hosted Services,Hosted Services,Conference/Seminar Expenses For Staff,,10/01/2020,715,280000,Legal Services
5365505,G2V Recruitment Group Limited t/a Vivid Resourcing,Place,Growth,Agency Staff,,10/01/2020,"2,500.00",280000,Legal Services
5365468,G2V Recruitment Group Limited t/a Vivid Resourcing,Place,Growth,Agency Staff,,10/01/2020,"1,875.00",280000,Legal Services
5365262,Cromwood Housing Ltd,Operations and Neighbourhoods,Operations and Neighbourhoods,General Materials,,10/01/2020,"5,646.54",250000,Housing Management
5365681,HUGH SYMONS INFORMATION MANAGEMENT LTD,Multiple Heads of Service,Multiple Strategic Directorates,Computer Hardware,,10/01/2020,"1,470.00",350000,Street & Traffic Management
5365467,KBW Barristers Chambers,Childrens Services,Children's Services,Legal Fees,,10/01/2020,800,280000,Legal Services
5365466,KBW Barristers Chambers,Childrens Services,Children's Services,Legal Fees,,10/01/2020,650,280000,Legal Services
5365510,Creative Care Todmorden Ltd,Housing,Director of Place,Improvement Grants - Final Mandatory,,10/01/2020,"4,749.53",321100,Social Community Care Supplies & Services - Children
5365702,Redacted,Hosted Services,Hosted Services,Professional Services,Redacted Supplier,10/01/2020,"9,900.00",260000,Human Resources
5365982,Redacted,Hosted Services,Hosted Services,Room Hire,Redacted Supplier,10/01/2020,"1,000.00",260000,Human Resources
5363648,Cloud Lettings Ltd,Childrens Services,Children's Services,Living Without Formal Support,,10/01/2020,"1,369.09",250000,Housing Management
5365511,Heath Solo Ltd,Childrens Services,Children's Services,Childrens Homes Outside Local Authority Fees,,10/01/2020,"27,338.59",400000,Non 3rd Party spend  
5365513,D�vine Catering Limited,Hosted Services,Hosted Services,Conference/Seminar Expenses For Staff,,10/01/2020,"2,812.50",110000,Catering
5365040,Supporting Futures LTD,Childrens Services,Children's Services,Childrens Homes Outside Local Authority Fees,,10/01/2020,600,310000,Healthcare
5364831,Supporting Futures LTD,Childrens Services,Children's Services,Childrens Homes Outside Local Authority Fees,,10/01/2020,"16,337.04",310000,Healthcare
5365490,STORYTIME MAGAZINE LTD,Education,Children's Services,Educational/Instructional Materials,,10/01/2020,840,170000,Education
5365706,URBAN VISION PARTNERSHIP LTD,Place,Growth,Professional Consultancy Services,,10/01/2020,"2,318.90",260000,Human Resources
5365345,Rosetta Stone (UK) Limited,Education,Children's Services,Educational/Instructional Materials,,10/01/2020,"1,530.00",-999999,Unclassifiable
5367975,Redacted,Childrens Services,Children's Services,Professional Services,,10/01/2020,842.91,-999999,Unclassifiable
5367999,TAMESIDE AND GLOSSOP INTEGRATED CARE NHS FOUNDATION TRUST,Engineers Client,Director of Place,Engineers -External,,10/01/2020,"3,900.00",310000,Healthcare
5365294,A & G BUILDING & JOINERY SERVICES LTD,Housing,Director of Place,Adaptations - Jobs <#500,,10/01/2020,600,390000,"Works - Construction, Repair & Maintenance"
5365704,COMMANDO JOES FUN AND FITNESS LTD,Individual Schools Budget,Children's Services,Training Course Costs,,10/01/2020,"1,475.00",290000,Arts & Leisure Services
5365692,Randstad Public Services Limited,Education,Children's Services,Agency Staff,,10/01/2020,"3,371.17",170000,Education
5365694,Randstad Public Services Limited,Individual Schools Budget,Children's Services,Agency Staff,,10/01/2020,955,170000,Education
5365697,Randstad Public Services Limited,Individual Schools Budget,Children's Services,Agency Staff,,10/01/2020,955,170000,Education
5365695,Randstad Public Services Limited,Individual Schools Budget,Children's Services,Agency Staff,,10/01/2020,700,170000,Education
5365691,TELEFONICA O2 (UK) LTD,Digital Tameside,Finance & IT,Mobile Telephones,,10/01/2020,"1,990.00",270000,Information Communication Technology
5367505,Redacted,Education,Children's Services,Transport Of Pupils,,10/01/2020,"1,620.00",360000,Public Transport
5367506,Redacted,Education,Children's Services,Transport Of Pupils,,10/01/2020,"1,245.00",360000,Public Transport
5367882,FUSION CARE,Adult Social Care,Adults,Supporting People Gross Contract,,10/01/2020,"2,780.00",321100,Social Community Care Supplies & Services - Children
5365709,SOFTCAT LIMITED,GMPF (FX),GMPF (FX),Computer Hardware Maintenance Costs,,10/01/2020,"4,152.44",270000,Information Communication Technology
5365710,SOFTCAT LIMITED,GMPF (FX),GMPF (FX),It Equipment,,10/01/2020,907.72,270000,Information Communication Technology
5364338,CLASSIC FOSTER CARE,Childrens Services,Children's Services,Foster Carer Agency Fees,,10/01/2020,"3,321.34",321100,Social Community Care Supplies & Services - Children
5367299,ASHTON PIONEER HOMES,Operations and Neighbourhoods,Operations and Neighbourhoods,Miscellaneous Expenses,,10/01/2020,"3,904.75",191700,Facilities & Management Services
5360303,AGE UK TAMESIDE,Adult Social Care,Adults,Voluntary Organisations Fees,,10/01/2020,"4,753.33",180000,Environmental Services
5360298,AGE UK TAMESIDE,Adult Social Care,Adults,Voluntary Organisations Fees,,10/01/2020,"4,753.33",180000,Environmental Services
5360307,AGE UK TAMESIDE,Adult Social Care,Adults,Voluntary Organisations Fees,,10/01/2020,"7,068.60",180000,Environmental Services
5360302,AGE UK TAMESIDE,Adult Social Care,Adults,Voluntary Organisations Fees,,10/01/2020,"4,753.33",180000,Environmental Services
5360308,AGE UK TAMESIDE,Adult Social Care,Adults,Voluntary Organisations Fees,,10/01/2020,"4,753.33",180000,Environmental Services
5365714,ADVANCED HEALTH AND CARE,Adult Social Care,Adults,Computer Hardware Maintenance Costs,,10/01/2020,"5,931.90",310000,Healthcare
5367904,PENNINE CARE IN PATIENT SERVS PRIORY,Education,Children's Services,#N/A,,10/01/2020,875,321000,Social Community Care Supplies & Services - Adult
5365544,Sky High Achievers Melandra LTD,Childrens Services,Children's Services,Nursery Services,,10/01/2020,540,-999999,Unclassifiable
5365512,CORE INTEGRATED SOLUTIONS LTD,(blank),(blank),Cabling/Diversion Works,,10/01/2020,"6,139.71",390000,"Works - Construction, Repair & Maintenance"
5365288,THE BREAD & BUTTER THEATRE COMPANY,Operations and Neighbourhoods,Operations and Neighbourhoods,Professional Entertainment Services,,10/01/2020,650,290000,Arts & Leisure Services
5365300,Transunion Internal UK Limited,Hosted Services,Hosted Services,Professional Services,,10/01/2020,"13,400.00",150000,Consultancy
5364893,Transunion Internal UK Limited,Hosted Services,Hosted Services,Professional Services,,10/01/2020,"18,000.00",150000,Consultancy
5364417,THREE CIRCLES FOSTERING LTD,Childrens Services,Children's Services,Foster Carer Agency Fees,,10/01/2020,"1,704.98",321100,Social Community Care Supplies & Services - Children
5367344,ABLE CARE AND SUPPORT SERVICES LTD,Adult Social Care,Adults,Homecare Fees,,10/01/2020,"5,063.52",321000,Social Community Care Supplies & Services - Adult
5367346,ABLE CARE AND SUPPORT SERVICES LTD,Adult Social Care,Adults,Homecare Fees,,10/01/2020,"4,997.52",321000,Social Community Care Supplies & Services - Adult
5365688,CARE 4 CHILDREN RESIDENTIAL SERVICES LTD,Childrens Services,Children's Services,Foster Carer Agency Fees,,10/01/2020,"3,160.08",321100,Social Community Care Supplies & Services - Children
5365689,CARE 4 CHILDREN RESIDENTIAL SERVICES LTD,Childrens Services,Children's Services,Foster Carer Agency Fees,,10/01/2020,"3,351.90",321100,Social Community Care Supplies & Services - Children
5365552,Manchester University NHS Foundation Trust (MFT),Population Health,Population Health,Contributions,,10/01/2020,"4,919.59",150000,Consultancy
5365542,TUDOR (UK) LTD T/A TUDOR ENVIRONMENTAL,Operations and Neighbourhoods,Operations and Neighbourhoods,General Materials,,10/01/2020,623.95,240000,Horticultural
5365553,PRISM MEDICAL UK,Housing,Director of Place,Improvement Grants - Final Mandatory,,10/01/2020,"5,132.76",311600,Healthcare
5365687,GRANART LIMITED,Operations and Neighbourhoods,Operations and Neighbourhoods,Plaques,,10/01/2020,520,120000,Cemetery & Crematorium
5365684,GRANART LIMITED,Operations and Neighbourhoods,Operations and Neighbourhoods,Plaques,,10/01/2020,536,120000,Cemetery & Crematorium
5365686,GRANART LIMITED,Operations and Neighbourhoods,Operations and Neighbourhoods,Plaques,,10/01/2020,547,120000,Cemetery & Crematorium
5365683,BKSB LTD,Individual Schools Budget,Children's Services,Licences,,10/01/2020,788.4,170000,Education
5365557,STRUCTEC (NW) LTD,Housing,Director of Place,Improvement Grants - Final Mandatory,,10/01/2020,"3,644.29",321000,Social Community Care Supplies & Services - Adult
5365675,BRANAS ISAF LTD,Childrens Services,Children's Services,Childrens Homes Outside Local Authority Fees,,10/01/2020,"31,500.00",321100,Social Community Care Supplies & Services - Children
5365330,LONICERA RESOURCES LTD,Adult Social Care,Adults,Professional Services,,10/01/2020,"3,963.40",321000,Social Community Care Supplies & Services - Adult
5365308,LONICERA RESOURCES LTD,Adult Social Care,Adults,Professional Services,,10/01/2020,"2,718.40",321000,Social Community Care Supplies & Services - Adult
5365670,FOSTERING LIMITED,Childrens Services,Children's Services,Foster Carer Agency Fees,,10/01/2020,862.4,321100,Social Community Care Supplies & Services - Children
5365666,FOSTERING LIMITED,Childrens Services,Children's Services,Foster Carer Agency Fees,,10/01/2020,880,321100,Social Community Care Supplies & Services - Children
5365668,FOSTERING LIMITED,Childrens Services,Children's Services,Foster Carer Agency Fees,,10/01/2020,880,321100,Social Community Care Supplies & Services - Children
5365672,FOSTERING LIMITED,Childrens Services,Children's Services,Foster Carer Agency Fees,,10/01/2020,862.4,321100,Social Community Care Supplies & Services - Children
5365665,FOSTERING LIMITED,Childrens Services,Children's Services,Foster Carer Agency Fees,,10/01/2020,880,321100,Social Community Care Supplies & Services - Children
5365674,FOSTERING LIMITED,Childrens Services,Children's Services,Foster Carer Agency Fees,,10/01/2020,880,321100,Social Community Care Supplies & Services - Children
5365671,FOSTERING LIMITED,Childrens Services,Children's Services,Foster Carer Agency Fees,,10/01/2020,862.4,321100,Social Community Care Supplies & Services - Children
5365664,FOSTERING LIMITED,Childrens Services,Children's Services,Foster Carer Agency Fees,,10/01/2020,880,321100,Social Community Care Supplies & Services - Children
5365673,FOSTERING LIMITED,Childrens Services,Children's Services,Foster Carer Agency Fees,,10/01/2020,880,321100,Social Community Care Supplies & Services - Children
5364911,CARETECH COMMUNITY SERVICES LIMITED,Adult Social Care,Adults,Residential Home Long Stay Fees,,10/01/2020,"8,917.04",321000,Social Community Care Supplies & Services - Adult
5365476,Just One Recruitment and Training,Childrens Services,Children's Services,Living With Formal Support,,10/01/2020,"1,024.74",321000,Social Community Care Supplies & Services - Adult
5365503,Just One Recruitment and Training,Childrens Services,Children's Services,Living With Formal Support,,10/01/2020,"1,024.74",321000,Social Community Care Supplies & Services - Adult
5365442,Just One Recruitment and Training,Childrens Services,Children's Services,Living With Formal Support,,10/01/2020,507.24,321000,Social Community Care Supplies & Services - Adult
5365504,Just One Recruitment and Training,Childrens Services,Children's Services,Living With Formal Support,,10/01/2020,507.24,321000,Social Community Care Supplies & Services - Adult
5365470,Just One Recruitment and Training,Childrens Services,Children's Services,Living With Formal Support,,10/01/2020,507.24,321000,Social Community Care Supplies & Services - Adult
5365445,Just One Recruitment and Training,Childrens Services,Children's Services,Living With Formal Support,,10/01/2020,"1,024.74",321000,Social Community Care Supplies & Services - Adult
5365501,Just One Recruitment and Training,Childrens Services,Children's Services,Living With Formal Support,,10/01/2020,"1,024.74",321000,Social Community Care Supplies & Services - Adult
5364489,Sanctuary Personnel Trading as Skylakes,Childrens Services,Children's Services,Professional Services,,10/01/2020,"17,723.72",321100,Social Community Care Supplies & Services - Children
5365320,DHL Parcel UK Ltd (UK Mail),Exchequer,Governance,Printing And Stationery,,10/01/2020,"2,848.80",300000,Mail Services
5365252,Global Grooves,Operations and Neighbourhoods,Operations and Neighbourhoods,Professional Entertainment Services,,10/01/2020,"2,000.00",290000,Arts & Leisure Services
5365477,Excel Fostering Limited,Childrens Services,Children's Services,Foster Carer Agency Fees,,10/01/2020,"3,273.07",-999999,Unclassifiable
5365475,Excel Fostering Limited,Childrens Services,Children's Services,Foster Carer Agency Fees,,10/01/2020,"3,250.35",-999999,Unclassifiable
5365480,Excel Fostering Limited,Childrens Services,Children's Services,Foster Carer Agency Fees,,10/01/2020,"3,018.78",-999999,Unclassifiable
5365478,Excel Fostering Limited,Childrens Services,Children's Services,Foster Carer Agency Fees,,10/01/2020,"3,018.78",-999999,Unclassifiable
5365653,Redacted,Education,Children's Services,Professional Services,,10/01/2020,"1,100.00",321100,Social Community Care Supplies & Services - Children
5365301,Footsteps Psychology,Education,Children's Services,Professional Services,,10/01/2020,"1,100.00",-999999,Unclassifiable
5365560,Footsteps Psychology,Education,Children's Services,Professional Services,,10/01/2020,"1,100.00",-999999,Unclassifiable
5365072,LAUREL BANK RESIDENTIAL CARE HOME LTD,Place,Growth,Contributions,,10/01/2020,"2,507.20",321000,Social Community Care Supplies & Services - Adult
5365649,COTSWOLD OUTDOOR LTD,Operations and Neighbourhoods,Operations and Neighbourhoods,General Materials,,10/01/2020,"1,215.86",140000,Clothing
5365095,PARALLEL PARENTS,Childrens Services,Children's Services,Foster Carer Agency Fees,,10/01/2020,"3,357.98",321100,Social Community Care Supplies & Services - Children
5367317,TAMESIDE LINK,Adult Social Care,Adults,Independent Sector Residential Care Fees,,10/01/2020,"23,702.09",321000,Social Community Care Supplies & Services - Adult
5364330,CAPSTONE FOSTER CARE,Childrens Services,Children's Services,Foster Carer Agency Fees,,10/01/2020,"3,283.83",321000,Social Community Care Supplies & Services - Adult
5365638,PORTAKABIN LTD,Place,Growth,Facility Rental,,10/01/2020,"4,500.00",190000,Facilities & Management Services
5365623,SWIIS FOSTER CARE LTD,Childrens Services,Children's Services,Foster Carer Agency Fees,,10/01/2020,796.11,321100,Social Community Care Supplies & Services - Children
5365624,SWIIS FOSTER CARE LTD,Childrens Services,Children's Services,Foster Carer Agency Fees,,10/01/2020,760.48,321100,Social Community Care Supplies & Services - Children
5365621,SWIIS FOSTER CARE LTD,Childrens Services,Children's Services,Foster Carer Agency Fees,,10/01/2020,899.99,321100,Social Community Care Supplies & Services - Children
5365618,SWIIS FOSTER CARE LTD,Childrens Services,Children's Services,Foster Carer Agency Fees,,10/01/2020,796.11,321100,Social Community Care Supplies & Services - Children
5365625,SWIIS FOSTER CARE LTD,Childrens Services,Children's Services,Foster Carer Agency Fees,,10/01/2020,658.84,321100,Social Community Care Supplies & Services - Children
5365620,SWIIS FOSTER CARE LTD,Childrens Services,Children's Services,Foster Carer Agency Fees,,10/01/2020,703.92,321100,Social Community Care Supplies & Services - Children
5365619,SWIIS FOSTER CARE LTD,Childrens Services,Children's Services,Foster Carer Agency Fees,,10/01/2020,693.49,321100,Social Community Care Supplies & Services - Children
5367750,Redacted,Environmental Services,Director of Place,Engineers -External,,10/01/2020,"8,040.00",390000,"Works - Construction, Repair & Maintenance"
5367750,Redacted,Multiple Heads of Service,Multiple Strategic Directorates,CIS Labour Debits,,10/01/2020,"24,100.00",390000,"Works - Construction, Repair & Maintenance"
5367750,Redacted,(blank),(blank),Engineers -External,,10/01/2020,"24,100.00",390000,"Works - Construction, Repair & Maintenance"
5365526,DVLA - ACCOUNTS RECEIVABLE,Hosted Services,Hosted Services,Professional Services,,10/01/2020,520,200000,Financial Services
5365461,BEDSPACE RESOURCE LTD,Childrens Services,Children's Services,Living With Formal Support,,10/01/2020,600,250000,Housing Management
5365521,BEDSPACE RESOURCE LTD,Childrens Services,Children's Services,Living With Formal Support,,10/01/2020,975,250000,Housing Management
5365596,BEDSPACE RESOURCE LTD,Childrens Services,Children's Services,Living With Formal Support,,10/01/2020,850,250000,Housing Management
5365595,Redacted,Childrens Services,Children's Services,Living With Formal Support,Redacted Supplier,10/01/2020,725,250000,Housing Management
5365420,BEDSPACE RESOURCE LTD,Childrens Services,Children's Services,Living With Formal Support,,10/01/2020,725,250000,Housing Management
5365522,Redacted,Childrens Services,Children's Services,Living With Formal Support,Redacted Supplier,10/01/2020,725,250000,Housing Management
5365425,Redacted,Childrens Services,Children's Services,Living With Formal Support,Redacted Supplier,10/01/2020,975,250000,Housing Management
5364940,QUALITY PROTECTS CHILDREN LTD,Childrens Services,Children's Services,Childrens Homes Outside Local Authority Fees,,10/01/2020,"26,215.72",-999999,Unclassifiable
5365550,JOHNSTON SWEEPERS LTD,Operations and Neighbourhoods,Operations and Neighbourhoods,Training Course Costs,,10/01/2020,510,180000,Environmental Services
5363871,ODD ARTS,Operations and Neighbourhoods,Operations and Neighbourhoods,General Materials,,10/01/2020,"4,000.00",-999999,Unclassifiable
5366961,STAMFORD CARS UK LTD,Operations and Neighbourhoods,Operations and Neighbourhoods,Hired Transport,,10/01/2020,680,361510,Public Transport
5366919,STAMFORD CARS UK LTD,Education,Children's Services,Transport Of Pupils,,10/01/2020,900,361510,Public Transport
5367055,STAMFORD CARS UK LTD,Education,Children's Services,Transport Of Pupils,,10/01/2020,900,361510,Public Transport
5366949,STAMFORD CARS UK LTD,Operations and Neighbourhoods,Operations and Neighbourhoods,Hired Transport,,10/01/2020,"1,162.50",361510,Public Transport
5367081,STAMFORD CARS UK LTD,Education,Children's Services,Transport Of Pupils,,10/01/2020,"1,125.00",361510,Public Transport
5367080,STAMFORD CARS UK LTD,Education,Children's Services,Transport Of Ola Pupils,,10/01/2020,"1,350.00",361510,Public Transport
5367061,STAMFORD CARS UK LTD,Education,Children's Services,Transport Of Pupils,,10/01/2020,"1,330.00",361510,Public Transport
5367057,STAMFORD CARS UK LTD,Education,Children's Services,Transport Of Ola Pupils,,10/01/2020,"1,725.00",361510,Public Transport
5367060,STAMFORD CARS UK LTD,Education,Children's Services,Transport Of Pupils,,10/01/2020,"1,425.00",361510,Public Transport
5367066,STAMFORD CARS UK LTD,Education,Children's Services,Transport Of Pupils,,10/01/2020,"1,425.00",361510,Public Transport
5366975,STAMFORD CARS UK LTD,Operations and Neighbourhoods,Operations and Neighbourhoods,Hired Transport,,10/01/2020,"1,420.00",361510,Public Transport
5366957,STAMFORD CARS UK LTD,Operations and Neighbourhoods,Operations and Neighbourhoods,Transport Of Pupils,,10/01/2020,"1,350.00",361510,Public Transport
5367187,STAMFORD CARS UK LTD,Operations and Neighbourhoods,Operations and Neighbourhoods,Transport Of Pupils,,10/01/2020,"1,315.00",361510,Public Transport
5367084,STAMFORD CARS UK LTD,Education,Children's Services,Transport Of Ola Pupils,,10/01/2020,975,361510,Public Transport
5367096,STAMFORD CARS UK LTD,Education,Children's Services,Transport Of Pupils,,10/01/2020,980,361510,Public Transport
5366984,STAMFORD CARS UK LTD,Operations and Neighbourhoods,Operations and Neighbourhoods,Hired Transport,,10/01/2020,"1,087.50",361510,Public Transport
5367038,STAMFORD CARS UK LTD,Education,Children's Services,Hired Transport,,10/01/2020,"1,425.00",361510,Public Transport
5367044,STAMFORD CARS UK LTD,Education,Children's Services,Transport Of Pupils,,10/01/2020,"1,425.00",361510,Public Transport
5366914,STAMFORD CARS UK LTD,Operations and Neighbourhoods,Operations and Neighbourhoods,Hired Transport,,10/01/2020,810,361510,Public Transport
5366953,STAMFORD CARS UK LTD,Operations and Neighbourhoods,Operations and Neighbourhoods,Hired Transport,,10/01/2020,543.75,361510,Public Transport
5366927,STAMFORD CARS UK LTD,Education,Children's Services,Transport Of Ola Pupils,,10/01/2020,"2,475.00",361510,Public Transport
5367042,STAMFORD CARS UK LTD,Education,Children's Services,Transport Of Pupils,,10/01/2020,"1,425.00",361510,Public Transport
5367063,STAMFORD CARS UK LTD,Education,Children's Services,Transport Of Pupils,,10/01/2020,"1,425.00",361510,Public Transport
5367036,STAMFORD CARS UK LTD,Education,Children's Services,Transport Of Ola Pupils,,10/01/2020,"1,987.50",361510,Public Transport
5366964,STAMFORD CARS UK LTD,Operations and Neighbourhoods,Operations and Neighbourhoods,Hired Transport,,10/01/2020,570,361510,Public Transport
5366982,STAMFORD CARS UK LTD,Operations and Neighbourhoods,Operations and Neighbourhoods,Hired Transport,,10/01/2020,607.5,361510,Public Transport
5367097,STAMFORD CARS UK LTD,Operations and Neighbourhoods,Operations and Neighbourhoods,Hired Transport,,10/01/2020,600,361510,Public Transport
5367046,STAMFORD CARS UK LTD,Education,Children's Services,Transport Of Ola Pupils,,10/01/2020,"1,260.00",361510,Public Transport
5366928,STAMFORD CARS UK LTD,Education,Children's Services,Transport Of Ola Pupils,,10/01/2020,"2,212.50",361510,Public Transport
5366980,STAMFORD CARS UK LTD,Operations and Neighbourhoods,Operations and Neighbourhoods,Hired Transport,,10/01/2020,945,361510,Public Transport
5367100,STAMFORD CARS UK LTD,Education,Children's Services,Transport Of Pupils,,10/01/2020,750,361510,Public Transport
5367083,STAMFORD CARS UK LTD,Education,Children's Services,Transport Of Post 16 Pupils,,10/01/2020,"1,162.50",361510,Public Transport
5367093,STAMFORD CARS UK LTD,Education,Children's Services,Transport Of Ola Pupils,,10/01/2020,"1,200.00",361510,Public Transport
5366920,STAMFORD CARS UK LTD,Education,Children's Services,Transport Of Pupils,,10/01/2020,"1,237.50",361510,Public Transport
5367094,STAMFORD CARS UK LTD,Education,Children's Services,Transport Of Ola Pupils,,10/01/2020,"1,500.00",361510,Public Transport
5366986,STAMFORD CARS UK LTD,Operations and Neighbourhoods,Operations and Neighbourhoods,Hired Transport,,10/01/2020,"2,250.00",361510,Public Transport
5366924,STAMFORD CARS UK LTD,Education,Children's Services,Transport Of Pupils,,10/01/2020,"1,200.00",361510,Public Transport
5367068,STAMFORD CARS UK LTD,Education,Children's Services,Transport Of Pupils,,10/01/2020,"1,200.00",361510,Public Transport
5367035,STAMFORD CARS UK LTD,Education,Children's Services,Transport Of Ola Pupils,,10/01/2020,"1,162.50",361510,Public Transport
470840,Redacted,Operations and Neighbourhoods,Operations and Neighbourhoods,,Redacted Supplier,13/01/2020,549.7,230000,Highway Equipment & Materials
470840,AGGREGATE INDUSTRIES UK LIMITED,Operations and Neighbourhoods,Operations and Neighbourhoods,,,13/01/2020,"9,773.09",230000,Highway Equipment & Materials
470840,EAGLE CIVIL ENGINEERING LTD,Operations and Neighbourhoods,Operations and Neighbourhoods,General Materials,,13/01/2020,"3,025.00",391411,"Works - Construction, Repair & Maintenance"
470840,EAGLE CIVIL ENGINEERING LTD,Operations and Neighbourhoods,Operations and Neighbourhoods,Sub-contractor Services,,13/01/2020,"5,506.50",391411,"Works - Construction, Repair & Maintenance"
470840,FAIRWAY LANDSCAPES LTD,Operations and Neighbourhoods,Operations and Neighbourhoods,Sub-contractor Services,,13/01/2020,"2,017.00",399999,"Works - Construction, Repair & Maintenance"
470840,Redacted,Operations and Neighbourhoods,Operations and Neighbourhoods,Sub-contractor Services,Redacted Supplier,13/01/2020,"1,376.45",391411,"Works - Construction, Repair & Maintenance"
470840,KENNY BROTHERS,Operations and Neighbourhoods,Operations and Neighbourhoods,,,13/01/2020,"1,463.54",391411,"Works - Construction, Repair & Maintenance"
470840,PG FABRICATIONS,Operations and Neighbourhoods,Operations and Neighbourhoods,Sub-contractor Services,,13/01/2020,540,390000,"Works - Construction, Repair & Maintenance"
470840,TARMAC CENTRAL LIMITED,Operations and Neighbourhoods,Operations and Neighbourhoods,General Materials,,13/01/2020,"10,571.91",230000,Highway Equipment & Materials
470840,WOLSELEY UK LTD,Operations and Neighbourhoods,Operations and Neighbourhoods,General Materials,,13/01/2020,"1,122.74",230000,Highway Equipment & Materials
470840,BRAMHALL SURFACING LTD,Operations and Neighbourhoods,Operations and Neighbourhoods,Sub-contractor Services,,13/01/2020,"2,519.20",390000,"Works - Construction, Repair & Maintenance"
470840,1st Choice Grab Hire LTD,Operations and Neighbourhoods,Operations and Neighbourhoods,General Materials,,13/01/2020,900,230000,Highway Equipment & Materials
470840,INSTARMAC GROUP PLC,Civil Engineers,Director of Place,Debits Goods Received,,13/01/2020,788,230000,Highway Equipment & Materials
470840,Saint-Gobain Building Distribution Limited t/a Benchmark Building Supplies,Civil Engineers,Director of Place,,,13/01/2020,863,100000,Building Construction Materials
470840,TOTALLY LOCAL COMPANY LIMITED,Civil Engineers,Director of Place,Debits Goods Received,,13/01/2020,514.44,190000,Facilities & Management Services
470840,ACORN LIGHTING SERVICES LTD,Operations and Neighbourhoods,Operations and Neighbourhoods,General Materials,,13/01/2020,"9,250.00",230000,Highway Equipment & Materials
470840,FSN Facilities Management Ltd,Operations and Neighbourhoods,Operations and Neighbourhoods,Sub-contractor Services,,13/01/2020,"4,126.50",190000,Facilities & Management Services
470840,Holroyds Skip Hire Limited,Operations and Neighbourhoods,Operations and Neighbourhoods,Sub-contractor Services,,13/01/2020,"2,000.00",150000,Consultancy
470840,NORTHWEST UTILITY SOLUTIONS LTD,Operations and Neighbourhoods,Operations and Neighbourhoods,Sub-contractor Services,,13/01/2020,"8,208.50",370000,Utilities
470840,TRAFFIC DIRECT LTD,(blank),(blank),Traffic Signs,,13/01/2020,"2,900.00",350000,Street & Traffic Management
470840,VIATEC UK,Operations and Neighbourhoods,Operations and Neighbourhoods,General Materials,,13/01/2020,837,390000,"Works - Construction, Repair & Maintenance"
470840,KONSTRUCTA HIRE LIMITED,Operations and Neighbourhoods,Operations and Neighbourhoods,General Materials,,13/01/2020,840,390000,"Works - Construction, Repair & Maintenance"
470840,HUGH LOGAN ENGINEERING,Civil Engineers,Director of Place,Debits Goods Received,,13/01/2020,"2,188.00",230000,Highway Equipment & Materials
470840,AJC ROAD SWEEPERS,Operations and Neighbourhoods,Operations and Neighbourhoods,Sub-contractor Services,,13/01/2020,825,380000,Vehicle Management
5368219,Support in Sport (UK)Ltd,Cultural and Customer Services,"Community,Environmental,Adult and Health Services",Fees,,13/01/2020,"99,630.91",100000,Building Construction Materials
5363782,PRISTINE CONDITION INTERNATIONAL LIMITED,Operations and Neighbourhoods,Operations and Neighbourhoods,Training Course Costs,,13/01/2020,864.47,260000,Human Resources
5367028,PERSON CENTRED CARE SERVICES LIMITED,Adult Social Care,Adults,Homecare Fees,,13/01/2020,"1,221.92",310000,Healthcare
5360299,AGE UK TAMESIDE,Adult Social Care,Adults,Voluntary Organisations Fees,,13/01/2020,"7,068.60",180000,Environmental Services
5367208,THE FAMILY UNIT LTD,Adult Social Care,Adults,Homecare Fees,,13/01/2020,"10,000.00",321000,Social Community Care Supplies & Services - Adult
5367688,Redacted,Adult Social Care,Adults,Day Care Fees,,13/01/2020,593.68,-999999,Unclassifiable
5366828,MEDACS HEALTHCARE,Adult Social Care,Adults,Homecare Fees,,13/01/2020,"19,424.59",150000,Consultancy
5367463,BRIGHT STARS PDN,Childrens Services,Children's Services,Professional Services,,13/01/2020,792,170000,Education
5367326,STEPPING STONES CHILDRENS HOMES LTD,Childrens Services,Children's Services,Childrens Homes Outside Local Authority Fees,,13/01/2020,"15,680.00",321100,Social Community Care Supplies & Services - Children
5367327,STEPPING STONES CHILDRENS HOMES LTD,Childrens Services,Children's Services,Childrens Homes Outside Local Authority Fees,,13/01/2020,"13,720.00",321100,Social Community Care Supplies & Services - Children
5367213,STEPPING STONES CHILDRENS HOMES LTD,Childrens Services,Children's Services,Childrens Homes Outside Local Authority Fees,,13/01/2020,"13,200.00",321100,Social Community Care Supplies & Services - Children
5367214,STEPPING STONES CHILDRENS HOMES LTD,Childrens Services,Children's Services,Childrens Homes Outside Local Authority Fees,,13/01/2020,"20,000.00",321100,Social Community Care Supplies & Services - Children
5367216,STEPPING STONES CHILDRENS HOMES LTD,Childrens Services,Children's Services,Childrens Homes Outside Local Authority Fees,,13/01/2020,"23,571.42",321100,Social Community Care Supplies & Services - Children
5367217,STEPPING STONES CHILDRENS HOMES LTD,Childrens Services,Children's Services,Childrens Homes Outside Local Authority Fees,,13/01/2020,"27,440.00",321100,Social Community Care Supplies & Services - Children
5367468,Smartway Health and Social Care Limited,Adult Social Care,Adults,Homecare Fees,,13/01/2020,"2,204.37",321000,Social Community Care Supplies & Services - Adult
5367491,Joes Travel LTD,Education,Children's Services,Transport Of Ola Pupils,,13/01/2020,"1,425.00",360000,Public Transport
5356721,GREATER MANCHESTER COMBINED AUTHORITY,Operations and Neighbourhoods,Operations and Neighbourhoods,Passenger Transport Levy,,13/01/2020,"1,430,756.65",-999999,Unclassifiable
5367264,TAMESIDE SPORTS TRUST,Adult Social Care,Adults,Voluntary Organisations Fees,,13/01/2020,"18,358.20",290000,Arts & Leisure Services
5367265,TAMESIDE SPORTS TRUST,Adult Social Care,Adults,Professional Services,,13/01/2020,"31,378.40",290000,Arts & Leisure Services
5367360,TAMESIDE SPORTS TRUST,Childrens Services,Children's Services,"Activity (Materials, Trips)",,13/01/2020,"1,060.00",290000,Arts & Leisure Services
5367260,TAMESIDE SPORTS TRUST,Childrens Services,Children's Services,Homecare Fees,,13/01/2020,"1,050.00",290000,Arts & Leisure Services
5367307,TAMESIDE SPORTS TRUST,Adult Social Care,Adults,Day Centre Fees,,13/01/2020,"1,229.00",290000,Arts & Leisure Services
5367266,TAMESIDE SPORTS TRUST,Adult Social Care,Adults,Day Centre Fees,,13/01/2020,983.2,290000,Arts & Leisure Services
5367268,TAMESIDE SPORTS TRUST,Adult Social Care,Adults,Day Centre Fees,,13/01/2020,983.2,290000,Arts & Leisure Services
5367315,TAMESIDE SPORTS TRUST,Adult Social Care,Adults,Day Centre Fees,,13/01/2020,"2,027.85",290000,Arts & Leisure Services
5367275,TAMESIDE SPORTS TRUST,Childrens Services,Children's Services,Homecare Fees,,13/01/2020,600,290000,Arts & Leisure Services
5367308,TAMESIDE SPORTS TRUST,Adult Social Care,Adults,Day Centre Fees,,13/01/2020,737.4,290000,Arts & Leisure Services
5367314,TAMESIDE SPORTS TRUST,Childrens Services,Children's Services,Homecare Fees,,13/01/2020,600,290000,Arts & Leisure Services
5367263,TAMESIDE SPORTS TRUST,Adult Social Care,Adults,Refreshments,,13/01/2020,"1,200.00",290000,Arts & Leisure Services
5367258,TAMESIDE SPORTS TRUST,Childrens Services,Children's Services,Homecare Fees,,13/01/2020,"1,140.00",290000,Arts & Leisure Services
5367510,J & R TAXIS LTD,Education,Children's Services,Transport Of Ola Pupils,,13/01/2020,"1,233.00",360000,Public Transport
5367483,ASHTON DISCOUNT WAREHOUSE LTD,Adult Social Care,Adults,Fixtures & Fittings Purchase,,13/01/2020,559,210000,Furniture & Soft Furnishings
5367519,ATLAS TRADING GROUP LTD,Operations and Neighbourhoods,Operations and Neighbourhoods,Building Maintenance,,13/01/2020,854.1,100000,Building Construction Materials
5358466,KILLGERM CHEMICALS LTD,Operations and Neighbourhoods,Operations and Neighbourhoods,Pest Control Equipment,,13/01/2020,"1,229.84",180000,Environmental Services
5363495,KILLGERM CHEMICALS LTD,Operations and Neighbourhoods,Operations and Neighbourhoods,Pest Control Equipment,,13/01/2020,828.04,180000,Environmental Services
5367445,JACKSON & TAYLOR LTD,Housing,Director of Place,Improvement Grants - Final Mandatory,,13/01/2020,"1,608.00",390000,"Works - Construction, Repair & Maintenance"
5367458,JACKSON & TAYLOR LTD,Housing,Director of Place,Improvement Grants - Final Mandatory,,13/01/2020,"4,100.00",390000,"Works - Construction, Repair & Maintenance"
5367452,JACKSON & TAYLOR LTD,Housing,Director of Place,Improvement Grants - Final Mandatory,,13/01/2020,"3,540.00",390000,"Works - Construction, Repair & Maintenance"
5367455,JACKSON & TAYLOR LTD,Housing,Director of Place,Improvement Grants - Final Mandatory,,13/01/2020,"4,760.00",390000,"Works - Construction, Repair & Maintenance"
5367441,AUTUMN (UK) 2017 LIMITED,Housing,Director of Place,Improvement Grants - Final Mandatory,,13/01/2020,"4,100.00",321000,Social Community Care Supplies & Services - Adult
5367442,AUTUMN (UK) 2017 LIMITED,Housing,Director of Place,Improvement Grants - Final Mandatory,,13/01/2020,506.74,321000,Social Community Care Supplies & Services - Adult
5367223,STAMFORD CARS UK LTD,Education,Children's Services,Transport Of Ola Pupils,,13/01/2020,675,361510,Public Transport
5367439,STAMFORD CARS UK LTD,Education,Children's Services,Transport Of Pupils,,13/01/2020,"1,425.00",361510,Public Transport
5367428,K P DODD CONSTRUCTION LTD,Housing,Director of Place,Improvement Grants - Final Mandatory,,13/01/2020,"5,045.00",399999,"Works - Construction, Repair & Maintenance"
5367484,Montrose Recruitment Limited TA Montrose Living,Childrens Services,Children's Services,Living With Formal Support,,14/01/2020,"2,414.23",321100,Social Community Care Supplies & Services - Children
5368632,ISW CSC Limited,Childrens Services,Children's Services,Living With Formal Support,,14/01/2020,890,260000,Human Resources
5365662,YOUNG PEOPLE FIRST LIMITED,Childrens Services,Children's Services,Living With Formal Support,,14/01/2020,"1,575.00",321100,Social Community Care Supplies & Services - Children
5365663,YOUNG PEOPLE FIRST LIMITED,Childrens Services,Children's Services,Living With Formal Support,,14/01/2020,"6,818.00",321100,Social Community Care Supplies & Services - Children
5365272,Vision Support Social,Childrens Services,Children's Services,Living With Formal Support,,14/01/2020,825,250000,Housing Management
5365685,Redacted,Education,Children's Services,Professional Services,,14/01/2020,875,310000,Healthcare
5365705,Kibble Education and Care Centre,Childrens Services,Children's Services,Childrens Homes Outside Local Authority Fees,,14/01/2020,"56,823.00",170000,Education
5364755,ZZ DUP - KEYS CHILDCARE LTD,Education,Children's Services,#N/A,,14/01/2020,"8,550.00",321100,Social Community Care Supplies & Services - Children
5364747,ZZ DUP - KEYS CHILDCARE LTD,Education,Children's Services,#N/A,,14/01/2020,"10,830.00",321100,Social Community Care Supplies & Services - Children
5364748,ZZ DUP - KEYS CHILDCARE LTD,Education,Children's Services,#N/A,,14/01/2020,"10,830.00",321100,Social Community Care Supplies & Services - Children
5368360,ACCCOUNTING OFFICER HOME OFFICE,Hosted Services,Hosted Services,Professional Services,,14/01/2020,"2,570.16",200000,Financial Services
5365659,Redacted,Policy and Communications,Governance,"Marketing, Publicity and Recruitment",,14/01/2020,"1,040.00",-999999,Unclassifiable
5367359,KPMG (UK) LLP,Finance,Finance & IT,Audit Commission Fees,,14/01/2020,"8,000.00",-999999,Unclassifiable
5365149,NPOWER LIMITED,Operations and Neighbourhoods,Operations and Neighbourhoods,Electricity,,14/01/2020,"5,290.37",370000,Utilities
5365820,De Vere Colmore Gate,Hosted Services,Hosted Services,Conference/Seminar Expenses For Staff,,15/01/2020,"2,658.33",190000,Facilities & Management Services
5365827,Redacted,Operations and Neighbourhoods,Operations and Neighbourhoods,Professional Entertainment Services,,15/01/2020,525.95,-999999,Unclassifiable
5368631,ISW CSC Limited,Childrens Services,Children's Services,Living With Formal Support,,15/01/2020,980,260000,Human Resources
5368633,ISW CSC Limited,Childrens Services,Children's Services,Living With Formal Support,,15/01/2020,"1,055.00",260000,Human Resources
5365846,YOUNG PEOPLE FIRST LIMITED,Childrens Services,Children's Services,Living With Formal Support,,15/01/2020,"1,225.00",321100,Social Community Care Supplies & Services - Children
5365844,YOUNG PEOPLE FIRST LIMITED,Childrens Services,Children's Services,Living With Formal Support,,15/01/2020,"3,584.00",321100,Social Community Care Supplies & Services - Children
5365849,Redacted,Childrens Services,Children's Services,Professional Child Services,,15/01/2020,"2,862.50",321000,Social Community Care Supplies & Services - Adult
5365850,Redacted,Education,Children's Services,Professional Services,,15/01/2020,"1,100.00",310000,Healthcare
5365852,Accountants In Demand t/a The Finegreen Group,Place,Growth,Agency Staff,,15/01/2020,"3,000.00",260000,Human Resources
5368559,NSL LIMITED,Operations and Neighbourhoods,Operations and Neighbourhoods,Fees,,15/01/2020,"1,047.00",350000,Street & Traffic Management
5365857,Redacted,Operations and Neighbourhoods,Operations and Neighbourhoods,General Materials,Business Payment,15/01/2020,"1,135.00",-999999,Unclassifiable
5365858,Redacted,Operations and Neighbourhoods,Operations and Neighbourhoods,Other Accomodation Related Costs,Business Payment,15/01/2020,"1,044.90",170000,Education
5365859,IDOX SOFTWARE LIMITED,Digital Tameside,Finance & IT,Computer Software Maintenance Costs,,15/01/2020,"5,225.00",270000,Information Communication Technology
5365845,AMARA CARE LTD,Adult Social Care,Adults,Day Care Fees,,15/01/2020,"11,035.71",321000,Social Community Care Supplies & Services - Adult
5368800,TELEFONICA O2 (UK) LTD,Digital Tameside,Finance & IT,Mobile Telephones,,15/01/2020,"5,970.14",270000,Information Communication Technology
5365851,11KBW LIMITED,Digital Tameside,Finance & IT,Legal Fees,,15/01/2020,"11,235.00",280000,Legal Services
5367209,THE FAMILY UNIT LTD,Childrens Services,Children's Services,Living With Formal Support,,15/01/2020,"7,000.00",321000,Social Community Care Supplies & Services - Adult
5367211,THE FAMILY UNIT LTD,Childrens Services,Children's Services,Living With Formal Support,,15/01/2020,"3,400.00",321000,Social Community Care Supplies & Services - Adult
5366082,SANDERSON WEATHERALL,Place,Growth,Agency Staff,,15/01/2020,"7,716.67",-999999,Unclassifiable
5365860,FOSTERING PEOPLE LTD,Childrens Services,Children's Services,Foster Carer Agency Fees,,15/01/2020,"3,342.57",321100,Social Community Care Supplies & Services - Children
5365862,COMPLETE BACKGROUND SCREENING LTD,People and Workforce Development,Governance,Professional Services,,15/01/2020,"1,583.00",-999999,Unclassifiable
5365832,TRIANGLE CARE GROUP,Childrens Services,Children's Services,Living With Formal Support,,15/01/2020,"5,000.00",321000,Social Community Care Supplies & Services - Adult
5365864,Redacted,Childrens Services,Children's Services,Foster Carer Agency Fees,Business Payment,15/01/2020,"3,491.89",321100,Social Community Care Supplies & Services - Children
5365866,Redacted,Childrens Services,Children's Services,Foster Carer Agency Fees,Business Payment,15/01/2020,"4,594.51",321100,Social Community Care Supplies & Services - Children
5365836,Redacted,Place,Growth,Gas,Business Payment,15/01/2020,645.96,370000,Utilities
5365842,Redacted,Operations and Neighbourhoods,Operations and Neighbourhoods,Purchase Sound Recordings,Business Payment,15/01/2020,"2,430.00",200000,Financial Services
5361480,FORENSIC TESTING SERVICE LTD,Childrens Services,Children's Services,Professional Services,,15/01/2020,"2,443.60",180000,Environmental Services
5365839,Redacted,Education,Children's Services,Professional Services,,15/01/2020,"2,200.00",170000,Education
5365837,S & M Builders,Operations and Neighbourhoods,Operations and Neighbourhoods,Engineers Works,,15/01/2020,"1,898.00",390000,"Works - Construction, Repair & Maintenance"
5365879,Olive Branch Fostering LTD,Childrens Services,Children's Services,Foster Carer Agency Fees,,15/01/2020,"3,502.96",321100,Social Community Care Supplies & Services - Children
5365912,Olive Branch Fostering LTD,Childrens Services,Children's Services,Foster Carer Agency Fees,,15/01/2020,"3,308.01",321100,Social Community Care Supplies & Services - Children
5365748,ZZ DUP - Civica UK Limited,Operations and Neighbourhoods,Operations and Neighbourhoods,Engineers Works,,15/01/2020,"3,870.00",270000,Information Communication Technology
5365747,STOCKPORT CP  SOCIETY,Adult Social Care,Adults,Day Centre Fees,,15/01/2020,"2,440.80",321000,Social Community Care Supplies & Services - Adult
5365755,MANCHESTER METROPOLITAN UNIVERSITY,People and Workforce Development,Governance,Training Course Costs,,15/01/2020,750,UNCLASS,Unclassifiable
5365758,MANCHESTER METROPOLITAN UNIVERSITY,People and Workforce Development,Governance,Training Course Costs,,15/01/2020,750,UNCLASS,Unclassifiable
5365757,MANCHESTER METROPOLITAN UNIVERSITY,People and Workforce Development,Governance,Training Course Costs,,15/01/2020,750,UNCLASS,Unclassifiable
5365760,MANCHESTER METROPOLITAN UNIVERSITY,People and Workforce Development,Governance,Training Course Costs,,15/01/2020,750,UNCLASS,Unclassifiable
5365754,MANCHESTER METROPOLITAN UNIVERSITY,People and Workforce Development,Governance,Training Course Costs,,15/01/2020,750,UNCLASS,Unclassifiable
5365759,MANCHESTER METROPOLITAN UNIVERSITY,People and Workforce Development,Governance,Training Course Costs,,15/01/2020,750,UNCLASS,Unclassifiable
5365753,MANCHESTER METROPOLITAN UNIVERSITY,People and Workforce Development,Governance,Training Course Costs,,15/01/2020,750,UNCLASS,Unclassifiable
5365756,MANCHESTER METROPOLITAN UNIVERSITY,People and Workforce Development,Governance,Training Course Costs,,15/01/2020,750,UNCLASS,Unclassifiable
5368629,Redacted,Operations and Neighbourhoods,Operations and Neighbourhoods,Engineers Works,,15/01/2020,"2,180.00",390000,"Works - Construction, Repair & Maintenance"
5365738,A-PLANT,Governance,Governance,General Equipment Rental,,15/01/2020,"1,370.00",-999999,Unclassifiable
5365730,A-PLANT,Governance,Governance,General Equipment Rental,,15/01/2020,"1,370.00",-999999,Unclassifiable
5365735,A-PLANT,Governance,Governance,General Equipment Rental,,15/01/2020,"1,370.00",-999999,Unclassifiable
5365736,A-PLANT,Governance,Governance,General Equipment Rental,,15/01/2020,"1,370.00",-999999,Unclassifiable
5365734,A-PLANT,Governance,Governance,General Equipment Rental,,15/01/2020,"1,285.00",-999999,Unclassifiable
5365731,A-PLANT,Governance,Governance,General Equipment Rental,,15/01/2020,"1,895.00",-999999,Unclassifiable
5365732,A-PLANT,Governance,Governance,General Equipment Rental,,15/01/2020,"1,895.00",-999999,Unclassifiable
5368658,NPOWER LIMITED,Operations and Neighbourhoods,Operations and Neighbourhoods,Electricity,,15/01/2020,"130,321.48",370000,Utilities
5367056,Redacted,Education,Children's Services,Transport Of Pupils,,15/01/2020,"1,124.50",360000,Public Transport
5365726,FOSTER CARES LTD,Childrens Services,Children's Services,Foster Carer Agency Fees,,15/01/2020,850,321100,Social Community Care Supplies & Services - Children
5365725,FOSTER CARES LTD,Childrens Services,Children's Services,Foster Carer Agency Fees,,15/01/2020,760,321100,Social Community Care Supplies & Services - Children
5365724,FOSTER CARES LTD,Childrens Services,Children's Services,Foster Carer Agency Fees,,15/01/2020,760,321100,Social Community Care Supplies & Services - Children
5363815,Medgen Limited,Childrens Services,Children's Services,Homecare Fees,,16/01/2020,882,260000,Human Resources
5365961,Moving Forward Care Ltd,Childrens Services,Children's Services,Living With Formal Support,,16/01/2020,"3,400.00",321100,Social Community Care Supplies & Services - Children
5367352,NewCare Lodgings Limited,Childrens Services,Children's Services,Living With Formal Support,,16/01/2020,"3,321.43",321100,Social Community Care Supplies & Services - Children
5367325,NewCare Lodgings Limited,Childrens Services,Children's Services,Living With Formal Support,,16/01/2020,"3,764.28",321100,Social Community Care Supplies & Services - Children
5365964,Acumen Waste Services Limited,Place,Growth,Fees,,16/01/2020,"1,023.50",180000,Environmental Services
5365261,Next Stage 4 Life Limited,Childrens Services,Children's Services,Childrens Homes Outside Local Authority Fees,,16/01/2020,"12,385.69",321000,Social Community Care Supplies & Services - Adult
5365260,Next Stage 4 Life Limited,Childrens Services,Children's Services,Childrens Homes Outside Local Authority Fees,,16/01/2020,"22,585.67",321000,Social Community Care Supplies & Services - Adult
5368728,Redacted,Childrens Services,Children's Services,Foster Carer Agency Fees,,16/01/2020,835,400000,Non 3rd Party spend  
5368671,Redacted,Childrens Services,Children's Services,Placement with Relative or Friend Outside LA,,16/01/2020,"1,762.56",400000,Non 3rd Party spend  
3250744,JOHNSTON SWEEPERS LTD,Operations and Neighbourhoods,Operations and Neighbourhoods,General Materials,,16/01/2020,"1,036.61",180000,Environmental Services
3250744,LEX AUTOLEASE,Operations and Neighbourhoods,Operations and Neighbourhoods,Core Hire,,16/01/2020,710.53,-999999,Unclassifiable
3250744,AEBI SCHMIDT UK LTD,Operations and Neighbourhoods,Operations and Neighbourhoods,General Materials,,16/01/2020,"1,168.17",380000,Vehicle Management
3250744,Teletrac Navman UK LTD (in corporating Navman Wireless UK LTD),Operations and Neighbourhoods,Operations and Neighbourhoods,Sub-contractor Services,,16/01/2020,"5,385.33",360000,Public Transport
3250744,AC PLANT GLAZING LTD,Operations and Neighbourhoods,Operations and Neighbourhoods,Sub-contractor Services,,16/01/2020,700,381500,Vehicle Management
3250744,RIVERSIDE TRUCK RENTAL LIMITED,Operations and Neighbourhoods,Operations and Neighbourhoods,Replacement Hire,,16/01/2020,895,380000,Vehicle Management
3250744,MOTUS COMMERCIALS (OLDHAM),Operations and Neighbourhoods,Operations and Neighbourhoods,General Materials,,16/01/2020,562.76,380000,Vehicle Management
5366812,L & R ROADLINES LIMITED,(blank),(blank),Road Marking Works,,16/01/2020,"3,728.59",391411,"Works - Construction, Repair & Maintenance"
5365978,DOMAIN CARE NORTH WEST LTD,Adult Social Care,Adults,Day Centre Fees,,16/01/2020,"1,283.76",321100,Social Community Care Supplies & Services - Children
5365974,DOMAIN CARE NORTH WEST LTD,Adult Social Care,Adults,Day Centre Fees,,16/01/2020,"1,283.76",321100,Social Community Care Supplies & Services - Children
5366007,WF Education Group Limited t/a Gresswell,Operations and Neighbourhoods,Operations and Neighbourhoods,Other Accomodation Related Costs,,16/01/2020,870,170000,Education
5367454,GREENSCAPE,Adult Social Care,Adults,Professional Services,,16/01/2020,"2,967.00",390000,"Works - Construction, Repair & Maintenance"
5366455,LAVAT CONSULTING LIMITED,Finance,Finance & IT,Professional Consultancy Services,,16/01/2020,"4,350.00",150000,Consultancy
5367651,AIDAN GAUNT FUNERAL DIRECTORS,Operations and Neighbourhoods,Operations and Neighbourhoods,Professional Services,,16/01/2020,"1,440.00",-999999,Unclassifiable
5366000,SYMOLOGY LIMITED,Operations and Neighbourhoods,Operations and Neighbourhoods,Computer Software,,16/01/2020,635,270000,Information Communication Technology
5365991,TUDOR (UK) LTD T/A TUDOR ENVIRONMENTAL,Operations and Neighbourhoods,Operations and Neighbourhoods,Building Maintenance,,16/01/2020,579,240000,Horticultural
5365990,TUDOR (UK) LTD T/A TUDOR ENVIRONMENTAL,Operations and Neighbourhoods,Operations and Neighbourhoods,General Equipment Repair & Maintenance,,16/01/2020,520,240000,Horticultural
5365952,BLAST AWAY CLEANING (NORTH WEST) LTD,Operations and Neighbourhoods,Operations and Neighbourhoods,Cleaning Contractor Costs,,16/01/2020,"2,000.00",180000,Environmental Services
5365958,Redacted,Operations and Neighbourhoods,Operations and Neighbourhoods,Professional Entertainment Services,,16/01/2020,"1,320.00",-999999,Unclassifiable
5365959,Redacted,Operations and Neighbourhoods,Operations and Neighbourhoods,Professional Entertainment Services,,16/01/2020,"1,760.00",-999999,Unclassifiable
5365968,Onward Homes,Place,Growth,Contributions,,16/01/2020,"3,400.21",190000,Facilities & Management Services
5367334,INSPIREDSPACES TAMESIDE LTD,(blank),(blank),Survey/Surveyors Fees,,16/01/2020,"36,289.05",390000,"Works - Construction, Repair & Maintenance"
5365993,Redacted,Education,Children's Services,Professional Services,,16/01/2020,"1,100.00",170000,Education
5365502,Redacted,Childrens Services,Children's Services,Living With Formal Support,Business Payment,16/01/2020,507.24,321000,Social Community Care Supplies & Services - Adult
5367665,Smartway Health and Social Care Limited,Adult Social Care,Adults,Homecare Fees,,16/01/2020,"1,917.41",321000,Social Community Care Supplies & Services - Adult
5368660,Hyde Accessible Transport Limited,Education,Children's Services,Transport Of Pupils,,16/01/2020,787.5,360000,Public Transport
5367576,NMA Travel LTD,Education,Children's Services,Transport Of Pupils,,16/01/2020,"1,680.00",360000,Public Transport
5367574,NMA Travel LTD,Education,Children's Services,Transport Of Pupils,,16/01/2020,"1,770.00",360000,Public Transport
5367581,NMA Travel LTD,Education,Children's Services,Transport Of Post 16 Pupils,,16/01/2020,"1,378.00",360000,Public Transport
5365933,THE UNIVERSITY OF MANCHESTER,Hosted Services,Hosted Services,Professional Services,,16/01/2020,"8,333.37",UNCLASS,Unclassifiable
5337342,GREATER MANCHESTER COMBINED AUTHORITY,Operations and Neighbourhoods,Operations and Neighbourhoods,GMC Waste Disposal Levy,,16/01/2020,"1,288,000.00",-999999,Unclassifiable
5365940,CROMWELL POLYTHENE LTD.,Operations and Neighbourhoods,Operations and Neighbourhoods,Purchase Plastic Sacks,,16/01/2020,"4,824.00",-999999,Unclassifiable
5367636,TAMESIDE SPORTS TRUST,Childrens Services,Children's Services,"Activity (Materials, Trips)",,16/01/2020,"1,948.00",290000,Arts & Leisure Services
5365949,OXFORD UNIVERSITY PRESS,Operations and Neighbourhoods,Operations and Neighbourhoods,Purchase Sound Recordings,,16/01/2020,"2,139.00",UNCLASS,Unclassifiable
5365892,BANNER GROUP LIMITED,Childrens Services,Children's Services,"Activity (Materials, Trips)",,16/01/2020,848.84,340000,Stationery
5365943,ORANGE PCS Airtime,Digital Tameside,Finance & IT,Telephone Landline Costs,,16/01/2020,"1,502.76",270000,Information Communication Technology
5365941,ORANGE PCS Airtime,Digital Tameside,Finance & IT,Telephone Landline Costs,,16/01/2020,511.44,270000,Information Communication Technology
5365944,ORANGE PCS Airtime,Digital Tameside,Finance & IT,Telephone Landline Costs,,16/01/2020,"4,584.20",270000,Information Communication Technology
5365886,STONE COMPUTERS LTD,Digital Tameside,Finance & IT,It Equipment,,16/01/2020,580,271200,Information Communication Technology
5367573,SHARED-CARE T/A MAPLE LEAF LIMITED,Childrens Services,Children's Services,Childrens Homes Outside Local Authority Fees,,16/01/2020,"11,447.85",321100,Social Community Care Supplies & Services - Children
5367575,SHARED-CARE T/A MAPLE LEAF LIMITED,Childrens Services,Children's Services,Childrens Homes Outside Local Authority Fees,,16/01/2020,"11,447.85",321100,Social Community Care Supplies & Services - Children
5368769,WORLDPAY,Finance,Finance & IT,National Giro,,17/01/2020,"9,510.46",200000,Financial Services
5366490,Medgen Limited,Childrens Services,Children's Services,Homecare Fees,,17/01/2020,"1,056.38",260000,Human Resources
5366192,HC Assessment Ltd,Adult Social Care,Adults,Professional Services,,17/01/2020,"1,449.50",260000,Human Resources
5366560,Interserve Healthcare Limited,Childrens Services,Children's Services,Day Care Fees,,17/01/2020,"1,238.91",321100,Social Community Care Supplies & Services - Children
5366269,Redacted,Operations and Neighbourhoods,Operations and Neighbourhoods,Professional Entertainment Services,,17/01/2020,640,290000,Arts & Leisure Services
5366063,Redacted,Operations and Neighbourhoods,Operations and Neighbourhoods,Professional Entertainment Services,,17/01/2020,"1,040.00",400000,Non 3rd Party spend  
5366567,Government Events,Operations and Neighbourhoods,Operations and Neighbourhoods,Training Course Costs,,17/01/2020,661.3,290000,Arts & Leisure Services
5366271,Redacted,Hosted Services,Hosted Services,Conference/Seminar Expenses For Staff,,17/01/2020,600,400000,Non 3rd Party spend  
5366513,Redacted,Population Health,Population Health,Contributions,,17/01/2020,"2,125.00",190000,Facilities & Management Services
5366516,Steroplast Healthcare Limited,Operations and Neighbourhoods,Operations and Neighbourhoods,General Materials,,17/01/2020,"1,551.50",-999999,Unclassifiable
5366447,Redacted,Childrens Services,Children's Services,Living With Formal Support,Business Payment,17/01/2020,850,321100,Social Community Care Supplies & Services - Children
5366067,Sandcastle Care LTD,Childrens Services,Children's Services,Childrens Homes Outside Local Authority Fees,,17/01/2020,"5,685.71",321000,Social Community Care Supplies & Services - Adult
5366066,Sandcastle Care LTD,Childrens Services,Children's Services,Childrens Homes Outside Local Authority Fees,,17/01/2020,"26,549.29",321000,Social Community Care Supplies & Services - Adult
5367963,TechAlign LTD,Place,Growth,Other Accomodation Related Costs,,17/01/2020,"1,725.00",-999999,Unclassifiable
5366211,North West Assessments Limited,Place,Growth,Recruitment Campaign,,17/01/2020,"1,875.00",260000,Human Resources
5366282,G2V Recruitment Group Limited t/a Vivid Resourcing,Place,Growth,Agency Staff,,17/01/2020,"1,500.00",280000,Legal Services
5366279,G2V Recruitment Group Limited t/a Vivid Resourcing,Place,Growth,Agency Staff,,17/01/2020,"2,500.00",280000,Legal Services
5369023,Redacted,Operations and Neighbourhoods,Operations and Neighbourhoods,Professional Services,,17/01/2020,"2,500.00",340000,Stationery
5366284,KBW Barristers Chambers,Childrens Services,Children's Services,Legal Fees,,17/01/2020,600,280000,Legal Services
5366178,Richmond Fellowship,Adult Social Care,Adults,Residential Home Long Stay Fees,,17/01/2020,"1,870.80",170000,Education
5367914,Holiday Inn Manchester City,Hosted Services,Hosted Services,Room Hire,,17/01/2020,"4,908.25",261000,Human Resources
5367878,Redacted,Adult Social Care,Adults,Day Care Fees,,17/01/2020,911.64,321000,Social Community Care Supplies & Services - Adult
5368289,VERTICAL ACCESS LIMITED,District Assemblies,"Community,Environmental,Adult and Health Services",Engineers -External,,17/01/2020,"12,164.00",100000,Building Construction Materials
5366629,WF Education Group Limited t/a Gresswell,Operations and Neighbourhoods,Operations and Neighbourhoods,Other Accomodation Related Costs,,17/01/2020,849.9,170000,Education
5366074,VILLAGE URBAN RESORTS,Childrens Services,Children's Services,Cash Grants,,17/01/2020,"3,333.33",260000,Human Resources
5366619,HEALTH MANAGEMENT (UK) LTD,People and Workforce Development,Governance,Professional Medical Services,,17/01/2020,"7,050.26",310000,Healthcare
5367840,GREENSCAPE,Adult Social Care,Adults,Professional Services,,17/01/2020,"4,147.35",390000,"Works - Construction, Repair & Maintenance"
5367982,GREENSCAPE,Adult Social Care,Adults,Professional Services,,17/01/2020,"2,572.00",390000,"Works - Construction, Repair & Maintenance"
5367981,GREENSCAPE,Adult Social Care,Adults,Professional Services,,17/01/2020,"1,446.75",390000,"Works - Construction, Repair & Maintenance"
5366283,AUTISM INITIATIVES (UK),Adult Social Care,Adults,Supporting People Gross Contract,,17/01/2020,"5,142.14",321100,Social Community Care Supplies & Services - Children
5366628,TAMESIDE AND GLOSSOP INTEGRATED CARE NHS FOUNDATION TRUST,Hosted Services,Hosted Services,Professional Services,,17/01/2020,"425,438.00",310000,Healthcare
5366614,Randstad Public Services Limited,Education,Children's Services,Agency Staff,,17/01/2020,572.5,170000,Education
5366372,Randstad Public Services Limited,Education,Children's Services,Agency Staff,,17/01/2020,572.5,170000,Education
5366375,Randstad Public Services Limited,Education,Children's Services,Agency Staff,,17/01/2020,"3,345.00",170000,Education
5366587,Randstad Public Services Limited,Individual Schools Budget,Children's Services,Agency Staff,,17/01/2020,"1,050.00",170000,Education
5366043,Randstad Public Services Limited,Education,Children's Services,Agency Staff,,17/01/2020,572.5,170000,Education
5366597,Randstad Public Services Limited,Education,Children's Services,Agency Staff,,17/01/2020,572.5,170000,Education
5366599,Randstad Public Services Limited,Education,Children's Services,Agency Staff,,17/01/2020,572.5,170000,Education
5366612,Randstad Public Services Limited,Education,Children's Services,Agency Staff,,17/01/2020,547.15,170000,Education
5366615,Randstad Public Services Limited,Education,Children's Services,Agency Staff,,17/01/2020,547.15,170000,Education
5366076,Randstad Public Services Limited,Individual Schools Budget,Children's Services,Agency Staff,,17/01/2020,955,170000,Education
5366412,Randstad Public Services Limited,Individual Schools Budget,Children's Services,Agency Staff,,17/01/2020,955,170000,Education
5366410,Randstad Public Services Limited,Individual Schools Budget,Children's Services,Agency Staff,,17/01/2020,525,170000,Education
5366078,Randstad Public Services Limited,Individual Schools Budget,Children's Services,Agency Staff,,17/01/2020,700,170000,Education
5366893,TELEFONICA O2 (UK) LTD,Digital Tameside,Finance & IT,Mobile Telephones,,17/01/2020,"5,904.74",270000,Information Communication Technology
5366042,TELEFONICA O2 (UK) LTD,Digital Tameside,Finance & IT,Mobile Telephones,,17/01/2020,"1,018.00",270000,Information Communication Technology
5368999,LOVE OUR CHILD,Education,Children's Services,#N/A,,17/01/2020,988,321100,Social Community Care Supplies & Services - Children
5368996,LOVE OUR CHILD,Education,Children's Services,#N/A,,17/01/2020,988,321100,Social Community Care Supplies & Services - Children
5366226,TURNING POINT SERVICES LIMITED,Adult Social Care,Adults,Homecare Fees,,17/01/2020,"13,569.42",321000,Social Community Care Supplies & Services - Adult
5366210,TURNING POINT SERVICES LIMITED,Adult Social Care,Adults,Independent Sector Care Fees,,17/01/2020,"182,362.62",321000,Social Community Care Supplies & Services - Adult
5368982,PRECIOUS LITTLE ONES LTD,Education,Children's Services,#N/A,,17/01/2020,988,170000,Education
5366450,KALAMAZOO SECURE SOLUTIONS LTD,Finance,Finance & IT,Printing And Stationery,,17/01/2020,880,190000,Facilities & Management Services
5366677,TYNETEC,Adult Social Care,Adults,It Equipment,,17/01/2020,"8,828.76",321100,Social Community Care Supplies & Services - Children
5365051,TIPTOES CHILD THERAPY SERVICES (LTD),Childrens Services,Children's Services,Nursery Services,,17/01/2020,"1,400.00",321100,Social Community Care Supplies & Services - Children
5366105,SOFTCAT LIMITED,Digital Tameside,Finance & IT,It Equipment,,17/01/2020,628.68,270000,Information Communication Technology
5366632,SOFTCAT LIMITED,Digital Tameside,Finance & IT,Computer Software Maintenance Costs,,17/01/2020,"4,548.00",270000,Information Communication Technology
5367824,PERSON CENTRED CARE SERVICES LIMITED,Adult Social Care,Adults,Homecare Fees,,17/01/2020,"9,105.03",310000,Healthcare
5368326,PERSON CENTRED CARE SERVICES LIMITED,Adult Social Care,Adults,Homecare Fees,,17/01/2020,"9,051.39",310000,Healthcare
5367827,PERSON CENTRED CARE SERVICES LIMITED,Adult Social Care,Adults,Homecare Fees,,17/01/2020,"7,801.19",310000,Healthcare
5367822,PERSON CENTRED CARE SERVICES LIMITED,Adult Social Care,Adults,Homecare Fees,,17/01/2020,"7,980.56",310000,Healthcare
5366426,PROFILE SECURITY SERVICES LIMITED,Operations and Neighbourhoods,Operations and Neighbourhoods,Security Services,,17/01/2020,"3,016.81",190000,Facilities & Management Services
5366441,PROFILE SECURITY SERVICES LIMITED,Operations and Neighbourhoods,Operations and Neighbourhoods,Security Services,,17/01/2020,"5,635.50",190000,Facilities & Management Services
5366202,CREATIVE IDEAS IN PRINT LTD,Policy and Communications,Governance,Printing And Stationery,,17/01/2020,565,190000,Facilities & Management Services
5366442,SALFORD ROYAL NHS FOUNDATION TRUST,Hosted Services,Hosted Services,Contributions,,17/01/2020,"4,365.56",200000,Financial Services
5366399,NEW BRIDGE HORIZONS,Adult Social Care,Adults,Day Centre Fees,,17/01/2020,"1,167.50",321000,Social Community Care Supplies & Services - Adult
5366320,NEW BRIDGE HORIZONS,Adult Social Care,Adults,Day Centre Fees,,17/01/2020,900,321000,Social Community Care Supplies & Services - Adult
5366322,NEW BRIDGE HORIZONS,Adult Social Care,Adults,Day Centre Fees,,17/01/2020,934,321000,Social Community Care Supplies & Services - Adult
5366233,NEW BRIDGE HORIZONS,Adult Social Care,Adults,Day Centre Fees,,17/01/2020,812.5,321000,Social Community Care Supplies & Services - Adult
5366318,NEW BRIDGE HORIZONS,Adult Social Care,Adults,Day Centre Fees,,17/01/2020,984,321000,Social Community Care Supplies & Services - Adult
5366234,NEW BRIDGE HORIZONS,Adult Social Care,Adults,Day Centre Fees,,17/01/2020,508,321000,Social Community Care Supplies & Services - Adult
5367498,Eden Brown LTD,Childrens Services,Children's Services,Agency Staff,,17/01/2020,"2,598.30",-999999,Unclassifiable
5367854,ABLE CARE AND SUPPORT SERVICES LTD,Adult Social Care,Adults,Homecare Fees,,17/01/2020,"4,868.51",321000,Social Community Care Supplies & Services - Adult
5366172,THE CHESHIRE & GREATER MANCHESTER COMMUNITY REHABILITATION COMPANY LTD,Operations and Neighbourhoods,Operations and Neighbourhoods,Professional Services,,17/01/2020,"7,000.00",-999999,Unclassifiable
5366435,PLATINUM STAIRLIFTS LIMITED,Housing,Director of Place,Improvement Grants - Final Mandatory,,17/01/2020,"2,200.74",321000,Social Community Care Supplies & Services - Adult
5366223,PLATINUM STAIRLIFTS LIMITED,Housing,Director of Place,Improvement Grants - Final Mandatory,,17/01/2020,"3,518.75",321000,Social Community Care Supplies & Services - Adult
5366437,PLATINUM STAIRLIFTS LIMITED,Housing,Director of Place,Improvement Grants - Final Mandatory,,17/01/2020,"4,222.56",321000,Social Community Care Supplies & Services - Adult
5366669,TUDOR (UK) LTD T/A TUDOR ENVIRONMENTAL,Operations and Neighbourhoods,Operations and Neighbourhoods,General Materials,,17/01/2020,617.4,240000,Horticultural
5367033,AFFINITY TRUST,Adult Social Care,Adults,Homecare Fees,,17/01/2020,737.76,321000,Social Community Care Supplies & Services - Adult
5367165,AFFINITY TRUST,Adult Social Care,Adults,Homecare Fees,,17/01/2020,"2,271.86",321000,Social Community Care Supplies & Services - Adult
5367034,AFFINITY TRUST,Adult Social Care,Adults,Homecare Fees,,17/01/2020,"141,032.17",321000,Social Community Care Supplies & Services - Adult
5366439,IDEA FARM LTD,Individual Schools Budget,Children's Services,Computer Hardware Maintenance Costs,,17/01/2020,995,270000,Information Communication Technology
5366653,FORENSIC TESTING SERVICE LTD,Childrens Services,Children's Services,Professional Services,,17/01/2020,660.5,180000,Environmental Services
5366217,CIPFA - PENNA (PENNA PLC),Place,Growth,Agency Staff,,17/01/2020,"16,800.00",260000,Human Resources
5366193,Redacted,Education,Children's Services,Professional Services,,17/01/2020,"1,100.00",170000,Education
5369038,BRIGHT STARS PDN,Education,Children's Services,#N/A,,17/01/2020,988,170000,Education
5366180,HORIZON SEMI-INDEPENDENT SUPPORT,Childrens Services,Children's Services,Living With Formal Support,,17/01/2020,"3,800.00",321000,Social Community Care Supplies & Services - Adult
5366181,HORIZON SEMI-INDEPENDENT SUPPORT,Childrens Services,Children's Services,Living With Formal Support,,17/01/2020,"4,200.00",321000,Social Community Care Supplies & Services - Adult
5366430,Oxford Innovation LTD - ASHTON OLD BATHS,Place,Growth,Professional Services,,17/01/2020,"21,322.75",190000,Facilities & Management Services
5366187,DHL Parcel UK Ltd (UK Mail),Exchequer,Governance,Printing And Stationery,,17/01/2020,"1,491.72",300000,Mail Services
5366416,Change Grow Live,Population Health,Population Health,Professional Services,,17/01/2020,"272,416.00",321000,Social Community Care Supplies & Services - Adult
5368635,Oxygen Finance Limited,People and Workforce Development,Governance,Professional Services,,17/01/2020,"1,751.79",200000,Financial Services
5369025,Arrow Cabs LTD,Education,Children's Services,Transport Of Ola Pupils,,17/01/2020,"2,450.00",360000,Public Transport
5367594,Hyde Accessible Transport Limited,Education,Children's Services,Transport Of Pupils,,17/01/2020,"1,350.00",360000,Public Transport
5366644,Redacted,Operations and Neighbourhoods,Operations and Neighbourhoods,Security Services,Redacted Supplier,17/01/2020,"6,612.60",-999999,Unclassifiable
5366638,Redacted,Operations and Neighbourhoods,Operations and Neighbourhoods,General Materials,Redacted Supplier,17/01/2020,"1,453.54",140000,Clothing
5367720,Redacted,Education,Children's Services,Transport Of Pupils,Redacted Supplier,17/01/2020,"1,462.50",360000,Public Transport
5366630,Redacted,Adult Social Care,Adults,Day Care Fees,Redacted Supplier,17/01/2020,"2,094.00",321000,Social Community Care Supplies & Services - Adult
5366635,Redacted,Adult Social Care,Adults,Day Care Fees,Redacted Supplier,17/01/2020,"2,091.00",321000,Social Community Care Supplies & Services - Adult
5366214,STOCKPORT CP  SOCIETY,Adult Social Care,Adults,Day Centre Fees,,17/01/2020,"2,034.00",321000,Social Community Care Supplies & Services - Adult
5366236,THE LANDSCAPE CENTRE,Operations and Neighbourhoods,Operations and Neighbourhoods,Professional Entertainment Services,,17/01/2020,891,390000,"Works - Construction, Repair & Maintenance"
5366194,APSE,Operations and Neighbourhoods,Operations and Neighbourhoods,Subscriptions,,17/01/2020,"3,391.00",UNCLASS,Unclassifiable
5368191,NETWORK CONNECT LTD,Digital Tameside,Finance & IT,Computer Hardware Rental,,17/01/2020,"10,443.73",270000,Information Communication Technology
5366605,TAMESIDE LINK,Childrens Services,Children's Services,Homecare Fees,,17/01/2020,922.2,321000,Social Community Care Supplies & Services - Adult
5366169,IDN SUPPLIES LTD,Digital Tameside,Finance & IT,It Equipment,,17/01/2020,935.32,170000,Education
5368154,R & P PRINTERS,GMPF (FX),GMPF (FX),Printing And Stationery,,17/01/2020,613.05,190000,Facilities & Management Services
5366319,"GROUNDWORK M/CR,SALFORD,STOCKPORT,TAMESIDE&TRAFFOD",Operations and Neighbourhoods,Operations and Neighbourhoods,General Materials,,17/01/2020,"4,988.00",390000,"Works - Construction, Repair & Maintenance"
5366384,SWIIS FOSTER CARE LTD,Childrens Services,Children's Services,Foster Carer Agency Fees,,17/01/2020,703.92,321100,Social Community Care Supplies & Services - Children
5366386,Redacted,Childrens Services,Children's Services,Foster Carer Agency Fees,Redacted Supplier,17/01/2020,658.84,321100,Social Community Care Supplies & Services - Children
5366388,SWIIS FOSTER CARE LTD,Childrens Services,Children's Services,Foster Carer Agency Fees,,17/01/2020,693.49,321100,Social Community Care Supplies & Services - Children
5366316,SWIIS FOSTER CARE LTD,Childrens Services,Children's Services,Foster Carer Agency Fees,,17/01/2020,796.11,321100,Social Community Care Supplies & Services - Children
5366382,Redacted,Childrens Services,Children's Services,Foster Carer Agency Fees,Redacted Supplier,17/01/2020,760.48,321100,Social Community Care Supplies & Services - Children
5366385,SWIIS FOSTER CARE LTD,Childrens Services,Children's Services,Foster Carer Agency Fees,,17/01/2020,796.11,321100,Social Community Care Supplies & Services - Children
5366383,SWIIS FOSTER CARE LTD,Childrens Services,Children's Services,Foster Carer Agency Fees,,17/01/2020,899.99,321100,Social Community Care Supplies & Services - Children
5366431,STAFF CARE SERVICES,Adult Social Care,Adults,Professional Consultancy Services,,17/01/2020,"1,320.58",260000,Human Resources
5366099,MASSEY & HARRIS LTD,Operations and Neighbourhoods,Operations and Neighbourhoods,General Equipment Repair & Maintenance,,17/01/2020,"1,905.00",330000,Sports & Playground Equipment & Maintenance
5366197,WESSEX LIFT CO. LIMITED,Housing,Director of Place,Improvement Grants - Final Mandatory,,17/01/2020,"19,475.00",390000,"Works - Construction, Repair & Maintenance"
5366424,WESSEX LIFT CO. LIMITED,Housing,Director of Place,Improvement Grants - Final Mandatory,,17/01/2020,"12,162.00",390000,"Works - Construction, Repair & Maintenance"
5366417,ZZ DUP - OLDHAM COUNCIL,Childrens Services,Children's Services,Contributions,,17/01/2020,"15,000.00",321000,Social Community Care Supplies & Services - Adult
5366527,WESLEY PROPERTIES (NORTHERN) LTD,Adult Social Care,Adults,Non-Authority Accommodation Rental,,17/01/2020,"1,354.41",190000,Facilities & Management Services
5366452,PROMOTO LOGO,Operations and Neighbourhoods,Operations and Neighbourhoods,General Materials,,17/01/2020,672.1,190000,Facilities & Management Services
5366241,BEDSPACE RESOURCE LTD,Childrens Services,Children's Services,Living With Formal Support,,17/01/2020,625,250000,Housing Management
5366315,MHR International UK Limited,People and Workforce Development,Governance,Computer Software,,17/01/2020,"1,440.60",270000,Information Communication Technology
5366589,ROSS AUTO ENGINEERING LIMITED TRADING AS ROSS CARE,Adult Social Care,Adults,Joint Loans Store Fee,,17/01/2020,"126,296.21",321100,Social Community Care Supplies & Services - Children
5366045,NPOWER LIMITED,Operations and Neighbourhoods,Operations and Neighbourhoods,Electricity,,17/01/2020,"173,221.57",370000,Utilities
5366244,NPOWER LIMITED,Place,Growth,Electricity,,17/01/2020,"64,684.28",370000,Utilities
5366044,NPOWER LIMITED,Place,Growth,Electricity,,17/01/2020,"21,632.52",370000,Utilities
5367719,FENTONS MINIBUSES LTD,Education,Children's Services,Transport Of Ola Pupils,,17/01/2020,"1,912.50",360000,Public Transport
5369043,ROSEBUDS CHILDCARE LTD,Education,Children's Services,#N/A,,17/01/2020,"1,976.00",170000,Education
5367708,TAMESIDE ARTS LTD,Adult Social Care,Adults,Professional Services,,17/01/2020,"3,086.40",290000,Arts & Leisure Services
5367709,TAMESIDE ARTS LTD,Adult Social Care,Adults,Professional Services,,17/01/2020,"1,511.05",290000,Arts & Leisure Services
5367752,TAMESIDE ARTS LTD,Adult Social Care,Adults,Professional Services,,17/01/2020,"2,443.40",290000,Arts & Leisure Services
5366530,CROFT INVESTMENTS LTD,Adult Social Care,Adults,Non-Authority Accommodation Rental,,17/01/2020,"2,001.65",321000,Social Community Care Supplies & Services - Adult
5367099,STAMFORD CARS UK LTD,Operations and Neighbourhoods,Operations and Neighbourhoods,Transport Of Pupils,,17/01/2020,"2,200.00",361510,Public Transport
5366148,Water Plus,Place,Growth,Metered Water Costs,,17/01/2020,690.64,370000,Utilities
5366255,FOSTER CARES LTD,Childrens Services,Children's Services,Foster Carer Agency Fees,,17/01/2020,760,321100,Social Community Care Supplies & Services - Children
5366256,FOSTER CARES LTD,Childrens Services,Children's Services,Foster Carer Agency Fees,,17/01/2020,850,321100,Social Community Care Supplies & Services - Children
5366258,FOSTER CARES LTD,Childrens Services,Children's Services,Foster Carer Agency Fees,,17/01/2020,760,321100,Social Community Care Supplies & Services - Children
5366133,K P DODD CONSTRUCTION LTD,Housing,Director of Place,Improvement Grants - Final Mandatory,,17/01/2020,"5,090.00",399999,"Works - Construction, Repair & Maintenance"
470841,AGGREGATE INDUSTRIES UK LIMITED,Operations and Neighbourhoods,Operations and Neighbourhoods,General Materials,,20/01/2020,"9,871.72",230000,Highway Equipment & Materials
470841,AGGREGATE INDUSTRIES UK LIMITED,Operations and Neighbourhoods,Operations and Neighbourhoods,Sub-contractor Services,,20/01/2020,"4,065.35",230000,Highway Equipment & Materials
470841,AMBERON LTD,Operations and Neighbourhoods,Operations and Neighbourhoods,General Materials,,20/01/2020,742.86,230000,Highway Equipment & Materials
470841,EAGLE CIVIL ENGINEERING LTD,Operations and Neighbourhoods,Operations and Neighbourhoods,Sub-contractor Services,,20/01/2020,"7,281.68",391411,"Works - Construction, Repair & Maintenance"
470841,KEN TAYLOR SUPPLIES LTD,Operations and Neighbourhoods,Operations and Neighbourhoods,General Materials,,20/01/2020,"2,195.50",-999999,Unclassifiable
470841,KENNY BROTHERS,Operations and Neighbourhoods,Operations and Neighbourhoods,Sub-contractor Services,,20/01/2020,"17,400.00",391411,"Works - Construction, Repair & Maintenance"
470841,TARMAC CENTRAL LIMITED,Operations and Neighbourhoods,Operations and Neighbourhoods,,,20/01/2020,"3,171.95",230000,Highway Equipment & Materials
470841,WILDE CONSULTING ENGINEERS,Operations and Neighbourhoods,Operations and Neighbourhoods,General Materials,,20/01/2020,"7,109.46",150000,Consultancy
470841,P J SPENCER LTD,Operations and Neighbourhoods,Operations and Neighbourhoods,,,20/01/2020,"1,090.23",390000,"Works - Construction, Repair & Maintenance"
470841,BRAMHALL SURFACING LTD,Operations and Neighbourhoods,Operations and Neighbourhoods,Sub-contractor Services,,20/01/2020,"13,050.00",390000,"Works - Construction, Repair & Maintenance"
470841,4WAY CONSULTING LTD,Transport,Director of Place,General Materials,,20/01/2020,"2,053.13",180000,Environmental Services
470841,4WAY CONSULTING LTD,(blank),(blank),Engineers -External,,20/01/2020,"1,617.86",180000,Environmental Services
470841,INSTARMAC GROUP PLC,Civil Engineers,Director of Place,Debits Goods Received,,20/01/2020,"1,182.00",230000,Highway Equipment & Materials
470841,Saint-Gobain Building Distribution Limited t/a Benchmark Building Supplies,Civil Engineers,Director of Place,Debits Goods Received,,20/01/2020,"3,555.69",100000,Building Construction Materials
470841,CASTINGS SERVICES LTD,Civil Engineers,Director of Place,Debits Goods Received,,20/01/2020,930,100000,Building Construction Materials
470841,Holroyds Skip Hire Limited,Operations and Neighbourhoods,Operations and Neighbourhoods,Sub-contractor Services,,20/01/2020,"1,600.00",150000,Consultancy
470841,NORTHWEST UTILITY SOLUTIONS LTD,Operations and Neighbourhoods,Operations and Neighbourhoods,Sub-contractor Services,,20/01/2020,"15,453.00",370000,Utilities
470841,ROSGAL CIVIL ENGINEERING LTD,Operations and Neighbourhoods,Operations and Neighbourhoods,Sub-contractor Services,,20/01/2020,"6,600.00",230000,Highway Equipment & Materials
470841,GROUNDFORCE SHORCO,Operations and Neighbourhoods,Operations and Neighbourhoods,General Materials,,20/01/2020,"1,353.48",380000,Vehicle Management
470841,VIRIDOR,Operations and Neighbourhoods,Operations and Neighbourhoods,Tipping Facility Fees,,20/01/2020,"16,199.94",180000,Environmental Services
470841,Pavement Testing Services LTD,(blank),(blank),Highway Construction,,20/01/2020,"2,095.00",150000,Consultancy
470841,Redacted,Operations and Neighbourhoods,Operations and Neighbourhoods,Sub-contractor Services,Redacted Supplier,03/02/2020,"11,900.00",100000,Building Construction Materials
470841,J C Peacock & Co Ltd,Operations and Neighbourhoods,Operations and Neighbourhoods,General Materials,,04/02/2020,"1,450.44",180000,Environmental Services
5365273,Rio Ferdinand Foundation,Place,Growth,Professional Consultancy Services,,20/01/2020,"4,975.00",400000,Non 3rd Party spend  
5369146,Deaf Solutions 3,Education,Children's Services,Training Course Costs,,20/01/2020,752,170000,Education
5368603,UK Military Mentors Ltd,Operations and Neighbourhoods,Operations and Neighbourhoods,Professional Services,,20/01/2020,"8,300.00",310000,Healthcare
5367743,Cushman and Wakefield Debenham Tie Leung Limited (C&WDTL),Cultural and Customer Services,"Community,Environmental,Adult and Health Services",Fees,,20/01/2020,"1,566.00",-999999,Unclassifiable
5365333,G4S CASH SOLUTIONS (UK) LIMITED,Finance,Finance & IT,Security Services,,20/01/2020,608.1,190000,Facilities & Management Services
5368580,NEW CHARTER HOUSING TRUST GROUP,Adult Social Care,Adults,Non-Authority Accommodation Rental,,20/01/2020,"4,060.15",-999999,Unclassifiable
5368926,Redacted,Adult Social Care,Adults,Residential Home Long Stay Fees,,20/01/2020,712.59,-999999,Unclassifiable
5367620,INSPIREDSPACES TAMESIDE LTD,Tameside Investment Partnership,Director of Place,Refurbishment Construction Costs,,20/01/2020,"9,826.04",390000,"Works - Construction, Repair & Maintenance"
5367535,BARNSLEY M B C,Operations and Neighbourhoods,Operations and Neighbourhoods,General Materials,,20/01/2020,"2,000.00",400000,Non 3rd Party spend  
5367391,BT GLOBAL SERVICES,Digital Tameside,Finance & IT,Computer Hardware Rental,,20/01/2020,"7,549.81",270000,Information Communication Technology
5367225,STAMFORD CARS UK LTD,Operations and Neighbourhoods,Operations and Neighbourhoods,Hired Transport,,20/01/2020,675,361510,Public Transport
5368806,DWYERS SOLICITORS,Multiple Heads of Service,Multiple Strategic Directorates,Claims Settled,,20/01/2020,"6,130.00",289999,Legal Services
5369215,ISW CSC Limited,Childrens Services,Children's Services,Living With Formal Support,,21/01/2020,890,260000,Human Resources
5366526,YOUNG PEOPLE FIRST LIMITED,Childrens Services,Children's Services,Living With Formal Support,,21/01/2020,"1,575.00",321100,Social Community Care Supplies & Services - Children
5366524,YOUNG PEOPLE FIRST LIMITED,Childrens Services,Children's Services,Living With Formal Support,,21/01/2020,"6,818.00",321100,Social Community Care Supplies & Services - Children
5365775,Life Centre Events Limited,Hosted Services,Hosted Services,Professional Services,,21/01/2020,961,170000,Education
5365774,Life Centre Events Limited,Hosted Services,Hosted Services,Professional Services,,21/01/2020,947.8,170000,Education
5365776,Life Centre Events Limited,Hosted Services,Hosted Services,Professional Services,,21/01/2020,"3,031.00",170000,Education
5367123,ROBERT LAING t/a GLOSSOP CARAVANS LTD,Operations and Neighbourhoods,Operations and Neighbourhoods,Contribution,,21/01/2020,960,400000,Non 3rd Party spend  
5369387,Redacted,Adult Social Care,Adults,Agency Staff,,21/01/2020,900,-999999,Unclassifiable
5360267,TAMESIDE AND GLOSSOP INTEGRATED CARE NHS FOUNDATION TRUST,Adult Social Care,Adults,Professional Services,,21/01/2020,"7,145.33",310000,Healthcare
5369395,ASHTON CHURCH OF THE NAZARENE,Childrens Services,Children's Services,Room Hire,,21/01/2020,937.5,400000,Non 3rd Party spend  
5369442,Redacted,Multiple Heads of Service,Multiple Strategic Directorates,Salaries & Wages Advances(Hold),,21/01/2020,"5,967.59",400000,Non 3rd Party spend  
5369247,MARVELS KIDS CLUB LTD,Education,Children's Services,#N/A,,21/01/2020,988,321100,Social Community Care Supplies & Services - Children
5367845,The Shed Tameside,Adult Social Care,Adults,Professional Services,,21/01/2020,"5,754.85",321000,Social Community Care Supplies & Services - Adult
5367846,Smartway Health and Social Care Limited,Adult Social Care,Adults,Homecare Fees,,21/01/2020,"2,189.00",321000,Social Community Care Supplies & Services - Adult
5369339,Redacted,Education,Children's Services,#N/A,,21/01/2020,988,321100,Social Community Care Supplies & Services - Children
5366259,Safehands Liverpool LTD,Childrens Services,Children's Services,Living With Formal Support,,21/01/2020,"8,373.00",321100,Social Community Care Supplies & Services - Children
5368924,GREATER MANCHESTER PENSION FUND,Corporate Costs,Corporate Costs,Pension Increase Act Costs,,21/01/2020,"110,800.00",UNCLASS,Unclassifiable
5368755,CREATIVE SUPPORT LTD,Adult Social Care,Adults,Age Concern Fees,,21/01/2020,"32,496.92",321000,Social Community Care Supplies & Services - Adult
5364966,Acumen Waste Services Limited,Place,Growth,Fees,,22/01/2020,"1,811.00",180000,Environmental Services
5366722,Zeno Ltd,Adult Social Care,Adults,Nursing Home Long Stay Fees,,22/01/2020,"9,793.02",310000,Healthcare
5369523,Redacted,Education,Children's Services,Educational/Instructional Materials,Redacted Supplier,22/01/2020,"12,810.24",170000,Education
5369523,Booktrust,Education,Children's Services,,,22/01/2020,"3,724.80",170000,Education
5366729,Dyson Energy Services Ltd,Environmental Services,Director of Place,Building Maintenance,,22/01/2020,"1,239.83",100000,Building Construction Materials
5369683,Redacted,Multiple Heads of Service,Multiple Strategic Directorates,Salaries & Wages Advances(Hold),,22/01/2020,"3,995.31",400000,Non 3rd Party spend  
5369404,DWP - COMPENSATION RECOVERY UNIT,Multiple Heads of Service,Multiple Strategic Directorates,Claims Settled,,22/01/2020,665,-999999,Unclassifiable
5366745,NORTHGATE PUBLIC SERVICES UK LTD,Operations and Neighbourhoods,Operations and Neighbourhoods,Computer Software Maintenance Costs,,22/01/2020,"4,000.00",270000,Information Communication Technology
5366814,ZZ DUP - KEYS CHILDCARE LTD,Education,Children's Services,#N/A,,22/01/2020,"11,343.00",321100,Social Community Care Supplies & Services - Children
5366815,ZZ DUP - KEYS CHILDCARE LTD,Childrens Services,Children's Services,Childrens Homes Outside Local Authority Fees,,22/01/2020,"17,492.86",321100,Social Community Care Supplies & Services - Children
5366813,ZZ DUP - KEYS CHILDCARE LTD,Education,Children's Services,#N/A,,22/01/2020,"2,985.00",321100,Social Community Care Supplies & Services - Children
5366816,TAMESIDE AND GLOSSOP INTEGRATED CARE NHS FOUNDATION TRUST,Operations and Neighbourhoods,Operations and Neighbourhoods,Environmental Health & Safety,,22/01/2020,"14,369.00",310000,Healthcare
5369518,LOVE OUR CHILD,Education,Children's Services,#N/A,,22/01/2020,988,321100,Social Community Care Supplies & Services - Children
5366731,CAUSEWAY TECHNOLOGIES LTD,Operations and Neighbourhoods,Operations and Neighbourhoods,Engineers Works,,22/01/2020,"1,268.01",270000,Information Communication Technology
5366830,ORDNANCE SURVEY LIMITED,Hosted Services,Hosted Services,Professional Consultancy Services,,22/01/2020,"1,100.00",201100,Financial Services
5366763,PROFILE SECURITY SERVICES LIMITED,Place,Growth,Security Services,,22/01/2020,"2,219.04",190000,Facilities & Management Services
5366771,PROFILE SECURITY SERVICES LIMITED,Place,Growth,Security Services,,22/01/2020,"2,357.04",190000,Facilities & Management Services
5366779,ALLIANCE CARE & EDUCATION,Childrens Services,Children's Services,Childrens Homes Outside Local Authority Fees,,22/01/2020,"12,178.57",321100,Social Community Care Supplies & Services - Children
5366746,TORDAN HEALTHCARE LTD,Childrens Services,Children's Services,Homecare Fees,,22/01/2020,"4,095.00",310000,Healthcare
5368013,Eden Brown LTD,Childrens Services,Children's Services,Agency Staff,,22/01/2020,"2,070.00",-999999,Unclassifiable
5369529,KIDZ STOP,Education,Children's Services,#N/A,,22/01/2020,988,321100,Social Community Care Supplies & Services - Children
5368476,GETRONICS SERVICES UK LIMITED,GMPF (FX),GMPF (FX),Telephone Landline Costs,,22/01/2020,955,270000,Information Communication Technology
5366781,TRIANGLE CARE GROUP,Childrens Services,Children's Services,Living With Formal Support,,22/01/2020,"5,000.00",321000,Social Community Care Supplies & Services - Adult
5366778,MCR INDEPENDENT SOCIAL WORK CONSULTANCY,Adult Social Care,Adults,Professional Services,,22/01/2020,602.2,260000,Human Resources
5369010,NEW CHARTER HOUSING TRUST GROUP,Operations and Neighbourhoods,Operations and Neighbourhoods,Professional Services,,22/01/2020,"132,661.50",-999999,Unclassifiable
5366742,Redacted,Operations and Neighbourhoods,Operations and Neighbourhoods,Professional Entertainment Services,Redacted Supplier,22/01/2020,620,-999999,Unclassifiable
5366710,INSPIRE COMMUNITY SERVICES LIMITED,Childrens Services,Children's Services,Living With Formal Support,,22/01/2020,"2,590.67",170000,Education
5366709,Redacted,Childrens Services,Children's Services,Living With Formal Support,Redacted Supplier,22/01/2020,"2,568.35",170000,Education
5366772,Redacted,Childrens Services,Children's Services,Living With Formal Support,Redacted Supplier,22/01/2020,"2,568.35",170000,Education
5366714,Redacted,Childrens Services,Children's Services,Living With Formal Support,Redacted Supplier,22/01/2020,"2,214.02",170000,Education
5366775,Redacted,Childrens Services,Children's Services,Living With Formal Support,Redacted Supplier,22/01/2020,"4,154.00",170000,Education
5366766,Redacted,Childrens Services,Children's Services,Living With Formal Support,Redacted Supplier,22/01/2020,"2,214.02",170000,Education
5368061,Redacted,Cultural and Customer Services,"Community,Environmental,Adult and Health Services",New Build Construction Costs,Redacted Supplier,22/01/2020,"578,521.69",391100,"Works - Construction, Repair & Maintenance"
5366979,Redacted,Childrens Services,Children's Services,Living With Formal Support,Redacted Supplier,22/01/2020,"8,931.20",321100,Social Community Care Supplies & Services - Children
5367893,Redacted,Hosted Services,Hosted Services,Professional Services,Redacted Supplier,22/01/2020,"6,500.00",-999999,Unclassifiable
5366818,Redacted,Operations and Neighbourhoods,Operations and Neighbourhoods,Protective Clothing,Redacted Supplier,22/01/2020,"1,296.94",140000,Clothing
5348123,Redacted,(blank),(blank),Computer Hardware,Redacted Supplier,22/01/2020,"423,216.00",270000,Information Communication Technology
5366627,Redacted,(blank),(blank),Computer Hardware,Redacted Supplier,22/01/2020,"4,712.50",270000,Information Communication Technology
5368062,FOSTER CARE ASSOCIATES LTD (FCA),Childrens Services,Children's Services,Foster Carer Agency Fees,,22/01/2020,"4,029.69",321000,Social Community Care Supplies & Services - Adult
5369535,FAIRFIELD EDUCATION AND CHILDCARE,Education,Children's Services,#N/A,,22/01/2020,"2,305.00",321100,Social Community Care Supplies & Services - Children
5369525,FAIRFIELD EDUCATION AND CHILDCARE,Education,Children's Services,#N/A,,22/01/2020,988,321100,Social Community Care Supplies & Services - Children
5368225,TAMESIDE SPORTS TRUST,Education,Children's Services,#N/A,,22/01/2020,"40,943.00",290000,Arts & Leisure Services
5366701,INSTITUTE OF REVENUES RATING AND VALUATION,Exchequer,Governance,Professional Consultancy Services,,22/01/2020,"1,200.00",200000,Financial Services
5366764,CAPSTONE FOSTER CARE,Childrens Services,Children's Services,Foster Carer Agency Fees,,22/01/2020,"2,234.52",321000,Social Community Care Supplies & Services - Adult
5369195,WILDE CONSULTING ENGINEERS,Place,Growth,Engineers Works,,22/01/2020,"16,613.04",150000,Consultancy
5369237,NEXUS MOVE LIMITED PREVIOUSLY RADIO CABS (ASHTON)LTD,Education,Children's Services,Transport Of Pupils,,22/01/2020,"1,120.00",360000,Public Transport
5366754,ROSS AUTO ENGINEERING LIMITED TRADING AS ROSS CARE,Adult Social Care,Adults,Joint Loans Store Fee,,22/01/2020,"14,624.24",321100,Social Community Care Supplies & Services - Children
5366732,BOND SOLON TRAINING LTD,People and Workforce Development,Governance,Training Course Costs,,22/01/2020,"2,023.39",-999999,Unclassifiable
5366734,BOND SOLON TRAINING LTD,People and Workforce Development,Governance,Training Course Costs,,22/01/2020,"2,014.40",-999999,Unclassifiable
5366803,Water Plus,Place,Growth,Metered Water Costs,,22/01/2020,"1,082.61",370000,Utilities
5366844,Water Plus,Place,Growth,Metered Water Costs,,22/01/2020,605.66,370000,Utilities
5366797,Water Plus,Place,Growth,Metered Water Costs,,22/01/2020,632.58,370000,Utilities
5366841,Water Plus,Place,Growth,Metered Water Costs,,22/01/2020,982.05,370000,Utilities
5366796,Water Plus,Place,Growth,Metered Water Costs,,22/01/2020,"1,889.36",370000,Utilities
5366799,Water Plus,Place,Growth,Metered Water Costs,,22/01/2020,"2,488.27",370000,Utilities
5366721,Water Plus,Operations and Neighbourhoods,Operations and Neighbourhoods,Metered Water Costs,,22/01/2020,"1,462.06",370000,Utilities
5366794,Water Plus,Place,Growth,Metered Water Costs,,22/01/2020,688.93,370000,Utilities
5366843,Water Plus,Place,Growth,Metered Water Costs,,22/01/2020,"2,798.47",370000,Utilities
5366792,Water Plus,Place,Growth,Metered Water Costs,,22/01/2020,629.43,370000,Utilities
5366790,Water Plus,Place,Growth,Metered Water Costs,,22/01/2020,"2,204.40",370000,Utilities
5366699,Water Plus,Place,Growth,Metered Water Costs,,22/01/2020,702.17,370000,Utilities
5366804,Water Plus,Place,Growth,Metered Water Costs,,22/01/2020,735.81,370000,Utilities
5366727,FOSTER CARES LTD,Childrens Services,Children's Services,Foster Carer Agency Fees,,22/01/2020,760,321100,Social Community Care Supplies & Services - Children
5366908,Dynamic Childcare Limited,Childrens Services,Children's Services,Childrens Homes Outside Local Authority Fees,,23/01/2020,"9,000.00",321100,Social Community Care Supplies & Services - Children
5367118,Inspire Scotland Limited,Childrens Services,Children's Services,Childrens Homes Outside Local Authority Fees,,23/01/2020,"32,168.57",321100,Social Community Care Supplies & Services - Children
5367130,Redacted,Education,Children's Services,Professional Services,,23/01/2020,"2,000.00",-999999,Unclassifiable
5369415,Hillgate Health Group Limited,Childrens Services,Children's Services,Living With Formal Support,,23/01/2020,"1,179.36",-999999,Unclassifiable
5369417,Hillgate Health Group Limited,Childrens Services,Children's Services,Living With Formal Support,,23/01/2020,"1,179.36",-999999,Unclassifiable
5369419,Hillgate Health Group Limited,Childrens Services,Children's Services,Living With Formal Support,,23/01/2020,"1,179.36",-999999,Unclassifiable
5369422,Hillgate Health Group Limited,Childrens Services,Children's Services,Living With Formal Support,,23/01/2020,"1,179.36",-999999,Unclassifiable
5369420,Hillgate Health Group Limited,Childrens Services,Children's Services,Living With Formal Support,,23/01/2020,"1,179.36",-999999,Unclassifiable
5369418,Hillgate Health Group Limited,Childrens Services,Children's Services,Living With Formal Support,,23/01/2020,"1,179.36",-999999,Unclassifiable
5369421,Hillgate Health Group Limited,Childrens Services,Children's Services,Living With Formal Support,,23/01/2020,"1,179.36",-999999,Unclassifiable
5369217,ISW CSC Limited,Childrens Services,Children's Services,Living With Formal Support,,23/01/2020,980,260000,Human Resources
5369213,ISW CSC Limited,Childrens Services,Children's Services,Living With Formal Support,,23/01/2020,"1,055.00",260000,Human Resources
3250745,ARCO LIMITED,Operations and Neighbourhoods,Operations and Neighbourhoods,Protective Clothing,,23/01/2020,560,140000,Clothing
3250745,DENNIS EAGLE LTD,Operations and Neighbourhoods,Operations and Neighbourhoods,General Materials,,23/01/2020,"2,526.44",380000,Vehicle Management
3250745,F. R. SHARROCK LIMITED,Operations and Neighbourhoods,Operations and Neighbourhoods,General Materials,,23/01/2020,854.8,908001,Public Bodies
3250745,FREIGHT TRANSPORT ASSOCIATION,Operations and Neighbourhoods,Operations and Neighbourhoods,Vehicle Inspection/Testing Costs,,23/01/2020,733.9,380000,Vehicle Management
3250745,AEBI SCHMIDT UK LTD,Transport,Director of Place,Debits Goods Received,,23/01/2020,518.92,380000,Vehicle Management
3250745,AEBI SCHMIDT UK LTD,Operations and Neighbourhoods,Operations and Neighbourhoods,Sub-contractor Services,,23/01/2020,599.9,380000,Vehicle Management
3250745,STOCKPORT TRUCK CENTRE LTD,Operations and Neighbourhoods,Operations and Neighbourhoods,General Materials,,23/01/2020,"1,287.94",260000,Human Resources
3250745,MANTRA LEARNING LIMITED,Operations and Neighbourhoods,Operations and Neighbourhoods,Training Course Costs,,23/01/2020,"1,135.00",260000,Human Resources
3250745,PO HYDRAULICS T/A PIRTEK OLDHAM,Operations and Neighbourhoods,Operations and Neighbourhoods,Sub-contractor Services,,23/01/2020,780.48,380000,Vehicle Management
3250745,Redacted,Operations and Neighbourhoods,Operations and Neighbourhoods,Tyre Costs,Business Payment,23/01/2020,654.69,380000,Vehicle Management
3250745,TRUCTYRE ATS,Operations and Neighbourhoods,Operations and Neighbourhoods,,,23/01/2020,"1,454.75",380000,Vehicle Management
3250745,MOTUS COMMERCIALS (OLDHAM),Operations and Neighbourhoods,Operations and Neighbourhoods,General Materials,,23/01/2020,954.04,380000,Vehicle Management
3250745,HTF TYRE SERVICES LTD,Operations and Neighbourhoods,Operations and Neighbourhoods,Tyre Costs,,23/01/2020,"2,301.50",380000,Vehicle Management
3250745,SPECIALIST ACCESS ENGINEERING LTD,Operations and Neighbourhoods,Operations and Neighbourhoods,Sub-contractor Services,,23/01/2020,"1,538.00",380000,Vehicle Management
5366889,YOUNG PEOPLE FIRST LIMITED,Childrens Services,Children's Services,Living With Formal Support,,23/01/2020,"3,584.00",321100,Social Community Care Supplies & Services - Children
5366888,YOUNG PEOPLE FIRST LIMITED,Childrens Services,Children's Services,Living With Formal Support,,23/01/2020,"1,225.00",321100,Social Community Care Supplies & Services - Children
5366890,Accountants In Demand t/a The Finegreen Group,Place,Growth,Agency Staff,,23/01/2020,"2,400.00",260000,Human Resources
5364132,NHS NORTH OF ENGLAND CSU,Adult Social Care,Adults,Subscriptions,,23/01/2020,"5,000.00",310000,Healthcare
5368667,PG FABRICATIONS,Place,Growth,Building Maintenance,,23/01/2020,"1,120.00",390000,"Works - Construction, Repair & Maintenance"
5367524,HALLIWELL HOMES,Childrens Services,Children's Services,Childrens Homes Outside Local Authority Fees,,23/01/2020,"20,693.57",321100,Social Community Care Supplies & Services - Children
5363945,ABSOLUTE MUSEUM AND GALLERY PRODUCTS LTD,Operations and Neighbourhoods,Operations and Neighbourhoods,General Materials,,23/01/2020,541.07,UNCLASS,Unclassifiable
5366877,Randstad Public Services Limited,Education,Children's Services,Agency Staff,,23/01/2020,"3,200.00",170000,Education
5367528,PRD PROPERTY SERVICES LTD,Governance,Governance,Legal Fees,,23/01/2020,"5,800.00",190000,Facilities & Management Services
5367301,COMFORT CALL LIMITED,Adult Social Care,Adults,Homecare Fees,,23/01/2020,"106,106.89",310000,Healthcare
5367345,COMFORT CALL LIMITED,Adult Social Care,Adults,Homecare Fees,,23/01/2020,"106,106.89",310000,Healthcare
5367303,COMFORT CALL LIMITED,Adult Social Care,Adults,Homecare Fees,,23/01/2020,"9,611.71",310000,Healthcare
5367305,COMFORT CALL LIMITED,Adult Social Care,Adults,Homecare Fees,,23/01/2020,"11,102.43",310000,Healthcare
5368209,SALFORD CITY COUNCIL,Education,Children's Services,Professional Consultancy Services,,23/01/2020,"3,228.33",UNCLASS,Unclassifiable
5366833,PARK RETAIL LTD T/A LOVE2REWARD,Childrens Services,Children's Services,Cash Grants,,23/01/2020,807.5,-999999,Unclassifiable
5355202,SIGNIS LTD,Quality and Safeguarding,Quality and Safeguarding,Professional Services,,23/01/2020,830,-999999,Unclassifiable
5366892,PETERS LIMITED (PETERS BOOKSELLING SERVICES),Operations and Neighbourhoods,Operations and Neighbourhoods,Purchase Books,,23/01/2020,"4,183.42",170000,Education
5367329,CARELINE HOMECARE LTD,Adult Social Care,Adults,Homecare Fees,,23/01/2020,"7,714.18",321000,Social Community Care Supplies & Services - Adult
5367328,CARELINE HOMECARE LTD,Adult Social Care,Adults,Homecare Fees,,23/01/2020,982.22,321000,Social Community Care Supplies & Services - Adult
5367330,CARELINE HOMECARE LTD,Adult Social Care,Adults,Homecare Fees,,23/01/2020,"7,194.98",321000,Social Community Care Supplies & Services - Adult
